{"text_format":"1","workbook":"xlsx","n_sheets":7,"sheets":["Форма 4","Базовые цены за единицу без нач","Базовые цены за единицу","Базовые цены с учетом расхода","Начисления","Определители","Базовые концовки"],"not_rendered":{"charts":0,"images":0,"macros":1,"external_links":0,"defined_names":0,"comments":0,"pivot_tables":0},"unopened":[],"bounds":{"document_bytes":16777216,"sheet_cells":100000,"rows_first":2000,"rows_last":500,"rows_between":2000,"halvings":0,"cell_chars":16384,"cell_head_chars":4096},"cells_cut":0,"cells_raw":0,"read":"whole","date_system":"1900"}

{"sheet":"Форма 4","index":0,"n_rows":551,"n_cols":25,"rows_kept":551,"cut":false,"hidden":false,"merged":[[18,0,18,9],[15,7,15,8],[21,8,21,9],[22,8,22,9],[2,1,2,4],[3,1,3,2],[4,1,4,4],[16,7,16,8],[17,7,17,8],[5,1,5,4],[6,1,6,4],[7,1,7,4],[25,0,26,0],[25,1,26,1],[25,2,26,2],[25,6,26,6],[21,0,23,0],[21,1,23,1],[21,2,23,2],[21,3,21,4],[25,13,26,13],[25,5,26,5],[22,5,23,5],[22,6,23,6],[21,5,21,7],[44,0,45,0],[44,1,45,1],[44,2,45,2],[44,6,45,6],[44,13,45,13],[44,5,45,5],[63,0,64,0],[63,1,64,1],[63,2,64,2],[63,6,64,6],[63,13,64,13],[63,5,64,5],[82,0,83,0],[82,1,83,1],[82,2,83,2],[82,6,83,6],[82,13,83,13],[82,5,83,5],[101,0,102,0],[101,1,102,1],[101,2,102,2],[101,6,102,6],[101,13,102,13],[101,5,102,5],[119,0,120,0],[119,1,120,1],[119,2,120,2],[119,6,120,6],[119,13,120,13],[119,5,120,5],[138,1,138,8],[140,0,141,0],[140,1,141,1],[140,2,141,2],[140,6,141,6],[140,13,141,13],[140,5,141,5],[159,0,160,0],[159,1,160,1],[159,2,160,2],[159,6,160,6],[159,13,160,13],[159,5,160,5],[178,0,179,0],[178,1,179,1],[178,2,179,2],[178,6,179,6],[178,13,179,13],[178,5,179,5],[197,0,198,0],[197,1,198,1],[197,2,198,2],[197,6,198,6],[197,13,198,13],[197,5,198,5],[216,0,217,0],[216,1,217,1],[216,2,217,2],[216,6,217,6],[216,13,217,13],[216,5,217,5],[234,0,235,0],[234,1,235,1],[234,2,235,2],[234,6,235,6],[234,13,235,13],[234,5,235,5],[254,0,255,0],[254,1,255,1],[254,2,255,2],[254,6,255,6],[254,13,255,13],[254,5,255,5],[274,0,275,0],[274,1,275,1],[274,2,275,2],[274,6,275,6],[274,13,275,13],[274,5,275,5],[293,0,294,0],[293,1,294,1],[293,2,294,2],[293,6,294,6],[293,13,294,13],[293,5,294,5],[312,0,313,0],[312,1,313,1],[312,2,313,2],[312,6,313,6],[312,13,313,13],[312,5,313,5],[330,0,331,0],[330,1,331,1],[330,2,331,2],[330,6,331,6],[330,13,331,13],[330,5,331,5],[348,0,349,0],[348,1,349,1],[348,2,349,2],[348,6,349,6],[348,13,349,13],[348,5,349,5],[368,0,369,0],[368,1,369,1],[368,2,369,2],[368,6,369,6],[368,13,369,13],[368,5,369,5],[389,0,390,0],[389,1,390,1],[389,2,390,2],[389,6,390,6],[389,13,390,13],[389,5,390,5],[408,0,409,0],[408,1,409,1],[408,2,409,2],[408,6,409,6],[408,13,409,13],[408,5,409,5],[429,2,430,2],[429,6,430,6],[429,13,430,13],[429,5,430,5],[448,2,449,2],[448,5,449,5],[448,6,449,6],[448,13,449,13],[448,8,449,8],[550,2,550,11],[478,2,479,2],[478,5,479,5],[478,6,479,6],[478,13,479,13],[478,8,479,8],[3,3,3,4],[448,17,449,17],[478,17,479,17],[470,2,471,2],[470,5,471,5],[470,6,471,6],[470,13,471,13],[470,8,471,8],[470,17,471,17],[549,2,549,9],[411,1,411,9],[371,1,371,9],[8,1,8,4],[11,0,11,9],[12,0,12,9],[13,0,13,9],[429,0,430,0],[429,1,430,1]]}
["< 209.15 * 209-08 * 5295.20 >",null,null,"Документ составлен в ПК РИК (вер.1.3.191022) тел./факс (495) 347-33-01",null,null,null,null,null,"Форма 4"]
[]
[null,"«УТВЕРЖДАЮ»"]
[null,"Смета на сумму:",null,"484 902 руб."]
[]
[]
[null,"________________ /______________________ /"]
[]
[null,"«______»____________________ 20___г."]
[]
[]
["ЛОКАЛЬНАЯ СМЕТА № 5295.20",null,null,null,null,null,null,null,null,null,null,null,null,null,null,null,null,null,null,null,null,null,null,null,"ЛОКАЛЬНАЯ СМЕТА № 5295.20"]
["(Локальный сметный расчет)",null,null,null,null,null,null,null,null,null,null,null,null,null,null,null,null,null,null,null,null,null,null,null,"(Локальный сметный расчет)"]
[null,null,null,null,null,null,null,null,null,null,null,null,null,null,null,null,null,null,null,null,null,null,null,null,"на Замена теплотрассы с. Демарино ул. Ленина"]
[null,"Основание: ","Дефектный акт"]
[null,null,null,null,null,null,"Сметная стоимость:",{"$f":"TEXT((F548)/1000,\"# ##0\"&GetSeparator()&\"000\")","v":" 484,902"},null,"тыс. руб."]
[null,null,null,null,null,null,"Hормативная трудоемкость:",{"$f":"TEXT((J538)/1000,\"# ##0\"&GetSeparator()&\"000\")","v":" 0,449"},null,"тыс.чел.ч"]
[null,null,null,null,null,null,"Сметная заработная плата:",{"$f":"TEXT((F535)/1000,\"# ##0\"&GetSeparator()&\"000\")","v":" 5,474"},null,"тыс. руб."]
["Составлена в базисных ценах на 01.01.2000 по НБ: \"ТСНБ-2001 Челябинской области (эталон) с доп. и изм. 5 (приказ Минстроя России № 140/пр)\"."]
["С учетом коэф-та индексации на 2 квартал 2020г. (письмо Минстроя России №19271-ИФ/09 от 25.05.20 г.)"]
[]
["№ поз","Шифр и № позиции норматива, Наименование работ и затрат, Единица измерения","Количе-ство","Стоим. ед., руб.",null,"Общая стоимость, руб.",null,null,"Затр. труда рабочих, не зан. обсл. машин, чел-ч"]
[null,null,null,"всего","экс. маш.","всего","оплата труда осн. раб.","экс. маш.","обслуж. машины"]
[null,null,null,"оплата труда осн. раб.","в т.ч. опл. труда мех.",null,null,"в т.ч. опл. труда мех.","на ед.","всего"]
[1,2,3,4,5,6,7,8,9,10]
["1.","Е01-01-003-08\nРазработка грунта в отвал экскаваторами <драглайн> или <обратная лопата> с ковшом вместимостью 0,65 (0,5-1) м3, группа грунтов 2, 1000 м3 грунта",9.75E-3,{"$f":"'Базовые цены за единицу'!B6","v":3420.69},{"$f":"'Базовые цены за единицу'!D6","v":3317.36},{"$f":"'Базовые цены с учетом расхода'!B6","v":33},{"$f":"'Базовые цены с учетом расхода'!C6","v":1},{"$f":"'Базовые цены с учетом расхода'!D6","v":32},10.48,{"$f":"'Базовые цены с учетом расхода'!I6","v":0.10218000000000001},"sum","IsZPR",null,{"$f":"'Базовые цены с учетом расхода'!F6","v":0}]
[null,null,null,{"$f":"'Базовые цены за единицу'!C6","v":103.33},{"$f":"'Базовые цены за единицу'!E6","v":371.83},null,null,{"$f":"'Базовые цены с учетом расхода'!E6","v":4},22.77,{"$f":"'Базовые цены с учетом расхода'!K6","v":0.2220075},"sum_b","IsZPM"]
[null,"Зарплата рабочих",null,null,null,1]
[null,"Эксплуатация машин",null,null,null,32]
[null,"в т.ч. зарплата машинистов",null,null,null,4]
[null,"Материалы"]
[null,"в т.ч. Вспомогательные материалы от стоимости материалов"]
[null,"в т.ч. Вспомогательные ненормируемые материалы",null,null,null,null,null,null,null,null,"NenormMatOtZPR","IsMater"]
[null,"в т.ч. Ненормированная з.п. рабочих"]
[null,"в т.ч. Ненормированная стоимость эксплуатации машин"]
[null,"в т.ч. Ненормированная оплата механизаторов"]
[null,"Накладные расходы",85.5,null,null,{"$f":"IF('Базовые цены с учетом расхода'!N6>0,'Базовые цены с учетом расхода'!N6,IF('Базовые цены с учетом расхода'!N6<0,'Базовые цены с учетом расхода'!N6,\"\"))","v":4},null,null,null,null,null,"Nakl"]
[null,"НР от ЗПР",85.5,null,null,{"$f":"IF('Базовые цены с учетом расхода'!P6>0,'Базовые цены с учетом расхода'!P6,IF('Базовые цены с учетом расхода'!P6<0,'Базовые цены с учетом расхода'!P6,\"\"))","v":1},null,null,null,null,null,"Nakl_ZPR"]
[null,"НР от ЗПМ",85.5,null,null,{"$f":"IF('Базовые цены с учетом расхода'!Q6>0,'Базовые цены с учетом расхода'!Q6,IF('Базовые цены с учетом расхода'!Q6<0,'Базовые цены с учетом расхода'!Q6,\"\"))","v":3},null,null,null,null,null,"Nakl_ZPM"]
[null,"Сметная прибыль",42.5,null,null,{"$f":"IF('Базовые цены с учетом расхода'!O6>0,'Базовые цены с учетом расхода'!O6,IF('Базовые цены с учетом расхода'!O6<0,'Базовые цены с учетом расхода'!O6,\"\"))","v":2},null,null,null,null,null,"Plan"]
[null,"СП от ЗПР",42.5,null,null,{"$f":"IF('Базовые цены с учетом расхода'!R6>0,'Базовые цены с учетом расхода'!R6,IF('Базовые цены с учетом расхода'!R6<0,'Базовые цены с учетом расхода'!R6,\"\"))","v":""},null,null,null,null,null,"Plan_ZPR"]
[null,"СП от ЗПМ",42.5,null,null,{"$f":"IF('Базовые цены с учетом расхода'!S6>0,'Базовые цены с учетом расхода'!S6,IF('Базовые цены с учетом расхода'!S6<0,'Базовые цены с учетом расхода'!S6,\"\"))","v":2},null,null,null,null,null,"Plan_ZPM"]
[null,"Всего с НР и СП",null,null,null,{"$f":"ROUND(IF(F26=\"\",0,F26)+IF(F37=\"\",0,F37)+IF(F40=\"\",0,F40),0)","v":39}]
[]
["2.","Е01-02-057-02\nДоработка грунта вручную в траншеях глубиной до 2 м без креплений с откосами, группа грунтов 2, 100 м3 грунта",0.01,{"$f":"'Базовые цены за единицу'!B7","v":1822.13},{"$f":"'Базовые цены за единицу'!D7","v":0},{"$f":"'Базовые цены с учетом расхода'!B7","v":18},{"$f":"'Базовые цены с учетом расхода'!C7","v":18},{"$f":"'Базовые цены с учетом расхода'!D7","v":0},184.8,{"$f":"'Базовые цены с учетом расхода'!I7","v":1.8480000000000001},"sum","IsZPR",null,{"$f":"'Базовые цены с учетом расхода'!F7","v":0}]
[null,null,null,{"$f":"'Базовые цены за единицу'!C7","v":1822.13},{"$f":"'Базовые цены за единицу'!E7","v":0},null,null,{"$f":"'Базовые цены с учетом расхода'!E7","v":0},null,{"$f":"'Базовые цены с учетом расхода'!K7","v":0},"sum_b","IsZPM"]
[null,"Зарплата рабочих",null,null,null,18]
[null,"Эксплуатация машин"]
[null,"в т.ч. зарплата машинистов"]
[null,"Материалы"]
[null,"в т.ч. Вспомогательные материалы от стоимости материалов"]
[null,"в т.ч. Вспомогательные ненормируемые материалы",null,null,null,null,null,null,null,null,"NenormMatOtZPR","IsMater"]
[null,"в т.ч. Ненормированная з.п. рабочих"]
[null,"в т.ч. Ненормированная стоимость эксплуатации машин"]
[null,"в т.ч. Ненормированная оплата механизаторов"]
[null,"Накладные расходы",72,null,null,{"$f":"IF('Базовые цены с учетом расхода'!N7>0,'Базовые цены с учетом расхода'!N7,IF('Базовые цены с учетом расхода'!N7<0,'Базовые цены с учетом расхода'!N7,\"\"))","v":13},null,null,null,null,null,"Nakl"]
[null,"НР от ЗПР",72,null,null,{"$f":"IF('Базовые цены с учетом расхода'!P7>0,'Базовые цены с учетом расхода'!P7,IF('Базовые цены с учетом расхода'!P7<0,'Базовые цены с учетом расхода'!P7,\"\"))","v":13},null,null,null,null,null,"Nakl_ZPR"]
[null,"НР от ЗПМ",null,null,null,{"$f":"IF('Базовые цены с учетом расхода'!Q7>0,'Базовые цены с учетом расхода'!Q7,IF('Базовые цены с учетом расхода'!Q7<0,'Базовые цены с учетом расхода'!Q7,\"\"))","v":""},null,null,null,null,null,"Nakl_ZPM"]
[null,"Сметная прибыль",38.25,null,null,{"$f":"IF('Базовые цены с учетом расхода'!O7>0,'Базовые цены с учетом расхода'!O7,IF('Базовые цены с учетом расхода'!O7<0,'Базовые цены с учетом расхода'!O7,\"\"))","v":7},null,null,null,null,null,"Plan"]
[null,"СП от ЗПР",38.25,null,null,{"$f":"IF('Базовые цены с учетом расхода'!R7>0,'Базовые цены с учетом расхода'!R7,IF('Базовые цены с учетом расхода'!R7<0,'Базовые цены с учетом расхода'!R7,\"\"))","v":7},null,null,null,null,null,"Plan_ZPR"]
[null,"СП от ЗПМ",null,null,null,{"$f":"IF('Базовые цены с учетом расхода'!S7>0,'Базовые цены с учетом расхода'!S7,IF('Базовые цены с учетом расхода'!S7<0,'Базовые цены с учетом расхода'!S7,\"\"))","v":""},null,null,null,null,null,"Plan_ZPM"]
[null,"Всего с НР и СП",null,null,null,{"$f":"ROUND(IF(F45=\"\",0,F45)+IF(F56=\"\",0,F56)+IF(F59=\"\",0,F59),0)","v":38}]
[]
["3.","Е24-01-020-03\nДемонтаж трубопроводов в изоляции из пенополиуретана (ППУ) с изоляцией стыков скорлупами при условном давлении 1,6 МПа, температуре 150°С, диаметр труб 80 мм, 1 км трубопровода",7.8E-2,{"$f":"'Базовые цены за единицу'!B8","v":11467.66},{"$f":"'Базовые цены за единицу'!D8","v":7233.39},{"$f":"'Базовые цены с учетом расхода'!B8","v":894},{"$f":"'Базовые цены с учетом расхода'!C8","v":330},{"$f":"'Базовые цены с учетом расхода'!D8","v":564},343.13400000000001,{"$f":"'Базовые цены с учетом расхода'!I8","v":26.764451999999999},"sum","IsZPR",null,{"$f":"'Базовые цены с учетом расхода'!F8","v":0}]
[null,null,null,{"$f":"'Базовые цены за единицу'!C8","v":4234.2700000000004},{"$f":"'Базовые цены за единицу'!E8","v":611.65},null,null,{"$f":"'Базовые цены с учетом расхода'!E8","v":48},43.752000000000002,{"$f":"'Базовые цены с учетом расхода'!K8","v":3.4126560000000001},"sum_b","IsZPM"]
[null,"Зарплата рабочих",null,null,null,330]
[null,"Эксплуатация машин",null,null,null,564]
[null,"в т.ч. зарплата машинистов",null,null,null,48]
[null,"Материалы"]
[null,"в т.ч. Вспомогательные материалы от стоимости материалов"]
[null,"в т.ч. Вспомогательные ненормируемые материалы",null,null,null,null,null,null,null,null,"NenormMatOtZPR","IsMater"]
[null,"в т.ч. Ненормированная з.п. рабочих"]
[null,"в т.ч. Ненормированная стоимость эксплуатации машин"]
[null,"в т.ч. Ненормированная оплата механизаторов"]
[null,"Накладные расходы",117,null,null,{"$f":"IF('Базовые цены с учетом расхода'!N8>0,'Базовые цены с учетом расхода'!N8,IF('Базовые цены с учетом расхода'!N8<0,'Базовые цены с учетом расхода'!N8,\"\"))","v":442},null,null,null,null,null,"Nakl"]
[null,"НР от ЗПР",117,null,null,{"$f":"IF('Базовые цены с учетом расхода'!P8>0,'Базовые цены с учетом расхода'!P8,IF('Базовые цены с учетом расхода'!P8<0,'Базовые цены с учетом расхода'!P8,\"\"))","v":386},null,null,null,null,null,"Nakl_ZPR"]
[null,"НР от ЗПМ",117,null,null,{"$f":"IF('Базовые цены с учетом расхода'!Q8>0,'Базовые цены с учетом расхода'!Q8,IF('Базовые цены с учетом расхода'!Q8<0,'Базовые цены с учетом расхода'!Q8,\"\"))","v":56},null,null,null,null,null,"Nakl_ZPM"]
[null,"Сметная прибыль",75.650000000000006,null,null,{"$f":"IF('Базовые цены с учетом расхода'!O8>0,'Базовые цены с учетом расхода'!O8,IF('Базовые цены с учетом расхода'!O8<0,'Базовые цены с учетом расхода'!O8,\"\"))","v":286},null,null,null,null,null,"Plan"]
[null,"СП от ЗПР",75.650000000000006,null,null,{"$f":"IF('Базовые цены с учетом расхода'!R8>0,'Базовые цены с учетом расхода'!R8,IF('Базовые цены с учетом расхода'!R8<0,'Базовые цены с учетом расхода'!R8,\"\"))","v":250},null,null,null,null,null,"Plan_ZPR"]
[null,"СП от ЗПМ",75.650000000000006,null,null,{"$f":"IF('Базовые цены с учетом расхода'!S8>0,'Базовые цены с учетом расхода'!S8,IF('Базовые цены с учетом расхода'!S8<0,'Базовые цены с учетом расхода'!S8,\"\"))","v":36},null,null,null,null,null,"Plan_ZPM"]
[null,"Всего с НР и СП",null,null,null,{"$f":"ROUND(IF(F64=\"\",0,F64)+IF(F75=\"\",0,F75)+IF(F78=\"\",0,F78),0)","v":1622}]
[]
["4.","Е24-01-020-03\nБесканальная прокладка трубопроводов в изоляции из пенополиуретана (ППУ) с изоляцией стыков скорлупами при условном давлении 1,6 МПа, температуре 150°С, диаметр труб 80 мм, 1 км трубопровода",7.8E-2,{"$f":"'Базовые цены за единицу'!B9","v":60806.98},{"$f":"'Базовые цены за единицу'!D9","v":12055.65},{"$f":"'Базовые цены с учетом расхода'!B9","v":4742},{"$f":"'Базовые цены с учетом расхода'!C9","v":550},{"$f":"'Базовые цены с учетом расхода'!D9","v":940},571.89,{"$f":"'Базовые цены с учетом расхода'!I9","v":44.607419999999998},"sum","IsZPR",null,{"$f":"'Базовые цены с учетом расхода'!F9","v":3252}]
[null,null,null,{"$f":"'Базовые цены за единицу'!C9","v":7057.12},{"$f":"'Базовые цены за единицу'!E9","v":1019.42},null,null,{"$f":"'Базовые цены с учетом расхода'!E9","v":80},72.92,{"$f":"'Базовые цены с учетом расхода'!K9","v":5.6877599999999999},"sum_b","IsZPM"]
[null,"Зарплата рабочих",null,null,null,550]
[null,"Эксплуатация машин",null,null,null,940]
[null,"в т.ч. зарплата машинистов",null,null,null,80]
[null,"Материалы",null,null,null,3252]
[null,"в т.ч. Вспомогательные материалы от стоимости материалов"]
[null,"в т.ч. Вспомогательные ненормируемые материалы",null,null,null,null,null,null,null,null,"NenormMatOtZPR","IsMater"]
[null,"в т.ч. Ненормированная з.п. рабочих"]
[null,"в т.ч. Ненормированная стоимость эксплуатации машин"]
[null,"в т.ч. Ненормированная оплата механизаторов"]
[null,"Накладные расходы",117,null,null,{"$f":"IF('Базовые цены с учетом расхода'!N9>0,'Базовые цены с учетом расхода'!N9,IF('Базовые цены с учетом расхода'!N9<0,'Базовые цены с учетом расхода'!N9,\"\"))","v":737},null,null,null,null,null,"Nakl"]
[null,"НР от ЗПР",117,null,null,{"$f":"IF('Базовые цены с учетом расхода'!P9>0,'Базовые цены с учетом расхода'!P9,IF('Базовые цены с учетом расхода'!P9<0,'Базовые цены с учетом расхода'!P9,\"\"))","v":644},null,null,null,null,null,"Nakl_ZPR"]
[null,"НР от ЗПМ",117,null,null,{"$f":"IF('Базовые цены с учетом расхода'!Q9>0,'Базовые цены с учетом расхода'!Q9,IF('Базовые цены с учетом расхода'!Q9<0,'Базовые цены с учетом расхода'!Q9,\"\"))","v":93},null,null,null,null,null,"Nakl_ZPM"]
[null,"Сметная прибыль",75.650000000000006,null,null,{"$f":"IF('Базовые цены с учетом расхода'!O9>0,'Базовые цены с учетом расхода'!O9,IF('Базовые цены с учетом расхода'!O9<0,'Базовые цены с учетом расхода'!O9,\"\"))","v":477},null,null,null,null,null,"Plan"]
[null,"СП от ЗПР",75.650000000000006,null,null,{"$f":"IF('Базовые цены с учетом расхода'!R9>0,'Базовые цены с учетом расхода'!R9,IF('Базовые цены с учетом расхода'!R9<0,'Базовые цены с учетом расхода'!R9,\"\"))","v":416},null,null,null,null,null,"Plan_ZPR"]
[null,"СП от ЗПМ",75.650000000000006,null,null,{"$f":"IF('Базовые цены с учетом расхода'!S9>0,'Базовые цены с учетом расхода'!S9,IF('Базовые цены с учетом расхода'!S9<0,'Базовые цены с учетом расхода'!S9,\"\"))","v":60},null,null,null,null,null,"Plan_ZPM"]
[null,"Всего с НР и СП",null,null,null,{"$f":"ROUND(IF(F83=\"\",0,F83)+IF(F94=\"\",0,F94)+IF(F97=\"\",0,F97),0)","v":5956}]
[]
["5.","С103-2019\nТруба стальная изолированная пенополиуретаном (ГОСТ 30732-2006) в полиэтиленовой оболочке диаметром 89 мм, толщиной стенки 4 мм, наружным диаметром оболочки 180 мм, м",78,{"$f":"'Базовые цены за единицу'!B10","v":238.64},{"$f":"'Базовые цены за единицу'!D10","v":0},{"$f":"'Базовые цены с учетом расхода'!B10","v":18614},{"$f":"'Базовые цены с учетом расхода'!C10","v":0},{"$f":"'Базовые цены с учетом расхода'!D10","v":0},null,{"$f":"'Базовые цены с учетом расхода'!I10","v":0},"sum","IsZPR",null,{"$f":"'Базовые цены с учетом расхода'!F10","v":18614}]
[null,null,null,{"$f":"'Базовые цены за единицу'!C10","v":0},{"$f":"'Базовые цены за единицу'!E10","v":0},null,null,{"$f":"'Базовые цены с учетом расхода'!E10","v":0},null,{"$f":"'Базовые цены с учетом расхода'!K10","v":0},"sum_b","IsZPM"]
[null,"Зарплата рабочих"]
[null,"Эксплуатация машин"]
[null,"в т.ч. зарплата машинистов"]
[null,"Материалы",null,null,null,18614]
[null,"в т.ч. Вспомогательные материалы от стоимости материалов"]
[null,"в т.ч. Вспомогательные ненормируемые материалы",null,null,null,null,null,null,null,null,"NenormMatOtZPR","IsMater"]
[null,"в т.ч. Ненормированная з.п. рабочих"]
[null,"в т.ч. Ненормированная стоимость эксплуатации машин"]
[null,"в т.ч. Ненормированная оплата механизаторов"]
[null,"Накладные расходы",null,null,null,{"$f":"IF('Базовые цены с учетом расхода'!N10>0,'Базовые цены с учетом расхода'!N10,IF('Базовые цены с учетом расхода'!N10<0,'Базовые цены с учетом расхода'!N10,\"\"))","v":""},null,null,null,null,null,"Nakl"]
[null,"НР от ЗПР",null,null,null,{"$f":"IF('Базовые цены с учетом расхода'!P10>0,'Базовые цены с учетом расхода'!P10,IF('Базовые цены с учетом расхода'!P10<0,'Базовые цены с учетом расхода'!P10,\"\"))","v":""},null,null,null,null,null,"Nakl_ZPR"]
[null,"НР от ЗПМ",null,null,null,{"$f":"IF('Базовые цены с учетом расхода'!Q10>0,'Базовые цены с учетом расхода'!Q10,IF('Базовые цены с учетом расхода'!Q10<0,'Базовые цены с учетом расхода'!Q10,\"\"))","v":""},null,null,null,null,null,"Nakl_ZPM"]
[null,"Сметная прибыль",null,null,null,{"$f":"IF('Базовые цены с учетом расхода'!O10>0,'Базовые цены с учетом расхода'!O10,IF('Базовые цены с учетом расхода'!O10<0,'Базовые цены с учетом расхода'!O10,\"\"))","v":""},null,null,null,null,null,"Plan"]
[null,"СП от ЗПР",null,null,null,{"$f":"IF('Базовые цены с учетом расхода'!R10>0,'Базовые цены с учетом расхода'!R10,IF('Базовые цены с учетом расхода'!R10<0,'Базовые цены с учетом расхода'!R10,\"\"))","v":""},null,null,null,null,null,"Plan_ZPR"]
[null,"СП от ЗПМ",null,null,null,{"$f":"IF('Базовые цены с учетом расхода'!S10>0,'Базовые цены с учетом расхода'!S10,IF('Базовые цены с учетом расхода'!S10<0,'Базовые цены с учетом расхода'!S10,\"\"))","v":""},null,null,null,null,null,"Plan_ZPM"]
[]
["6.","Е01-01-033-02\nЗасыпка траншей и котлованов с перемещением грунта до 5 м бульдозерами мощностью 59 кВт (80 л.с.), группа грунтов 2, 1000 м3 грунта",1.0749999999999999E-2,{"$f":"'Базовые цены за единицу'!B11","v":633.41},{"$f":"'Базовые цены за единицу'!D11","v":633.41},{"$f":"'Базовые цены с учетом расхода'!B11","v":7},{"$f":"'Базовые цены с учетом расхода'!C11","v":0},{"$f":"'Базовые цены с учетом расхода'!D11","v":7},null,{"$f":"'Базовые цены с учетом расхода'!I11","v":0},"sum","IsZPR",null,{"$f":"'Базовые цены с учетом расхода'!F11","v":0}]
[null,null,null,{"$f":"'Базовые цены за единицу'!C11","v":0},{"$f":"'Базовые цены за единицу'!E11","v":124.36},null,null,{"$f":"'Базовые цены с учетом расхода'!E11","v":1},8.8699999999999992,{"$f":"'Базовые цены с учетом расхода'!K11","v":9.5352500000000007E-2},"sum_b","IsZPM"]
[null,"Зарплата рабочих"]
[null,"Эксплуатация машин",null,null,null,7]
[null,"в т.ч. зарплата машинистов",null,null,null,1]
[null,"Материалы"]
[null,"в т.ч. Вспомогательные материалы от стоимости материалов"]
[null,"в т.ч. Вспомогательные ненормируемые материалы",null,null,null,null,null,null,null,null,"NenormMatOtZPR","IsMater"]
[null,"в т.ч. Ненормированная з.п. рабочих"]
[null,"в т.ч. Ненормированная стоимость эксплуатации машин"]
[null,"в т.ч. Ненормированная оплата механизаторов"]
[null,"Накладные расходы",85.5,null,null,{"$f":"IF('Базовые цены с учетом расхода'!N11>0,'Базовые цены с учетом расхода'!N11,IF('Базовые цены с учетом расхода'!N11<0,'Базовые цены с учетом расхода'!N11,\"\"))","v":1},null,null,null,null,null,"Nakl"]
[null,"НР от ЗПР",null,null,null,{"$f":"IF('Базовые цены с учетом расхода'!P11>0,'Базовые цены с учетом расхода'!P11,IF('Базовые цены с учетом расхода'!P11<0,'Базовые цены с учетом расхода'!P11,\"\"))","v":""},null,null,null,null,null,"Nakl_ZPR"]
[null,"НР от ЗПМ",85.5,null,null,{"$f":"IF('Базовые цены с учетом расхода'!Q11>0,'Базовые цены с учетом расхода'!Q11,IF('Базовые цены с учетом расхода'!Q11<0,'Базовые цены с учетом расхода'!Q11,\"\"))","v":1},null,null,null,null,null,"Nakl_ZPM"]
[null,"Сметная прибыль",42.5,null,null,{"$f":"IF('Базовые цены с учетом расхода'!O11>0,'Базовые цены с учетом расхода'!O11,IF('Базовые цены с учетом расхода'!O11<0,'Базовые цены с учетом расхода'!O11,\"\"))","v":""},null,null,null,null,null,"Plan"]
[null,"СП от ЗПР",null,null,null,{"$f":"IF('Базовые цены с учетом расхода'!R11>0,'Базовые цены с учетом расхода'!R11,IF('Базовые цены с учетом расхода'!R11<0,'Базовые цены с учетом расхода'!R11,\"\"))","v":""},null,null,null,null,null,"Plan_ZPR"]
[null,"СП от ЗПМ",42.5,null,null,{"$f":"IF('Базовые цены с учетом расхода'!S11>0,'Базовые цены с учетом расхода'!S11,IF('Базовые цены с учетом расхода'!S11<0,'Базовые цены с учетом расхода'!S11,\"\"))","v":1},null,null,null,null,null,"Plan_ZPM"]
[null,"Всего с НР и СП",null,null,null,{"$f":"ROUND(IF(F120=\"\",0,F120)+IF(F131=\"\",0,F131)+IF(F134=\"\",0,F134),0)","v":8}]
[]
[]
[]
["7.","Е01-02-031-04\nБурение ям глубиной до 2 м бурильно-крановыми машинами на автомобиле, группа грунтов 2, 100 ям",0.23,{"$f":"'Базовые цены за единицу'!B12","v":2426.1799999999998},{"$f":"'Базовые цены за единицу'!D12","v":2276.31},{"$f":"'Базовые цены с учетом расхода'!B12","v":558},{"$f":"'Базовые цены с учетом расхода'!C12","v":34},{"$f":"'Базовые цены с учетом расхода'!D12","v":524},15.2,{"$f":"'Базовые цены с учетом расхода'!I12","v":3.496},"sum","IsZPR",null,{"$f":"'Базовые цены с учетом расхода'!F12","v":0}]
[null,null,null,{"$f":"'Базовые цены за единицу'!C12","v":149.87},{"$f":"'Базовые цены за единицу'!E12","v":232.59},null,null,{"$f":"'Базовые цены с учетом расхода'!E12","v":53},16.59,{"$f":"'Базовые цены с учетом расхода'!K12","v":3.8157000000000001},"sum_b","IsZPM"]
[null,"Зарплата рабочих",null,null,null,34]
[null,"Эксплуатация машин",null,null,null,524]
[null,"в т.ч. зарплата машинистов",null,null,null,53]
[null,"Материалы"]
[null,"в т.ч. Вспомогательные материалы от стоимости материалов"]
[null,"в т.ч. Вспомогательные ненормируемые материалы",null,null,null,null,null,null,null,null,"NenormMatOtZPR","IsMater"]
[null,"в т.ч. Ненормированная з.п. рабочих"]
[null,"в т.ч. Ненормированная стоимость эксплуатации машин"]
[null,"в т.ч. Ненормированная оплата механизаторов"]
[null,"Накладные расходы",72,null,null,{"$f":"IF('Базовые цены с учетом расхода'!N12>0,'Базовые цены с учетом расхода'!N12,IF('Базовые цены с учетом расхода'!N12<0,'Базовые цены с учетом расхода'!N12,\"\"))","v":63},null,null,null,null,null,"Nakl"]
[null,"НР от ЗПР",72,null,null,{"$f":"IF('Базовые цены с учетом расхода'!P12>0,'Базовые цены с учетом расхода'!P12,IF('Базовые цены с учетом расхода'!P12<0,'Базовые цены с учетом расхода'!P12,\"\"))","v":25},null,null,null,null,null,"Nakl_ZPR"]
[null,"НР от ЗПМ",72,null,null,{"$f":"IF('Базовые цены с учетом расхода'!Q12>0,'Базовые цены с учетом расхода'!Q12,IF('Базовые цены с учетом расхода'!Q12<0,'Базовые цены с учетом расхода'!Q12,\"\"))","v":39},null,null,null,null,null,"Nakl_ZPM"]
[null,"Сметная прибыль",38.25,null,null,{"$f":"IF('Базовые цены с учетом расхода'!O12>0,'Базовые цены с учетом расхода'!O12,IF('Базовые цены с учетом расхода'!O12<0,'Базовые цены с учетом расхода'!O12,\"\"))","v":33},null,null,null,null,null,"Plan"]
[null,"СП от ЗПР",38.25,null,null,{"$f":"IF('Базовые цены с учетом расхода'!R12>0,'Базовые цены с учетом расхода'!R12,IF('Базовые цены с учетом расхода'!R12<0,'Базовые цены с учетом расхода'!R12,\"\"))","v":13},null,null,null,null,null,"Plan_ZPR"]
[null,"СП от ЗПМ",38.25,null,null,{"$f":"IF('Базовые цены с учетом расхода'!S12>0,'Базовые цены с учетом расхода'!S12,IF('Базовые цены с учетом расхода'!S12<0,'Базовые цены с учетом расхода'!S12,\"\"))","v":20},null,null,null,null,null,"Plan_ZPM"]
[null,"Всего с НР и СП",null,null,null,{"$f":"ROUND(IF(F141=\"\",0,F141)+IF(F152=\"\",0,F152)+IF(F155=\"\",0,F155),0)","v":654}]
[]
["8.","Е06-01-001-13\nУстройство фундаментов-столбов бетонных, 100 м3 бетона, бутобетона и железобетона в деле",0.01,{"$f":"'Базовые цены за единицу'!B13","v":14758.76},{"$f":"'Базовые цены за единицу'!D13","v":1934.99},{"$f":"'Базовые цены с учетом расхода'!B13","v":147},{"$f":"'Базовые цены с учетом расхода'!C13","v":64},{"$f":"'Базовые цены с учетом расхода'!D13","v":19},598.26,{"$f":"'Базовые цены с учетом расхода'!I13","v":5.9825999999999997},"sum","IsZPR",null,{"$f":"'Базовые цены с учетом расхода'!F13","v":64}]
[null,null,null,{"$f":"'Базовые цены за единицу'!C13","v":6449.24},{"$f":"'Базовые цены за единицу'!E13","v":302.95},null,null,{"$f":"'Базовые цены с учетом расхода'!E13","v":3},18.62,{"$f":"'Базовые цены с учетом расхода'!K13","v":0.1862},"sum_b","IsZPM"]
[null,"Зарплата рабочих",null,null,null,64]
[null,"Эксплуатация машин",null,null,null,19]
[null,"в т.ч. зарплата машинистов",null,null,null,3]
[null,"Материалы",null,null,null,64]
[null,"в т.ч. Вспомогательные материалы от стоимости материалов"]
[null,"в т.ч. Вспомогательные ненормируемые материалы",null,null,null,null,null,null,null,null,"NenormMatOtZPR","IsMater"]
[null,"в т.ч. Ненормированная з.п. рабочих"]
[null,"в т.ч. Ненормированная стоимость эксплуатации машин"]
[null,"в т.ч. Ненормированная оплата механизаторов"]
[null,"Накладные расходы",94.5,null,null,{"$f":"IF('Базовые цены с учетом расхода'!N13>0,'Базовые цены с учетом расхода'!N13,IF('Базовые цены с учетом расхода'!N13<0,'Базовые цены с учетом расхода'!N13,\"\"))","v":63},null,null,null,null,null,"Nakl"]
[null,"НР от ЗПР",94.5,null,null,{"$f":"IF('Базовые цены с учетом расхода'!P13>0,'Базовые цены с учетом расхода'!P13,IF('Базовые цены с учетом расхода'!P13<0,'Базовые цены с учетом расхода'!P13,\"\"))","v":61},null,null,null,null,null,"Nakl_ZPR"]
[null,"НР от ЗПМ",94.5,null,null,{"$f":"IF('Базовые цены с учетом расхода'!Q13>0,'Базовые цены с учетом расхода'!Q13,IF('Базовые цены с учетом расхода'!Q13<0,'Базовые цены с учетом расхода'!Q13,\"\"))","v":3},null,null,null,null,null,"Nakl_ZPM"]
[null,"Сметная прибыль",55.25,null,null,{"$f":"IF('Базовые цены с учетом расхода'!O13>0,'Базовые цены с учетом расхода'!O13,IF('Базовые цены с учетом расхода'!O13<0,'Базовые цены с учетом расхода'!O13,\"\"))","v":37},null,null,null,null,null,"Plan"]
[null,"СП от ЗПР",55.25,null,null,{"$f":"IF('Базовые цены с учетом расхода'!R13>0,'Базовые цены с учетом расхода'!R13,IF('Базовые цены с учетом расхода'!R13<0,'Базовые цены с учетом расхода'!R13,\"\"))","v":36},null,null,null,null,null,"Plan_ZPR"]
[null,"СП от ЗПМ",55.25,null,null,{"$f":"IF('Базовые цены с учетом расхода'!S13>0,'Базовые цены с учетом расхода'!S13,IF('Базовые цены с учетом расхода'!S13<0,'Базовые цены с учетом расхода'!S13,\"\"))","v":2},null,null,null,null,null,"Plan_ZPM"]
[null,"Всего с НР и СП",null,null,null,{"$f":"ROUND(IF(F160=\"\",0,F160)+IF(F171=\"\",0,F171)+IF(F174=\"\",0,F174),0)","v":247}]
[]
["9.","С401-0003\nБетон тяжелый, класс В7,5 (М100), м3",1.02,{"$f":"'Базовые цены за единицу'!B14","v":551},{"$f":"'Базовые цены за единицу'!D14","v":0},{"$f":"'Базовые цены с учетом расхода'!B14","v":562},{"$f":"'Базовые цены с учетом расхода'!C14","v":0},{"$f":"'Базовые цены с учетом расхода'!D14","v":0},null,{"$f":"'Базовые цены с учетом расхода'!I14","v":0},"sum","IsZPR",null,{"$f":"'Базовые цены с учетом расхода'!F14","v":562}]
[null,null,null,{"$f":"'Базовые цены за единицу'!C14","v":0},{"$f":"'Базовые цены за единицу'!E14","v":0},null,null,{"$f":"'Базовые цены с учетом расхода'!E14","v":0},null,{"$f":"'Базовые цены с учетом расхода'!K14","v":0},"sum_b","IsZPM"]
[null,{"$f":"IF(ROUND((1*1.02)/1,9)=C179,\"Объем: 1*1,02\",\"\")","v":"Объем: 1*1,02"}]
[null,"Зарплата рабочих"]
[null,"Эксплуатация машин"]
[null,"в т.ч. зарплата машинистов"]
[null,"Материалы",null,null,null,562]
[null,"в т.ч. Вспомогательные материалы от стоимости материалов"]
[null,"в т.ч. Вспомогательные ненормируемые материалы",null,null,null,null,null,null,null,null,"NenormMatOtZPR","IsMater"]
[null,"в т.ч. Ненормированная з.п. рабочих"]
[null,"в т.ч. Ненормированная стоимость эксплуатации машин"]
[null,"в т.ч. Ненормированная оплата механизаторов"]
[null,"Накладные расходы",null,null,null,{"$f":"IF('Базовые цены с учетом расхода'!N14>0,'Базовые цены с учетом расхода'!N14,IF('Базовые цены с учетом расхода'!N14<0,'Базовые цены с учетом расхода'!N14,\"\"))","v":""},null,null,null,null,null,"Nakl"]
[null,"НР от ЗПР",null,null,null,{"$f":"IF('Базовые цены с учетом расхода'!P14>0,'Базовые цены с учетом расхода'!P14,IF('Базовые цены с учетом расхода'!P14<0,'Базовые цены с учетом расхода'!P14,\"\"))","v":""},null,null,null,null,null,"Nakl_ZPR"]
[null,"НР от ЗПМ",null,null,null,{"$f":"IF('Базовые цены с учетом расхода'!Q14>0,'Базовые цены с учетом расхода'!Q14,IF('Базовые цены с учетом расхода'!Q14<0,'Базовые цены с учетом расхода'!Q14,\"\"))","v":""},null,null,null,null,null,"Nakl_ZPM"]
[null,"Сметная прибыль",null,null,null,{"$f":"IF('Базовые цены с учетом расхода'!O14>0,'Базовые цены с учетом расхода'!O14,IF('Базовые цены с учетом расхода'!O14<0,'Базовые цены с учетом расхода'!O14,\"\"))","v":""},null,null,null,null,null,"Plan"]
[null,"СП от ЗПР",null,null,null,{"$f":"IF('Базовые цены с учетом расхода'!R14>0,'Базовые цены с учетом расхода'!R14,IF('Базовые цены с учетом расхода'!R14<0,'Базовые цены с учетом расхода'!R14,\"\"))","v":""},null,null,null,null,null,"Plan_ZPR"]
[null,"СП от ЗПМ",null,null,null,{"$f":"IF('Базовые цены с учетом расхода'!S14>0,'Базовые цены с учетом расхода'!S14,IF('Базовые цены с учетом расхода'!S14<0,'Базовые цены с учетом расхода'!S14,\"\"))","v":""},null,null,null,null,null,"Plan_ZPM"]
[]
["10.","Е09-03-012-12\nМонтаж опорных стоек для пролетов до 24 м, 1 т конструкций",0.63,{"$f":"'Базовые цены за единицу'!B15","v":549.95000000000005},{"$f":"'Базовые цены за единицу'!D15","v":299.82},{"$f":"'Базовые цены с учетом расхода'!B15","v":347},{"$f":"'Базовые цены с учетом расхода'!C15","v":47},{"$f":"'Базовые цены с учетом расхода'!D15","v":189},6.59,{"$f":"'Базовые цены с учетом расхода'!I15","v":4.1516999999999999},"sum","IsZPR",null,{"$f":"'Базовые цены с учетом расхода'!F15","v":111}]
[null,null,null,{"$f":"'Базовые цены за единицу'!C15","v":74.73},{"$f":"'Базовые цены за единицу'!E15","v":36.18},null,null,{"$f":"'Базовые цены с учетом расхода'!E15","v":23},2.09,{"$f":"'Базовые цены с учетом расхода'!K15","v":1.3167},"sum_b","IsZPM"]
[null,"Зарплата рабочих",null,null,null,47]
[null,"Эксплуатация машин",null,null,null,189]
[null,"в т.ч. зарплата машинистов",null,null,null,23]
[null,"Материалы",null,null,null,111]
[null,"в т.ч. Вспомогательные материалы от стоимости материалов"]
[null,"в т.ч. Вспомогательные ненормируемые материалы",null,null,null,null,null,null,null,null,"NenormMatOtZPR","IsMater"]
[null,"в т.ч. Ненормированная з.п. рабочих"]
[null,"в т.ч. Ненормированная стоимость эксплуатации машин"]
[null,"в т.ч. Ненормированная оплата механизаторов"]
[null,"Накладные расходы",81,null,null,{"$f":"IF('Базовые цены с учетом расхода'!N15>0,'Базовые цены с учетом расхода'!N15,IF('Базовые цены с учетом расхода'!N15<0,'Базовые цены с учетом расхода'!N15,\"\"))","v":57},null,null,null,null,null,"Nakl"]
[null,"НР от ЗПР",81,null,null,{"$f":"IF('Базовые цены с учетом расхода'!P15>0,'Базовые цены с учетом расхода'!P15,IF('Базовые цены с учетом расхода'!P15<0,'Базовые цены с учетом расхода'!P15,\"\"))","v":38},null,null,null,null,null,"Nakl_ZPR"]
[null,"НР от ЗПМ",81,null,null,{"$f":"IF('Базовые цены с учетом расхода'!Q15>0,'Базовые цены с учетом расхода'!Q15,IF('Базовые цены с учетом расхода'!Q15<0,'Базовые цены с учетом расхода'!Q15,\"\"))","v":18},null,null,null,null,null,"Nakl_ZPM"]
[null,"Сметная прибыль",72.25,null,null,{"$f":"IF('Базовые цены с учетом расхода'!O15>0,'Базовые цены с учетом расхода'!O15,IF('Базовые цены с учетом расхода'!O15<0,'Базовые цены с учетом расхода'!O15,\"\"))","v":51},null,null,null,null,null,"Plan"]
[null,"СП от ЗПР",72.25,null,null,{"$f":"IF('Базовые цены с учетом расхода'!R15>0,'Базовые цены с учетом расхода'!R15,IF('Базовые цены с учетом расхода'!R15<0,'Базовые цены с учетом расхода'!R15,\"\"))","v":34},null,null,null,null,null,"Plan_ZPR"]
[null,"СП от ЗПМ",72.25,null,null,{"$f":"IF('Базовые цены с учетом расхода'!S15>0,'Базовые цены с учетом расхода'!S15,IF('Базовые цены с учетом расхода'!S15<0,'Базовые цены с учетом расхода'!S15,\"\"))","v":16},null,null,null,null,null,"Plan_ZPM"]
[null,"Всего с НР и СП",null,null,null,{"$f":"ROUND(IF(F198=\"\",0,F198)+IF(F209=\"\",0,F209)+IF(F212=\"\",0,F212),0)","v":455}]
[]
["11.","С201-0763\nОтдельные конструктивные элементы зданий и сооружений с преобладанием гнутосварных профилей и круглых труб, средняя масса сборочной единицы до 0,1 т, т",0.63,{"$f":"'Базовые цены за единицу'!B16","v":13810},{"$f":"'Базовые цены за единицу'!D16","v":0},{"$f":"'Базовые цены с учетом расхода'!B16","v":8700},{"$f":"'Базовые цены с учетом расхода'!C16","v":0},{"$f":"'Базовые цены с учетом расхода'!D16","v":0},null,{"$f":"'Базовые цены с учетом расхода'!I16","v":0},"sum","IsZPR",null,{"$f":"'Базовые цены с учетом расхода'!F16","v":8700}]
[null,null,null,{"$f":"'Базовые цены за единицу'!C16","v":0},{"$f":"'Базовые цены за единицу'!E16","v":0},null,null,{"$f":"'Базовые цены с учетом расхода'!E16","v":0},null,{"$f":"'Базовые цены с учетом расхода'!K16","v":0},"sum_b","IsZPM"]
[null,"Зарплата рабочих"]
[null,"Эксплуатация машин"]
[null,"в т.ч. зарплата машинистов"]
[null,"Материалы",null,null,null,8700]
[null,"в т.ч. Вспомогательные материалы от стоимости материалов"]
[null,"в т.ч. Вспомогательные ненормируемые материалы",null,null,null,null,null,null,null,null,"NenormMatOtZPR","IsMater"]
[null,"в т.ч. Ненормированная з.п. рабочих"]
[null,"в т.ч. Ненормированная стоимость эксплуатации машин"]
[null,"в т.ч. Ненормированная оплата механизаторов"]
[null,"Накладные расходы",null,null,null,{"$f":"IF('Базовые цены с учетом расхода'!N16>0,'Базовые цены с учетом расхода'!N16,IF('Базовые цены с учетом расхода'!N16<0,'Базовые цены с учетом расхода'!N16,\"\"))","v":""},null,null,null,null,null,"Nakl"]
[null,"НР от ЗПР",null,null,null,{"$f":"IF('Базовые цены с учетом расхода'!P16>0,'Базовые цены с учетом расхода'!P16,IF('Базовые цены с учетом расхода'!P16<0,'Базовые цены с учетом расхода'!P16,\"\"))","v":""},null,null,null,null,null,"Nakl_ZPR"]
[null,"НР от ЗПМ",null,null,null,{"$f":"IF('Базовые цены с учетом расхода'!Q16>0,'Базовые цены с учетом расхода'!Q16,IF('Базовые цены с учетом расхода'!Q16<0,'Базовые цены с учетом расхода'!Q16,\"\"))","v":""},null,null,null,null,null,"Nakl_ZPM"]
[null,"Сметная прибыль",null,null,null,{"$f":"IF('Базовые цены с учетом расхода'!O16>0,'Базовые цены с учетом расхода'!O16,IF('Базовые цены с учетом расхода'!O16<0,'Базовые цены с учетом расхода'!O16,\"\"))","v":""},null,null,null,null,null,"Plan"]
[null,"СП от ЗПР",null,null,null,{"$f":"IF('Базовые цены с учетом расхода'!R16>0,'Базовые цены с учетом расхода'!R16,IF('Базовые цены с учетом расхода'!R16<0,'Базовые цены с учетом расхода'!R16,\"\"))","v":""},null,null,null,null,null,"Plan_ZPR"]
[null,"СП от ЗПМ",null,null,null,{"$f":"IF('Базовые цены с учетом расхода'!S16>0,'Базовые цены с учетом расхода'!S16,IF('Базовые цены с учетом расхода'!S16<0,'Базовые цены с учетом расхода'!S16,\"\"))","v":""},null,null,null,null,null,"Plan_ZPM"]
[]
["12.","Е13-03-002-04\nОгрунтовка металлических поверхностей за один раз грунтовкой ГФ-021, 100 м2 окрашиваемой поверхности",0.4,{"$f":"'Базовые цены за единицу'!B17","v":331.98},{"$f":"'Базовые цены за единицу'!D17","v":10.15},{"$f":"'Базовые цены с учетом расхода'!B17","v":133},{"$f":"'Базовые цены с учетом расхода'!C17","v":29},{"$f":"'Базовые цены с учетом расхода'!D17","v":4},5.31,{"$f":"'Базовые цены с учетом расхода'!I17","v":2.1240000000000001},"sum","IsZPR",null,{"$f":"'Базовые цены с учетом расхода'!F17","v":100}]
[null,null,null,{"$f":"'Базовые цены за единицу'!C17","v":71.47},{"$f":"'Базовые цены за единицу'!E17","v":0.12},null,null,{"$f":"'Базовые цены с учетом расхода'!E17","v":0},0.01,{"$f":"'Базовые цены с учетом расхода'!K17","v":4.0000000000000001E-3},"sum_b","IsZPM"]
[null,{"$f":"IF(ROUND((20*2)/100,9)=C235,\"Объем: 20*2\",\"\")","v":"Объем: 20*2"}]
[null,"Зарплата рабочих",null,null,null,29]
[null,"Эксплуатация машин",null,null,null,4]
[null,"в т.ч. зарплата машинистов"]
[null,"Материалы",null,null,null,100]
[null,"в т.ч. Вспомогательные материалы от стоимости материалов"]
[null,"в т.ч. Вспомогательные ненормируемые материалы",null,null,null,null,null,null,null,null,"NenormMatOtZPR","IsMater"]
[null,"в т.ч. Ненормированная з.п. рабочих"]
[null,"в т.ч. Ненормированная стоимость эксплуатации машин"]
[null,"в т.ч. Ненормированная оплата механизаторов"]
[null,"Накладные расходы",81,null,null,{"$f":"IF('Базовые цены с учетом расхода'!N17>0,'Базовые цены с учетом расхода'!N17,IF('Базовые цены с учетом расхода'!N17<0,'Базовые цены с учетом расхода'!N17,\"\"))","v":23},null,null,null,null,null,"Nakl"]
[null,"НР от ЗПР",81,null,null,{"$f":"IF('Базовые цены с учетом расхода'!P17>0,'Базовые цены с учетом расхода'!P17,IF('Базовые цены с учетом расхода'!P17<0,'Базовые цены с учетом расхода'!P17,\"\"))","v":23},null,null,null,null,null,"Nakl_ZPR"]
[null,"НР от ЗПМ",null,null,null,{"$f":"IF('Базовые цены с учетом расхода'!Q17>0,'Базовые цены с учетом расхода'!Q17,IF('Базовые цены с учетом расхода'!Q17<0,'Базовые цены с учетом расхода'!Q17,\"\"))","v":""},null,null,null,null,null,"Nakl_ZPM"]
[null,"Сметная прибыль",59.5,null,null,{"$f":"IF('Базовые цены с учетом расхода'!O17>0,'Базовые цены с учетом расхода'!O17,IF('Базовые цены с учетом расхода'!O17<0,'Базовые цены с учетом расхода'!O17,\"\"))","v":17},null,null,null,null,null,"Plan"]
[null,"СП от ЗПР",59.5,null,null,{"$f":"IF('Базовые цены с учетом расхода'!R17>0,'Базовые цены с учетом расхода'!R17,IF('Базовые цены с учетом расхода'!R17<0,'Базовые цены с учетом расхода'!R17,\"\"))","v":17},null,null,null,null,null,"Plan_ZPR"]
[null,"СП от ЗПМ",null,null,null,{"$f":"IF('Базовые цены с учетом расхода'!S17>0,'Базовые цены с учетом расхода'!S17,IF('Базовые цены с учетом расхода'!S17<0,'Базовые цены с учетом расхода'!S17,\"\"))","v":""},null,null,null,null,null,"Plan_ZPM"]
[null,"Всего с НР и СП",null,null,null,{"$f":"ROUND(IF(F235=\"\",0,F235)+IF(F247=\"\",0,F247)+IF(F250=\"\",0,F250),0)","v":173}]
[]
["13.","Е13-03-004-26\nОкраска металлических огрунтованных поверхностей эмалью ПФ-115, 100 м2 окрашиваемой поверхности",0.4,{"$f":"'Базовые цены за единицу'!B18","v":439.21},{"$f":"'Базовые цены за единицу'!D18","v":6.8},{"$f":"'Базовые цены с учетом расхода'!B18","v":176},{"$f":"'Базовые цены с учетом расхода'!C18","v":18},{"$f":"'Базовые цены с учетом расхода'!D18","v":3},3.83,{"$f":"'Базовые цены с учетом расхода'!I18","v":1.532},"sum","IsZPR",null,{"$f":"'Базовые цены с учетом расхода'!F18","v":155}]
[null,null,null,{"$f":"'Базовые цены за единицу'!C18","v":43.93},{"$f":"'Базовые цены за единицу'!E18","v":0.12},null,null,{"$f":"'Базовые цены с учетом расхода'!E18","v":0},0.01,{"$f":"'Базовые цены с учетом расхода'!K18","v":4.0000000000000001E-3},"sum_b","IsZPM"]
[null,{"$f":"IF(ROUND((20*2)/100,9)=C255,\"Объем: 20*2\",\"\")","v":"Объем: 20*2"}]
[null,"Зарплата рабочих",null,null,null,18]
[null,"Эксплуатация машин",null,null,null,3]
[null,"в т.ч. зарплата машинистов"]
[null,"Материалы",null,null,null,155]
[null,"в т.ч. Вспомогательные материалы от стоимости материалов"]
[null,"в т.ч. Вспомогательные ненормируемые материалы",null,null,null,null,null,null,null,null,"NenormMatOtZPR","IsMater"]
[null,"в т.ч. Ненормированная з.п. рабочих"]
[null,"в т.ч. Ненормированная стоимость эксплуатации машин"]
[null,"в т.ч. Ненормированная оплата механизаторов"]
[null,"Накладные расходы",81,null,null,{"$f":"IF('Базовые цены с учетом расхода'!N18>0,'Базовые цены с учетом расхода'!N18,IF('Базовые цены с учетом расхода'!N18<0,'Базовые цены с учетом расхода'!N18,\"\"))","v":15},null,null,null,null,null,"Nakl"]
[null,"НР от ЗПР",81,null,null,{"$f":"IF('Базовые цены с учетом расхода'!P18>0,'Базовые цены с учетом расхода'!P18,IF('Базовые цены с учетом расхода'!P18<0,'Базовые цены с учетом расхода'!P18,\"\"))","v":14},null,null,null,null,null,"Nakl_ZPR"]
[null,"НР от ЗПМ",null,null,null,{"$f":"IF('Базовые цены с учетом расхода'!Q18>0,'Базовые цены с учетом расхода'!Q18,IF('Базовые цены с учетом расхода'!Q18<0,'Базовые цены с учетом расхода'!Q18,\"\"))","v":""},null,null,null,null,null,"Nakl_ZPM"]
[null,"Сметная прибыль",59.5,null,null,{"$f":"IF('Базовые цены с учетом расхода'!O18>0,'Базовые цены с учетом расхода'!O18,IF('Базовые цены с учетом расхода'!O18<0,'Базовые цены с учетом расхода'!O18,\"\"))","v":11},null,null,null,null,null,"Plan"]
[null,"СП от ЗПР",59.5,null,null,{"$f":"IF('Базовые цены с учетом расхода'!R18>0,'Базовые цены с учетом расхода'!R18,IF('Базовые цены с учетом расхода'!R18<0,'Базовые цены с учетом расхода'!R18,\"\"))","v":10},null,null,null,null,null,"Plan_ZPR"]
[null,"СП от ЗПМ",null,null,null,{"$f":"IF('Базовые цены с учетом расхода'!S18>0,'Базовые цены с учетом расхода'!S18,IF('Базовые цены с учетом расхода'!S18<0,'Базовые цены с учетом расхода'!S18,\"\"))","v":""},null,null,null,null,null,"Plan_ZPM"]
[null,"Всего с НР и СП",null,null,null,{"$f":"ROUND(IF(F255=\"\",0,F255)+IF(F267=\"\",0,F267)+IF(F270=\"\",0,F270),0)","v":202}]
[]
["14.","Е24-01-001-03\nПрокладка трубопроводов в каналах и надземная при условном давлении 0,6 МПа, температуре 115°С, диаметр труб 80 мм, 1 км трубопровода",0.25,{"$f":"'Базовые цены за единицу'!B19","v":21914.95},{"$f":"'Базовые цены за единицу'!D19","v":11594.41},{"$f":"'Базовые цены с учетом расхода'!B19","v":5479},{"$f":"'Базовые цены с учетом расхода'!C19","v":1395},{"$f":"'Базовые цены с учетом расхода'!D19","v":2899},459,{"$f":"'Базовые цены с учетом расхода'!I19","v":114.75},"sum","IsZPR",null,{"$f":"'Базовые цены с учетом расхода'!F19","v":1185}]
[null,null,null,{"$f":"'Базовые цены за единицу'!C19","v":5581.44},{"$f":"'Базовые цены за единицу'!E19","v":1104.69},null,null,{"$f":"'Базовые цены с учетом расхода'!E19","v":276},77.849999999999994,{"$f":"'Базовые цены с учетом расхода'!K19","v":19.462499999999999},"sum_b","IsZPM"]
[null,"Зарплата рабочих",null,null,null,1395]
[null,"Эксплуатация машин",null,null,null,2899]
[null,"в т.ч. зарплата машинистов",null,null,null,276]
[null,"Материалы",null,null,null,1185]
[null,"в т.ч. Вспомогательные материалы от стоимости материалов"]
[null,"в т.ч. Вспомогательные ненормируемые материалы",null,null,null,null,null,null,null,null,"NenormMatOtZPR","IsMater"]
[null,"в т.ч. Ненормированная з.п. рабочих"]
[null,"в т.ч. Ненормированная стоимость эксплуатации машин"]
[null,"в т.ч. Ненормированная оплата механизаторов"]
[null,"Накладные расходы",117,null,null,{"$f":"IF('Базовые цены с учетом расхода'!N19>0,'Базовые цены с учетом расхода'!N19,IF('Базовые цены с учетом расхода'!N19<0,'Базовые цены с учетом расхода'!N19,\"\"))","v":1955},null,null,null,null,null,"Nakl"]
[null,"НР от ЗПР",117,null,null,{"$f":"IF('Базовые цены с учетом расхода'!P19>0,'Базовые цены с учетом расхода'!P19,IF('Базовые цены с учетом расхода'!P19<0,'Базовые цены с учетом расхода'!P19,\"\"))","v":1633},null,null,null,null,null,"Nakl_ZPR"]
[null,"НР от ЗПМ",117,null,null,{"$f":"IF('Базовые цены с учетом расхода'!Q19>0,'Базовые цены с учетом расхода'!Q19,IF('Базовые цены с учетом расхода'!Q19<0,'Базовые цены с учетом расхода'!Q19,\"\"))","v":323},null,null,null,null,null,"Nakl_ZPM"]
[null,"Сметная прибыль",75.650000000000006,null,null,{"$f":"IF('Базовые цены с учетом расхода'!O19>0,'Базовые цены с учетом расхода'!O19,IF('Базовые цены с учетом расхода'!O19<0,'Базовые цены с учетом расхода'!O19,\"\"))","v":1264},null,null,null,null,null,"Plan"]
[null,"СП от ЗПР",75.650000000000006,null,null,{"$f":"IF('Базовые цены с учетом расхода'!R19>0,'Базовые цены с учетом расхода'!R19,IF('Базовые цены с учетом расхода'!R19<0,'Базовые цены с учетом расхода'!R19,\"\"))","v":1056},null,null,null,null,null,"Plan_ZPR"]
[null,"СП от ЗПМ",75.650000000000006,null,null,{"$f":"IF('Базовые цены с учетом расхода'!S19>0,'Базовые цены с учетом расхода'!S19,IF('Базовые цены с учетом расхода'!S19<0,'Базовые цены с учетом расхода'!S19,\"\"))","v":209},null,null,null,null,null,"Plan_ZPM"]
[null,"Всего с НР и СП",null,null,null,{"$f":"ROUND(IF(F275=\"\",0,F275)+IF(F286=\"\",0,F286)+IF(F289=\"\",0,F289),0)","v":8698}]
[]
["15.","С103-0155\nТрубы стальные электросварные прямошовные со снятой фаской из стали марок БСт2кп-БСт4кп и БСт2пс-БСт4пс наружный диаметр 89 мм, толщина стенки 4,0 мм, м",252.5,{"$f":"'Базовые цены за единицу'!B20","v":54.7},{"$f":"'Базовые цены за единицу'!D20","v":0},{"$f":"'Базовые цены с учетом расхода'!B20","v":13812},{"$f":"'Базовые цены с учетом расхода'!C20","v":0},{"$f":"'Базовые цены с учетом расхода'!D20","v":0},null,{"$f":"'Базовые цены с учетом расхода'!I20","v":0},"sum","IsZPR",null,{"$f":"'Базовые цены с учетом расхода'!F20","v":13812}]
[null,null,null,{"$f":"'Базовые цены за единицу'!C20","v":0},{"$f":"'Базовые цены за единицу'!E20","v":0},null,null,{"$f":"'Базовые цены с учетом расхода'!E20","v":0},null,{"$f":"'Базовые цены с учетом расхода'!K20","v":0},"sum_b","IsZPM"]
[null,{"$f":"IF(ROUND((1.01*250)/1,9)=C294,\"Объем: 1,01*250\",\"\")","v":"Объем: 1,01*250"}]
[null,"Зарплата рабочих"]
[null,"Эксплуатация машин"]
[null,"в т.ч. зарплата машинистов"]
[null,"Материалы",null,null,null,13812]
[null,"в т.ч. Вспомогательные материалы от стоимости материалов"]
[null,"в т.ч. Вспомогательные ненормируемые материалы",null,null,null,null,null,null,null,null,"NenormMatOtZPR","IsMater"]
[null,"в т.ч. Ненормированная з.п. рабочих"]
[null,"в т.ч. Ненормированная стоимость эксплуатации машин"]
[null,"в т.ч. Ненормированная оплата механизаторов"]
[null,"Накладные расходы",null,null,null,{"$f":"IF('Базовые цены с учетом расхода'!N20>0,'Базовые цены с учетом расхода'!N20,IF('Базовые цены с учетом расхода'!N20<0,'Базовые цены с учетом расхода'!N20,\"\"))","v":""},null,null,null,null,null,"Nakl"]
[null,"НР от ЗПР",null,null,null,{"$f":"IF('Базовые цены с учетом расхода'!P20>0,'Базовые цены с учетом расхода'!P20,IF('Базовые цены с учетом расхода'!P20<0,'Базовые цены с учетом расхода'!P20,\"\"))","v":""},null,null,null,null,null,"Nakl_ZPR"]
[null,"НР от ЗПМ",null,null,null,{"$f":"IF('Базовые цены с учетом расхода'!Q20>0,'Базовые цены с учетом расхода'!Q20,IF('Базовые цены с учетом расхода'!Q20<0,'Базовые цены с учетом расхода'!Q20,\"\"))","v":""},null,null,null,null,null,"Nakl_ZPM"]
[null,"Сметная прибыль",null,null,null,{"$f":"IF('Базовые цены с учетом расхода'!O20>0,'Базовые цены с учетом расхода'!O20,IF('Базовые цены с учетом расхода'!O20<0,'Базовые цены с учетом расхода'!O20,\"\"))","v":""},null,null,null,null,null,"Plan"]
[null,"СП от ЗПР",null,null,null,{"$f":"IF('Базовые цены с учетом расхода'!R20>0,'Базовые цены с учетом расхода'!R20,IF('Базовые цены с учетом расхода'!R20<0,'Базовые цены с учетом расхода'!R20,\"\"))","v":""},null,null,null,null,null,"Plan_ZPR"]
[null,"СП от ЗПМ",null,null,null,{"$f":"IF('Базовые цены с учетом расхода'!S20>0,'Базовые цены с учетом расхода'!S20,IF('Базовые цены с учетом расхода'!S20<0,'Базовые цены с учетом расхода'!S20,\"\"))","v":""},null,null,null,null,null,"Plan_ZPM"]
[]
["16.","С507-1979\nОтводы 90 град. с радиусом кривизны R=1,5 Ду на Ру до 16 МПа (160 кгс/см2), диаметром условного прохода 80 мм, наружным диаметром 89 мм, толщиной стенки 3,5 мм, шт.",18,{"$f":"'Базовые цены за единицу'!B21","v":42.3},{"$f":"'Базовые цены за единицу'!D21","v":0},{"$f":"'Базовые цены с учетом расхода'!B21","v":761},{"$f":"'Базовые цены с учетом расхода'!C21","v":0},{"$f":"'Базовые цены с учетом расхода'!D21","v":0},null,{"$f":"'Базовые цены с учетом расхода'!I21","v":0},"sum","IsZPR",null,{"$f":"'Базовые цены с учетом расхода'!F21","v":761}]
[null,null,null,{"$f":"'Базовые цены за единицу'!C21","v":0},{"$f":"'Базовые цены за единицу'!E21","v":0},null,null,{"$f":"'Базовые цены с учетом расхода'!E21","v":0},null,{"$f":"'Базовые цены с учетом расхода'!K21","v":0},"sum_b","IsZPM"]
[null,"Зарплата рабочих"]
[null,"Эксплуатация машин"]
[null,"в т.ч. зарплата машинистов"]
[null,"Материалы",null,null,null,761]
[null,"в т.ч. Вспомогательные материалы от стоимости материалов"]
[null,"в т.ч. Вспомогательные ненормируемые материалы",null,null,null,null,null,null,null,null,"NenormMatOtZPR","IsMater"]
[null,"в т.ч. Ненормированная з.п. рабочих"]
[null,"в т.ч. Ненормированная стоимость эксплуатации машин"]
[null,"в т.ч. Ненормированная оплата механизаторов"]
[null,"Накладные расходы",null,null,null,{"$f":"IF('Базовые цены с учетом расхода'!N21>0,'Базовые цены с учетом расхода'!N21,IF('Базовые цены с учетом расхода'!N21<0,'Базовые цены с учетом расхода'!N21,\"\"))","v":""},null,null,null,null,null,"Nakl"]
[null,"НР от ЗПР",null,null,null,{"$f":"IF('Базовые цены с учетом расхода'!P21>0,'Базовые цены с учетом расхода'!P21,IF('Базовые цены с учетом расхода'!P21<0,'Базовые цены с учетом расхода'!P21,\"\"))","v":""},null,null,null,null,null,"Nakl_ZPR"]
[null,"НР от ЗПМ",null,null,null,{"$f":"IF('Базовые цены с учетом расхода'!Q21>0,'Базовые цены с учетом расхода'!Q21,IF('Базовые цены с учетом расхода'!Q21<0,'Базовые цены с учетом расхода'!Q21,\"\"))","v":""},null,null,null,null,null,"Nakl_ZPM"]
[null,"Сметная прибыль",null,null,null,{"$f":"IF('Базовые цены с учетом расхода'!O21>0,'Базовые цены с учетом расхода'!O21,IF('Базовые цены с учетом расхода'!O21<0,'Базовые цены с учетом расхода'!O21,\"\"))","v":""},null,null,null,null,null,"Plan"]
[null,"СП от ЗПР",null,null,null,{"$f":"IF('Базовые цены с учетом расхода'!R21>0,'Базовые цены с учетом расхода'!R21,IF('Базовые цены с учетом расхода'!R21<0,'Базовые цены с учетом расхода'!R21,\"\"))","v":""},null,null,null,null,null,"Plan_ZPR"]
[null,"СП от ЗПМ",null,null,null,{"$f":"IF('Базовые цены с учетом расхода'!S21>0,'Базовые цены с учетом расхода'!S21,IF('Базовые цены с учетом расхода'!S21<0,'Базовые цены с учетом расхода'!S21,\"\"))","v":""},null,null,null,null,null,"Plan_ZPM"]
[]
["17.","С507-2293\nПереходы концентрические на Ру до 16 МПа (160 кгс/см2) диаметром условного прохода 100х80 мм, наружным диаметром и толщиной стенки 108х4-89х3,5 мм, шт.",2,{"$f":"'Базовые цены за единицу'!B22","v":74.400000000000006},{"$f":"'Базовые цены за единицу'!D22","v":0},{"$f":"'Базовые цены с учетом расхода'!B22","v":149},{"$f":"'Базовые цены с учетом расхода'!C22","v":0},{"$f":"'Базовые цены с учетом расхода'!D22","v":0},null,{"$f":"'Базовые цены с учетом расхода'!I22","v":0},"sum","IsZPR",null,{"$f":"'Базовые цены с учетом расхода'!F22","v":149}]
[null,null,null,{"$f":"'Базовые цены за единицу'!C22","v":0},{"$f":"'Базовые цены за единицу'!E22","v":0},null,null,{"$f":"'Базовые цены с учетом расхода'!E22","v":0},null,{"$f":"'Базовые цены с учетом расхода'!K22","v":0},"sum_b","IsZPM"]
[null,"Зарплата рабочих"]
[null,"Эксплуатация машин"]
[null,"в т.ч. зарплата машинистов"]
[null,"Материалы",null,null,null,149]
[null,"в т.ч. Вспомогательные материалы от стоимости материалов"]
[null,"в т.ч. Вспомогательные ненормируемые материалы",null,null,null,null,null,null,null,null,"NenormMatOtZPR","IsMater"]
[null,"в т.ч. Ненормированная з.п. рабочих"]
[null,"в т.ч. Ненормированная стоимость эксплуатации машин"]
[null,"в т.ч. Ненормированная оплата механизаторов"]
[null,"Накладные расходы",null,null,null,{"$f":"IF('Базовые цены с учетом расхода'!N22>0,'Базовые цены с учетом расхода'!N22,IF('Базовые цены с учетом расхода'!N22<0,'Базовые цены с учетом расхода'!N22,\"\"))","v":""},null,null,null,null,null,"Nakl"]
[null,"НР от ЗПР",null,null,null,{"$f":"IF('Базовые цены с учетом расхода'!P22>0,'Базовые цены с учетом расхода'!P22,IF('Базовые цены с учетом расхода'!P22<0,'Базовые цены с учетом расхода'!P22,\"\"))","v":""},null,null,null,null,null,"Nakl_ZPR"]
[null,"НР от ЗПМ",null,null,null,{"$f":"IF('Базовые цены с учетом расхода'!Q22>0,'Базовые цены с учетом расхода'!Q22,IF('Базовые цены с учетом расхода'!Q22<0,'Базовые цены с учетом расхода'!Q22,\"\"))","v":""},null,null,null,null,null,"Nakl_ZPM"]
[null,"Сметная прибыль",null,null,null,{"$f":"IF('Базовые цены с учетом расхода'!O22>0,'Базовые цены с учетом расхода'!O22,IF('Базовые цены с учетом расхода'!O22<0,'Базовые цены с учетом расхода'!O22,\"\"))","v":""},null,null,null,null,null,"Plan"]
[null,"СП от ЗПР",null,null,null,{"$f":"IF('Базовые цены с учетом расхода'!R22>0,'Базовые цены с учетом расхода'!R22,IF('Базовые цены с учетом расхода'!R22<0,'Базовые цены с учетом расхода'!R22,\"\"))","v":""},null,null,null,null,null,"Plan_ZPR"]
[null,"СП от ЗПМ",null,null,null,{"$f":"IF('Базовые цены с учетом расхода'!S22>0,'Базовые цены с учетом расхода'!S22,IF('Базовые цены с учетом расхода'!S22<0,'Базовые цены с учетом расхода'!S22,\"\"))","v":""},null,null,null,null,null,"Plan_ZPM"]
[]
["18.","Е13-03-002-04\nОгрунтовка металлических поверхностей за один раз грунтовкой ГФ-021, 100 м2 окрашиваемой поверхности",0.69864999999999999,{"$f":"'Базовые цены за единицу'!B23","v":331.98},{"$f":"'Базовые цены за единицу'!D23","v":10.15},{"$f":"'Базовые цены с учетом расхода'!B23","v":232},{"$f":"'Базовые цены с учетом расхода'!C23","v":50},{"$f":"'Базовые цены с учетом расхода'!D23","v":7},5.31,{"$f":"'Базовые цены с учетом расхода'!I23","v":3.7098314999999999},"sum","IsZPR",null,{"$f":"'Базовые цены с учетом расхода'!F23","v":175}]
[null,null,null,{"$f":"'Базовые цены за единицу'!C23","v":71.47},{"$f":"'Базовые цены за единицу'!E23","v":0.12},null,null,{"$f":"'Базовые цены с учетом расхода'!E23","v":0},0.01,{"$f":"'Базовые цены с учетом расхода'!K23","v":6.9864999999999997E-3},"sum_b","IsZPM"]
[null,{"$f":"IF(ROUND((3.14*0.089*250)/100,9)=C349,\"Объем: 3,14*0,089*250\",\"\")","v":"Объем: 3,14*0,089*250"}]
[null,"Зарплата рабочих",null,null,null,50]
[null,"Эксплуатация машин",null,null,null,7]
[null,"в т.ч. зарплата машинистов"]
[null,"Материалы",null,null,null,175]
[null,"в т.ч. Вспомогательные материалы от стоимости материалов"]
[null,"в т.ч. Вспомогательные ненормируемые материалы",null,null,null,null,null,null,null,null,"NenormMatOtZPR","IsMater"]
[null,"в т.ч. Ненормированная з.п. рабочих"]
[null,"в т.ч. Ненормированная стоимость эксплуатации машин"]
[null,"в т.ч. Ненормированная оплата механизаторов"]
[null,"Накладные расходы",81,null,null,{"$f":"IF('Базовые цены с учетом расхода'!N23>0,'Базовые цены с учетом расхода'!N23,IF('Базовые цены с учетом расхода'!N23<0,'Базовые цены с учетом расхода'!N23,\"\"))","v":41},null,null,null,null,null,"Nakl"]
[null,"НР от ЗПР",81,null,null,{"$f":"IF('Базовые цены с учетом расхода'!P23>0,'Базовые цены с учетом расхода'!P23,IF('Базовые цены с учетом расхода'!P23<0,'Базовые цены с учетом расхода'!P23,\"\"))","v":40},null,null,null,null,null,"Nakl_ZPR"]
[null,"НР от ЗПМ",null,null,null,{"$f":"IF('Базовые цены с учетом расхода'!Q23>0,'Базовые цены с учетом расхода'!Q23,IF('Базовые цены с учетом расхода'!Q23<0,'Базовые цены с учетом расхода'!Q23,\"\"))","v":""},null,null,null,null,null,"Nakl_ZPM"]
[null,"Сметная прибыль",59.5,null,null,{"$f":"IF('Базовые цены с учетом расхода'!O23>0,'Базовые цены с учетом расхода'!O23,IF('Базовые цены с учетом расхода'!O23<0,'Базовые цены с учетом расхода'!O23,\"\"))","v":30},null,null,null,null,null,"Plan"]
[null,"СП от ЗПР",59.5,null,null,{"$f":"IF('Базовые цены с учетом расхода'!R23>0,'Базовые цены с учетом расхода'!R23,IF('Базовые цены с учетом расхода'!R23<0,'Базовые цены с учетом расхода'!R23,\"\"))","v":30},null,null,null,null,null,"Plan_ZPR"]
[null,"СП от ЗПМ",null,null,null,{"$f":"IF('Базовые цены с учетом расхода'!S23>0,'Базовые цены с учетом расхода'!S23,IF('Базовые цены с учетом расхода'!S23<0,'Базовые цены с учетом расхода'!S23,\"\"))","v":""},null,null,null,null,null,"Plan_ZPM"]
[null,"Всего с НР и СП",null,null,null,{"$f":"ROUND(IF(F349=\"\",0,F349)+IF(F361=\"\",0,F361)+IF(F364=\"\",0,F364),0)","v":303}]
[]
["19.","Е26-01-002-01\nИзоляция трубопроводов цилиндрами, полуцилиндрами и сегментами из пенопласта, диаметр трубопровода до 350 мм, 1 м3 изоляции",5.4557500000000001,{"$f":"'Базовые цены за единицу'!B24","v":114.23},{"$f":"'Базовые цены за единицу'!D24","v":0},{"$f":"'Базовые цены с учетом расхода'!B24","v":623},{"$f":"'Базовые цены с учетом расхода'!C24","v":345},{"$f":"'Базовые цены с учетом расхода'!D24","v":0},5.5750000000000002,{"$f":"'Базовые цены с учетом расхода'!I24","v":30.415806},"sum","IsZPR",null,{"$f":"'Базовые цены с учетом расхода'!F24","v":278}]
[null,null,null,{"$f":"'Базовые цены за единицу'!C24","v":63.22},{"$f":"'Базовые цены за единицу'!E24","v":0},null,null,{"$f":"'Базовые цены с учетом расхода'!E24","v":0},null,{"$f":"'Базовые цены с учетом расхода'!K24","v":0},"sum_b","IsZPM"]
[null,{"$f":"IF(ROUND((3.14*(0.089+0.05)*0.05*250)/1,9)=C369,\"Объем: 3,14*(0,089+0,05)*0,05*250\",\"\")","v":"Объем: 3,14*(0,089+0,05)*0,05*250"}]
[null,"   Вычт.ресурсы:  Х33-2101:[ ЭМ-(1.77=1.99*0.89) ];  Х40-0001:[ ЭМ-(44.38=103.20*0.43), ЗПМ-(6.03=14.02*0.43) ];  С101-1876:[ М-(427.84=11200.00*0.0382) ];  С113-0074:[ М-(285.16=27158.00*0.0105) ];  С506-0878:[ М-(13.29=60.40*0.22) ]"]
[null,"Зарплата рабочих",null,null,null,345]
[null,"Эксплуатация машин"]
[null,"в т.ч. зарплата машинистов"]
[null,"Материалы",null,null,null,278]
[null,"в т.ч. Вспомогательные материалы от стоимости материалов"]
[null,"в т.ч. Вспомогательные ненормируемые материалы",null,null,null,null,null,null,null,null,"NenormMatOtZPR","IsMater"]
[null,"в т.ч. Ненормированная з.п. рабочих"]
[null,"в т.ч. Ненормированная стоимость эксплуатации машин"]
[null,"в т.ч. Ненормированная оплата механизаторов"]
[null,"Накладные расходы",90,null,null,{"$f":"IF('Базовые цены с учетом расхода'!N24>0,'Базовые цены с учетом расхода'!N24,IF('Базовые цены с учетом расхода'!N24<0,'Базовые цены с учетом расхода'!N24,\"\"))","v":311},null,null,null,null,null,"Nakl"]
[null,"НР от ЗПР",90,null,null,{"$f":"IF('Базовые цены с учетом расхода'!P24>0,'Базовые цены с учетом расхода'!P24,IF('Базовые цены с учетом расхода'!P24<0,'Базовые цены с учетом расхода'!P24,\"\"))","v":310},null,null,null,null,null,"Nakl_ZPR"]
[null,"НР от ЗПМ",null,null,null,{"$f":"IF('Базовые цены с учетом расхода'!Q24>0,'Базовые цены с учетом расхода'!Q24,IF('Базовые цены с учетом расхода'!Q24<0,'Базовые цены с учетом расхода'!Q24,\"\"))","v":""},null,null,null,null,null,"Nakl_ZPM"]
[null,"Сметная прибыль",59.5,null,null,{"$f":"IF('Базовые цены с учетом расхода'!O24>0,'Базовые цены с учетом расхода'!O24,IF('Базовые цены с учетом расхода'!O24<0,'Базовые цены с учетом расхода'!O24,\"\"))","v":205},null,null,null,null,null,"Plan"]
[null,"СП от ЗПР",59.5,null,null,{"$f":"IF('Базовые цены с учетом расхода'!R24>0,'Базовые цены с учетом расхода'!R24,IF('Базовые цены с учетом расхода'!R24<0,'Базовые цены с учетом расхода'!R24,\"\"))","v":205},null,null,null,null,null,"Plan_ZPR"]
[null,"СП от ЗПМ",null,null,null,{"$f":"IF('Базовые цены с учетом расхода'!S24>0,'Базовые цены с учетом расхода'!S24,IF('Базовые цены с учетом расхода'!S24<0,'Базовые цены с учетом расхода'!S24,\"\"))","v":""},null,null,null,null,null,"Plan_ZPM"]
[null,"Всего с НР и СП",null,null,null,{"$f":"ROUND(IF(F369=\"\",0,F369)+IF(F382=\"\",0,F382)+IF(F385=\"\",0,F385),0)","v":1139}]
[]
["20.","С104-0144\nБлоки сегментные теплоизоляционные из пенопласта полистирольного ПСБС-40, м3",5.7329999999999997,{"$f":"'Базовые цены за единицу'!B25","v":1629.27},{"$f":"'Базовые цены за единицу'!D25","v":0},{"$f":"'Базовые цены с учетом расхода'!B25","v":9341},{"$f":"'Базовые цены с учетом расхода'!C25","v":0},{"$f":"'Базовые цены с учетом расхода'!D25","v":0},null,{"$f":"'Базовые цены с учетом расхода'!I25","v":0},"sum","IsZPR",null,{"$f":"'Базовые цены с учетом расхода'!F25","v":9341}]
[null,null,null,{"$f":"'Базовые цены за единицу'!C25","v":0},{"$f":"'Базовые цены за единицу'!E25","v":0},null,null,{"$f":"'Базовые цены с учетом расхода'!E25","v":0},null,{"$f":"'Базовые цены с учетом расхода'!K25","v":0},"sum_b","IsZPM"]
[null,{"$f":"IF(ROUND((5.46*1.05)/1,9)=C390,\"Объем: 5,46*1,05\",\"\")","v":"Объем: 5,46*1,05"}]
[null,"Зарплата рабочих"]
[null,"Эксплуатация машин"]
[null,"в т.ч. зарплата машинистов"]
[null,"Материалы",null,null,null,9341]
[null,"в т.ч. Вспомогательные материалы от стоимости материалов"]
[null,"в т.ч. Вспомогательные ненормируемые материалы",null,null,null,null,null,null,null,null,"NenormMatOtZPR","IsMater"]
[null,"в т.ч. Ненормированная з.п. рабочих"]
[null,"в т.ч. Ненормированная стоимость эксплуатации машин"]
[null,"в т.ч. Ненормированная оплата механизаторов"]
[null,"Накладные расходы",null,null,null,{"$f":"IF('Базовые цены с учетом расхода'!N25>0,'Базовые цены с учетом расхода'!N25,IF('Базовые цены с учетом расхода'!N25<0,'Базовые цены с учетом расхода'!N25,\"\"))","v":""},null,null,null,null,null,"Nakl"]
[null,"НР от ЗПР",null,null,null,{"$f":"IF('Базовые цены с учетом расхода'!P25>0,'Базовые цены с учетом расхода'!P25,IF('Базовые цены с учетом расхода'!P25<0,'Базовые цены с учетом расхода'!P25,\"\"))","v":""},null,null,null,null,null,"Nakl_ZPR"]
[null,"НР от ЗПМ",null,null,null,{"$f":"IF('Базовые цены с учетом расхода'!Q25>0,'Базовые цены с учетом расхода'!Q25,IF('Базовые цены с учетом расхода'!Q25<0,'Базовые цены с учетом расхода'!Q25,\"\"))","v":""},null,null,null,null,null,"Nakl_ZPM"]
[null,"Сметная прибыль",null,null,null,{"$f":"IF('Базовые цены с учетом расхода'!O25>0,'Базовые цены с учетом расхода'!O25,IF('Базовые цены с учетом расхода'!O25<0,'Базовые цены с учетом расхода'!O25,\"\"))","v":""},null,null,null,null,null,"Plan"]
[null,"СП от ЗПР",null,null,null,{"$f":"IF('Базовые цены с учетом расхода'!R25>0,'Базовые цены с учетом расхода'!R25,IF('Базовые цены с учетом расхода'!R25<0,'Базовые цены с учетом расхода'!R25,\"\"))","v":""},null,null,null,null,null,"Plan_ZPR"]
[null,"СП от ЗПМ",null,null,null,{"$f":"IF('Базовые цены с учетом расхода'!S25>0,'Базовые цены с учетом расхода'!S25,IF('Базовые цены с учетом расхода'!S25<0,'Базовые цены с учетом расхода'!S25,\"\"))","v":""},null,null,null,null,null,"Plan_ZPM"]
[]
["21.","Е26-01-052-01\nПокрытие поверхности изоляции трубопроводов стеклопластиками РСТ, тканями стеклянными, 100 м2 поверхности покрытия изоляции",1.6328,{"$f":"'Базовые цены за единицу'!B26","v":1414.52},{"$f":"'Базовые цены за единицу'!D26","v":72.25},{"$f":"'Базовые цены с учетом расхода'!B26","v":2309},{"$f":"'Базовые цены с учетом расхода'!C26","v":2105},{"$f":"'Базовые цены с учетом расхода'!D26","v":118},107.18,{"$f":"'Базовые цены с учетом расхода'!I26","v":175.0035},"sum","IsZPR",null,{"$f":"'Базовые цены с учетом расхода'!F26","v":86}]
[null,null,null,{"$f":"'Базовые цены за единицу'!C26","v":1289.3800000000001},{"$f":"'Базовые цены за единицу'!E26","v":0},null,null,{"$f":"'Базовые цены с учетом расхода'!E26","v":0},null,{"$f":"'Базовые цены с учетом расхода'!K26","v":0},"sum_b","IsZPM"]
[null,{"$f":"IF(ROUND((3.14*0.208*250)/100,9)=C409,\"Объем: 3,14*0,208*250\",\"\")","v":"Объем: 3,14*0,208*250"}]
[null,"   Вычт.ресурсы:  Х33-0206:[ ЭМ-(3.87=2.32*1.67) ];  Х33-2101:[ ЭМ-(11.22=1.99*5.64) ];  С101-1746:[ М-(687.04=6.08*113) ];  С101-1821:[ М-(10.32=30340.00*0.00034) ];  С506-0609:[ М-(235.14=53.20*4.42) ];  С506-0878:[ М-(2021.59=60.40*33.47) ];  С506-0..."]
[null,"Зарплата рабочих",null,null,null,2105]
[null,"Эксплуатация машин",null,null,null,118]
[null,"в т.ч. зарплата машинистов"]
[null,"Материалы",null,null,null,86]
[null,"в т.ч. Вспомогательные материалы от стоимости материалов"]
[null,"в т.ч. Вспомогательные ненормируемые материалы",null,null,null,null,null,null,null,null,"NenormMatOtZPR","IsMater"]
[null,"в т.ч. Ненормированная з.п. рабочих"]
[null,"в т.ч. Ненормированная стоимость эксплуатации машин"]
[null,"в т.ч. Ненормированная оплата механизаторов"]
[null,"Накладные расходы",90,null,null,{"$f":"IF('Базовые цены с учетом расхода'!N26>0,'Базовые цены с учетом расхода'!N26,IF('Базовые цены с учетом расхода'!N26<0,'Базовые цены с учетом расхода'!N26,\"\"))","v":1895},null,null,null,null,null,"Nakl"]
[null,"НР от ЗПР",90,null,null,{"$f":"IF('Базовые цены с учетом расхода'!P26>0,'Базовые цены с учетом расхода'!P26,IF('Базовые цены с учетом расхода'!P26<0,'Базовые цены с учетом расхода'!P26,\"\"))","v":1895},null,null,null,null,null,"Nakl_ZPR"]
[null,"НР от ЗПМ",null,null,null,{"$f":"IF('Базовые цены с учетом расхода'!Q26>0,'Базовые цены с учетом расхода'!Q26,IF('Базовые цены с учетом расхода'!Q26<0,'Базовые цены с учетом расхода'!Q26,\"\"))","v":""},null,null,null,null,null,"Nakl_ZPM"]
[null,"Сметная прибыль",59.5,null,null,{"$f":"IF('Базовые цены с учетом расхода'!O26>0,'Базовые цены с учетом расхода'!O26,IF('Базовые цены с учетом расхода'!O26<0,'Базовые цены с учетом расхода'!O26,\"\"))","v":1252},null,null,null,null,null,"Plan"]
[null,"СП от ЗПР",59.5,null,null,{"$f":"IF('Базовые цены с учетом расхода'!R26>0,'Базовые цены с учетом расхода'!R26,IF('Базовые цены с учетом расхода'!R26<0,'Базовые цены с учетом расхода'!R26,\"\"))","v":1253},null,null,null,null,null,"Plan_ZPR"]
[null,"СП от ЗПМ",null,null,null,{"$f":"IF('Базовые цены с учетом расхода'!S26>0,'Базовые цены с учетом расхода'!S26,IF('Базовые цены с учетом расхода'!S26<0,'Базовые цены с учетом расхода'!S26,\"\"))","v":""},null,null,null,null,null,"Plan_ZPM"]
[null,"Всего с НР и СП",null,null,null,{"$f":"ROUND(IF(F409=\"\",0,F409)+IF(F422=\"\",0,F422)+IF(F425=\"\",0,F425),0)","v":5456}]
[]
["22.","С104-0077\nСтеклопластик рулонный марки РСТ-А-Л-В, 1000 м2",0.16817840000000001,{"$f":"'Базовые цены за единицу'!B27","v":14620},{"$f":"'Базовые цены за единицу'!D27","v":0},{"$f":"'Базовые цены с учетом расхода'!B27","v":2459},{"$f":"'Базовые цены с учетом расхода'!C27","v":0},{"$f":"'Базовые цены с учетом расхода'!D27","v":0},null,{"$f":"'Базовые цены с учетом расхода'!I27","v":0},"sum","IsZPR",null,{"$f":"'Базовые цены с учетом расхода'!F27","v":2459}]
[null,null,null,{"$f":"'Базовые цены за единицу'!C27","v":0},{"$f":"'Базовые цены за единицу'!E27","v":0},null,null,{"$f":"'Базовые цены с учетом расхода'!E27","v":0},null,{"$f":"'Базовые цены с учетом расхода'!K27","v":0},"sum_b","IsZPM"]
[null,{"$f":"IF(ROUND((163.28*1.03)/1000,9)=C430,\"Объем: 163,28*1,03\",\"\")","v":"Объем: 163,28*1,03"}]
[null,"Зарплата рабочих"]
[null,"Эксплуатация машин"]
[null,"в т.ч. зарплата машинистов"]
[null,"Материалы",null,null,null,2459]
[null,"в т.ч. Вспомогательные материалы от стоимости материалов"]
[null,"в т.ч. Вспомогательные ненормируемые материалы",null,null,null,null,null,null,null,null,"NenormMatOtZPR","IsMater"]
[null,"в т.ч. Ненормированная з.п. рабочих"]
[null,"в т.ч. Ненормированная стоимость эксплуатации машин"]
[null,"в т.ч. Ненормированная оплата механизаторов"]
[null,"Накладные расходы",null,null,null,{"$f":"IF('Базовые цены с учетом расхода'!N27>0,'Базовые цены с учетом расхода'!N27,IF('Базовые цены с учетом расхода'!N27<0,'Базовые цены с учетом расхода'!N27,\"\"))","v":""},null,null,null,null,null,"Nakl"]
[null,"НР от ЗПР",null,null,null,{"$f":"IF('Базовые цены с учетом расхода'!P27>0,'Базовые цены с учетом расхода'!P27,IF('Базовые цены с учетом расхода'!P27<0,'Базовые цены с учетом расхода'!P27,\"\"))","v":""},null,null,null,null,null,"Nakl_ZPR"]
[null,"НР от ЗПМ",null,null,null,{"$f":"IF('Базовые цены с учетом расхода'!Q27>0,'Базовые цены с учетом расхода'!Q27,IF('Базовые цены с учетом расхода'!Q27<0,'Базовые цены с учетом расхода'!Q27,\"\"))","v":""},null,null,null,null,null,"Nakl_ZPM"]
[null,"Сметная прибыль",null,null,null,{"$f":"IF('Базовые цены с учетом расхода'!O27>0,'Базовые цены с учетом расхода'!O27,IF('Базовые цены с учетом расхода'!O27<0,'Базовые цены с учетом расхода'!O27,\"\"))","v":""},null,null,null,null,null,"Plan"]
[null,"СП от ЗПР",null,null,null,{"$f":"IF('Базовые цены с учетом расхода'!R27>0,'Базовые цены с учетом расхода'!R27,IF('Базовые цены с учетом расхода'!R27<0,'Базовые цены с учетом расхода'!R27,\"\"))","v":""},null,null,null,null,null,"Plan_ZPR"]
[null,"СП от ЗПМ",null,null,null,{"$f":"IF('Базовые цены с учетом расхода'!S27>0,'Базовые цены с учетом расхода'!S27,IF('Базовые цены с учетом расхода'!S27<0,'Базовые цены с учетом расхода'!S27,\"\"))","v":""},null,null,null,null,null,"Plan_ZPM"]
[]
[null,".    ИТОГО  ПО  СМЕТЕ",null,null,null,{"$f":"'Базовые концовки'!F7","v":70096},{"$f":"'Базовые концовки'!G7","v":4986},{"$f":"'Базовые концовки'!H7","v":5306},null,{"$f":"'Базовые концовки'!J7","v":414.48748949999998},null,null,null,{"$f":"'Базовые концовки'!L7","v":59804},null,null,null,{"$f":"'Базовые концовки'!M7","v":0}]
[null,null,null,null,null,null,null,{"$f":"'Базовые концовки'!I7","v":488},null,{"$f":"'Базовые концовки'!K7","v":34.213862499999998}]
[null,"СТОИМОСТЬ ОБОРУДОВАНИЯ -",null,null,null,{"$f":"'Базовые концовки'!F8","v":0},{"$f":"'Базовые концовки'!G8","v":0},{"$f":"'Базовые концовки'!H8","v":0},null,{"$f":"'Базовые концовки'!J8","v":0},null,null,null,{"$f":"'Базовые концовки'!L8","v":0},null,null,null,{"$f":"'Базовые концовки'!M8","v":0}]
[null,".   ЗАПАСНЫЕ ЧАСТИ -",null,null,null,{"$f":"'Базовые концовки'!F9","v":0}]
[null,".   ТАРА И УПАКОВКА -",null,null,null,{"$f":"'Базовые концовки'!F10","v":0}]
[null,".   ТРАНСПОРТНЫЕ РАСХОДЫ -",null,null,null,{"$f":"'Базовые концовки'!F11","v":0}]
[null,".   КОМПЛЕКТАЦИЯ -",null,null,null,{"$f":"'Базовые концовки'!F12","v":0}]
[null,".   НАЦЕНКА СНАБА -",null,null,null,{"$f":"'Базовые концовки'!F13","v":0}]
[null,".   ЗАГОТОВИТЕЛЬНО-СКЛАДСКИЕ РАСХОДЫ -",null,null,null,{"$f":"'Базовые концовки'!F14","v":0}]
[null,". ШЕФМОНТАЖ ПО ОБОРУДОВАНИЮ -",null,null,null,{"$f":"'Базовые концовки'!F15","v":0}]
[null,". ШЕФМОНТАЖ -",null,null,null,{"$f":"'Базовые концовки'!F16","v":0}]
[null,"ВСЕГО, СТОИМОСТЬ ОБОРУДОВАНИЯ -",null,null,null,{"$f":"'Базовые концовки'!F17","v":0}]
[null,"СТОИМОСТЬ МОНТАЖНЫХ РАБОТ -",null,null,null,{"$f":"'Базовые концовки'!F18","v":910},{"$f":"'Базовые концовки'!G18","v":0},{"$f":"'Базовые концовки'!H18","v":0},null,{"$f":"'Базовые концовки'!J18","v":0},null,null,null,{"$f":"'Базовые концовки'!L18","v":910},null,null,null,{"$f":"'Базовые концовки'!M18","v":0}]
[null,".     В ТОМ ЧИСЛЕ:"]
[null,". ОТКЛОНЕНИЕ ПО ЗАРАБОТНОЙ ПЛАТЕ -",null,null,null,null,{"$f":"'Базовые концовки'!G20","v":0}]
[null,". КОСВЕННЫЕ РАСХОДЫ -",null,null,null,{"$f":"'Базовые концовки'!F21","v":0}]
[null,". МАТЕРИАЛЬНЫЕ РЕСУРСЫ НЕ УЧТЕННЫЕ В РАСЦЕНКАХ -",null,null,null,{"$f":"'Базовые концовки'!F22","v":910}]
[null,".   СТОИМОСТЬ ВОЗВРАЩАЕМЫХ МАТЕРИАЛОВ -",null,null,null,{"$f":"'Базовые концовки'!F23","v":0}]
[null,".   НАКЛАДНЫЕ РАСХОДЫ -",null,null,null,{"$f":"'Базовые концовки'!F24","v":0}]
[null,".   СМЕТНАЯ ПРИБЫЛЬ -",null,null,null,{"$f":"'Базовые концовки'!F25","v":0}]
[null,". ШЕФМОНТАЖ -",null,null,null,{"$f":"'Базовые концовки'!F26","v":0}]
[null,"ВСЕГО, СТОИМОСТЬ МОНТАЖНЫХ РАБОТ -",null,null,null,{"$f":"'Базовые концовки'!F27","v":910}]
[null,"СТОИМОСТЬ ОБЩЕСТРОИТЕЛЬНЫХ РАБОТ -",null,null,null,{"$f":"'Базовые концовки'!F28","v":27713},{"$f":"'Базовые концовки'!G28","v":4939},{"$f":"'Базовые концовки'!H28","v":5117},null,{"$f":"'Базовые концовки'!J28","v":0},null,null,null,{"$f":"'Базовые концовки'!L28","v":17657},null,null,null,{"$f":"'Базовые концовки'!M28","v":0}]
[null,null,null,null,null,null,null,{"$f":"'Базовые концовки'!I28","v":465},null,{"$f":"'Базовые концовки'!K28","v":32.8971625}]
[null,".     В ТОМ ЧИСЛЕ:"]
[null,".       МАТЕРИАЛОВ -",null,null,null,{"$f":"'Базовые концовки'!F30","v":12362}]
[null,".   СТОИМОСТЬ ВОЗВРАЩАЕМЫХ МАТЕРИАЛОВ -",null,null,null,{"$f":"'Базовые концовки'!F31","v":0}]
[null,".   НАКЛАДНЫЕ РАСХОДЫ -",null,null,null,{"$f":"'Базовые концовки'!F32","v":5563}]
[null,".   СМЕТНАЯ ПРИБЫЛЬ -",null,null,null,{"$f":"'Базовые концовки'!F33","v":3621}]
[null,"ВСЕГО, СТОИМОСТЬ ОБЩЕСТРОИТЕЛЬНЫХ РАБОТ -",null,null,null,{"$f":"'Базовые концовки'!F34","v":36897}]
[null,"СТОИМОСТЬ МЕТАЛЛОМОНТАЖНЫХ РАБОТ -",null,null,null,{"$f":"'Базовые концовки'!F35","v":9047},{"$f":"'Базовые концовки'!G35","v":47},{"$f":"'Базовые концовки'!H35","v":189},null,{"$f":"'Базовые концовки'!J35","v":0},null,null,null,{"$f":"'Базовые концовки'!L35","v":8811},null,null,null,{"$f":"'Базовые концовки'!M35","v":0}]
[null,null,null,null,null,null,null,{"$f":"'Базовые концовки'!I35","v":23},null,{"$f":"'Базовые концовки'!K35","v":1.3167}]
[null,".   СТОИМОСТЬ ВОЗВРАЩАЕМЫХ МАТЕРИАЛОВ -",null,null,null,{"$f":"'Базовые концовки'!F36","v":0}]
[null,".   НАКЛАДНЫЕ РАСХОДЫ -",null,null,null,{"$f":"'Базовые концовки'!F37","v":57}]
[null,".   СМЕТНАЯ ПРИБЫЛЬ -",null,null,null,{"$f":"'Базовые концовки'!F38","v":51}]
[null,"ВСЕГО, СТОИМОСТЬ МЕТАЛЛОМОНТАЖНЫХ РАБОТ -",null,null,null,{"$f":"'Базовые концовки'!F39","v":9155}]
[null,"СТОИМОСТЬ САНТЕХНИЧЕСКИХ РАБОТ -",null,null,null,{"$f":"'Базовые концовки'!F40","v":32426},{"$f":"'Базовые концовки'!G40","v":0},{"$f":"'Базовые концовки'!H40","v":0},null,{"$f":"'Базовые концовки'!J40","v":0},null,null,null,{"$f":"'Базовые концовки'!L40","v":32426},null,null,null,{"$f":"'Базовые концовки'!M40","v":0}]
[null,".     В ТОМ ЧИСЛЕ:"]
[null,". СДАЧА И ИСПЫТАНИЕ -",null,null,null,{"$f":"'Базовые концовки'!F42","v":0},{"$f":"'Базовые концовки'!G42","v":0},{"$f":"'Базовые концовки'!H42","v":0},null,{"$f":"'Базовые концовки'!J42","v":0},null,null,null,{"$f":"'Базовые концовки'!L42","v":0},null,null,null,{"$f":"'Базовые концовки'!M42","v":0}]
[null,".   СТОИМОСТЬ ВОЗВРАЩАЕМЫХ МАТЕРИАЛОВ -",null,null,null,{"$f":"'Базовые концовки'!F43","v":0}]
[null,".   НАКЛАДНЫЕ РАСХОДЫ -",null,null,null,{"$f":"'Базовые концовки'!F44","v":0}]
[null,".   СМЕТНАЯ ПРИБЫЛЬ -",null,null,null,{"$f":"'Базовые концовки'!F45","v":0}]
[null,". ШЕФМОНТАЖ -",null,null,null,{"$f":"'Базовые концовки'!F46","v":0}]
[null,"ВСЕГО, СТОИМОСТЬ САНТЕХНИЧЕСКИХ РАБОТ -",null,null,null,{"$f":"'Базовые концовки'!F47","v":32426}]
[null,"СТОИМОСТЬ БУРО-ВЗРЫВНЫХ РАБОТ -",null,null,null,{"$f":"'Базовые концовки'!F48","v":0},{"$f":"'Базовые концовки'!G48","v":0},{"$f":"'Базовые концовки'!H48","v":0},null,{"$f":"'Базовые концовки'!J48","v":0},null,null,null,{"$f":"'Базовые концовки'!L48","v":0},null,null,null,{"$f":"'Базовые концовки'!M48","v":0}]
[null,".   СТОИМОСТЬ ВОЗВРАЩАЕМЫХ МАТЕРИАЛОВ -",null,null,null,{"$f":"'Базовые концовки'!F49","v":0}]
[null,".   НАКЛАДНЫЕ РАСХОДЫ -",null,null,null,{"$f":"'Базовые концовки'!F50","v":0}]
[null,".   СМЕТНАЯ ПРИБЫЛЬ -",null,null,null,{"$f":"'Базовые концовки'!F51","v":0}]
[null,"ВСЕГО, СТОИМОСТЬ БУРО-ВЗРЫВНЫХ РАБОТ -",null,null,null,{"$f":"'Базовые концовки'!F52","v":0}]
[null,"СТОИМОСТЬ ГОРНОПРОХОДЧЕСКИХ РАБОТ -",null,null,null,{"$f":"'Базовые концовки'!F53","v":0},{"$f":"'Базовые концовки'!G53","v":0},{"$f":"'Базовые концовки'!H53","v":0},null,{"$f":"'Базовые концовки'!J53","v":0},null,null,null,{"$f":"'Базовые концовки'!L53","v":0},null,null,null,{"$f":"'Базовые концовки'!M53","v":0}]
[null,".   СТОИМОСТЬ ВОЗВРАЩАЕМЫХ МАТЕРИАЛОВ -",null,null,null,{"$f":"'Базовые концовки'!F54","v":0}]
[null,".   НАКЛАДНЫЕ РАСХОДЫ -",null,null,null,{"$f":"'Базовые концовки'!F55","v":0}]
[null,".   СМЕТНАЯ ПРИБЫЛЬ -",null,null,null,{"$f":"'Базовые концовки'!F56","v":0}]
[null,"ВСЕГО, СТОИМОСТЬ ГОРНОПРОХОДЧЕСКИХ РАБОТ -",null,null,null,{"$f":"'Базовые концовки'!F57","v":0}]
[null,"СТОИМОСТЬ РЕСТАВРАЦИОННЫХ РАБОТ -",null,null,null,{"$f":"'Базовые концовки'!F58","v":0},{"$f":"'Базовые концовки'!G58","v":0},{"$f":"'Базовые концовки'!H58","v":0},null,{"$f":"'Базовые концовки'!J58","v":0},null,null,null,{"$f":"'Базовые концовки'!L58","v":0},null,null,null,{"$f":"'Базовые концовки'!M58","v":0}]
[null,".     В ТОМ ЧИСЛЕ:"]
[null,".       МАТЕРИАЛОВ -",null,null,null,{"$f":"'Базовые концовки'!F60","v":12362}]
[null,".   СТОИМОСТЬ ВОЗВРАЩАЕМЫХ МАТЕРИАЛОВ -",null,null,null,{"$f":"'Базовые концовки'!F61","v":0}]
[null,".   НАКЛАДНЫЕ РАСХОДЫ -",null,null,null,{"$f":"'Базовые концовки'!F62","v":0}]
[null,".   СМЕТНАЯ ПРИБЫЛЬ -",null,null,null,{"$f":"'Базовые концовки'!F63","v":0}]
[null,"ВСЕГО, СТОИМОСТЬ РЕСТАВРАЦИОННЫХ РАБОТ -",null,null,null,{"$f":"'Базовые концовки'!F64","v":0}]
[null,"СТОИМОСТЬ ПЕРЕВОЗКИ ГРУЗОВ -",null,null,null,{"$f":"'Базовые концовки'!F65","v":0},{"$f":"'Базовые концовки'!G65","v":0},{"$f":"'Базовые концовки'!H65","v":0},null,{"$f":"'Базовые концовки'!J65","v":0},null,null,null,{"$f":"'Базовые концовки'!L65","v":0},null,null,null,{"$f":"'Базовые концовки'!M65","v":0}]
[null,".   В Т.Ч. НАКЛАДНЫЕ РАСХОДЫ -",null,null,null,{"$f":"'Базовые концовки'!F66","v":0}]
[null,".   В Т.Ч. СМЕТНАЯ ПРИБЫЛЬ -",null,null,null,{"$f":"'Базовые концовки'!F67","v":0}]
[null,".   НАКЛАДНЫЕ РАСХОДЫ -",null,null,null,{"$f":"'Базовые концовки'!F68","v":0}]
[null,".   СМЕТНАЯ ПРИБЫЛЬ -",null,null,null,{"$f":"'Базовые концовки'!F69","v":0}]
[null,"ВСЕГО, СТОИМОСТЬ ПЕРЕВОЗКИ ГРУЗОВ -",null,null,null,{"$f":"'Базовые концовки'!F70","v":0}]
[null,"СТОИМОСТЬ ПУСКОНАЛАДОЧНЫХ РАБОТ -",null,null,null,{"$f":"'Базовые концовки'!F71","v":0},{"$f":"'Базовые концовки'!G71","v":0},{"$f":"'Базовые концовки'!H71","v":0},null,{"$f":"'Базовые концовки'!J71","v":0},null,null,null,{"$f":"'Базовые концовки'!L71","v":0},null,null,null,{"$f":"'Базовые концовки'!M71","v":0}]
[null,".   НАКЛАДНЫЕ РАСХОДЫ -",null,null,null,{"$f":"'Базовые концовки'!F72","v":0}]
[null,".   СМЕТНАЯ ПРИБЫЛЬ -",null,null,null,{"$f":"'Базовые концовки'!F73","v":0}]
[null,"ВСЕГО, СТОИМОСТЬ ПУСКОНАЛАДОЧНЫХ РАБОТ -",null,null,null,{"$f":"'Базовые концовки'!F74","v":0}]
[null,"СТОИМОСТЬ ПРОЧИХ РАБОТ (с НР и СП) -",null,null,null,{"$f":"'Базовые концовки'!F75","v":0},{"$f":"'Базовые концовки'!G75","v":0},{"$f":"'Базовые концовки'!H75","v":0},null,{"$f":"'Базовые концовки'!J75","v":0},null,null,null,{"$f":"'Базовые концовки'!L75","v":0},null,null,null,{"$f":"'Базовые концовки'!M75","v":0}]
[null,".   СТОИМОСТЬ ВОЗВРАЩАЕМЫХ МАТЕРИАЛОВ -",null,null,null,{"$f":"'Базовые концовки'!F76","v":0}]
[null,".   НАКЛАДНЫЕ РАСХОДЫ -",null,null,null,{"$f":"'Базовые концовки'!F77","v":0}]
[null,".   СМЕТНАЯ ПРИБЫЛЬ -",null,null,null,{"$f":"'Базовые концовки'!F78","v":0}]
[null,"ВСЕГО, СТОИМОСТЬ ПРОЧИХ РАБОТ (с НР и СП) -",null,null,null,{"$f":"'Базовые концовки'!F79","v":0}]
[null,"ВСЕГО, СТОИМОСТЬ ПРОЧИХ РАБОТ (без НР и СП) -",null,null,null,{"$f":"'Базовые концовки'!F80","v":0},{"$f":"'Базовые концовки'!G80","v":0},{"$f":"'Базовые концовки'!H80","v":0},null,{"$f":"'Базовые концовки'!J80","v":0},null,null,null,{"$f":"'Базовые концовки'!L80","v":0},null,null,null,{"$f":"'Базовые концовки'!M80","v":0}]
[null,".   СТОИМОСТЬ ВОЗВРАЩАЕМЫХ МАТЕРИАЛОВ -",null,null,null,{"$f":"'Базовые концовки'!F81","v":0}]
[null,". ВСЕГО  ПО  СМЕТЕ",null,null,null,{"$f":"'Базовые концовки'!F82","v":79388},{"$f":"'Базовые концовки'!G82","v":0},{"$f":"'Базовые концовки'!H82","v":0},null,{"$f":"'Базовые концовки'!J82","v":0},null,null,null,{"$f":"'Базовые концовки'!L82","v":0},null,null,null,{"$f":"'Базовые концовки'!M82","v":0}]
[null,"ВСЕГО СТОИМОСТЬ ВОЗВРАЩАЕМЫХ МАТЕРИАЛОВ -",null,null,null,{"$f":"'Базовые концовки'!F83","v":0}]
[null,"ВСЕГО НАКЛАДНЫЕ РАСХОДЫ",null,null,null,{"$f":"'Базовые концовки'!F84","v":5620}]
[null,"ВСЕГО СМЕТНАЯ ПРИБЫЛЬ",null,null,null,{"$f":"'Базовые концовки'!F85","v":3672}]
[null,"в т.ч. Вспомогательные материалы от стоимости материалов",null,null,null,{"$f":"'Базовые концовки'!F86","v":0},null,null,null,null,null,null,null,{"$f":"'Базовые концовки'!L86","v":0}]
[null,"в т.ч. Вспомогательные материалы от ОЗП",null,null,null,{"$f":"'Базовые концовки'!F87","v":0},null,null,null,null,null,null,null,{"$f":"'Базовые концовки'!L87","v":0}]
[null,"Оплата основных рабочих",null,null,null,{"$f":"'Базовые концовки'!F88","v":4986}]
[null,"Оплата механизаторов",null,null,null,{"$f":"'Базовые концовки'!F89","v":488}]
[null,"Сметная заработная плата",null,null,null,{"$f":"'Базовые концовки'!F90","v":5474}]
[null,"Трудозатраты осн. рабочих",null,null,null,null,null,null,null,{"$f":"'Базовые концовки'!J91","v":414.48748949999998}]
[null,"Трудозатраты механизаторов",null,null,null,null,null,null,null,{"$f":"'Базовые концовки'!J92","v":34.213862499999998}]
[null,"Нормативная трудоемкость",null,null,null,null,null,null,null,{"$f":"'Базовые концовки'!J93","v":448.70135199999999}]
[null,"Промежуточная строка",100,null,null,{"$f":"'Базовые концовки'!F94","v":562000}]
[null,"% НР",null,null,null,{"$f":"'Базовые концовки'!F95","v":103}]
[null,"Промежуточная строка",100,null,null,{"$f":"'Базовые концовки'!F96","v":367200}]
[null,"% СП",null,null,null,{"$f":"'Базовые концовки'!F97","v":67}]
[]
[null,"С учетом коэф-та индексации на 2 квартал 2020г."]
[null,"(письмо Минстроя России № 19271-ИФ/09 от 25.05.20 г.) К=5,09",null,null,null,404085]
[]
[null,"НДС 20%",null,null,null,80817]
[null,"Итого с НДС",null,null,null,484902]
[]
[null,"Составил:","Исенгильдина М.У."]
[null,null,"(должность, подпись, Ф.И.О)"]

{"sheet":"Базовые цены за единицу без нач","index":1,"n_rows":27,"n_cols":37,"rows_kept":27,"cut":false,"hidden":false,"merged":[[1,0,1,9],[2,1,2,9],[3,1,3,9],[4,0,4,9]]}
[null,"C1","C2","C3","C4","C5","C6","VOZVR","C8","C9","C10","C11","C12","NAKL","PLAN","NAKL_ZPR","NAKL_ZPM","PLAN_ZPR","PLAN_ZPM","RN11","RN12","RN13",null,"OBORUD_VSPOMOG","NAKL_PN","NAKL_VX","PLAN_PN","PLAN_VX","VTCH_PN","VTCH_VX","MR_BY_ZPR_VSPOMOG","NAKL_INC","PLAN_INC","RN14","RN15","RN16","OBORUD"]
[]
[null,"N = < 209.15 * 209-08 * 5295.20 >"]
[null,"          Замена теплотрассы с. Демарино ул. Ленина"]
[]
[{"$f":"'Форма 4'!A26","v":"1."},{"$f":"ROUND(C6+D6+F6+AF6+AG6,2)","v":3420.69},103.33,3317.36,371.83,0,0,0,{"$f":"'Форма 4'!I26","v":10.48},0,{"$f":"'Форма 4'!I27","v":22.77},0,0,406.26179999999999,201.94300000000001,88.347149999999999,317.91464999999999,43.91525,158.02775,0,0,0,null,0,0,0,0,0,0,0,0,null,null,0,0,0,0]
[{"$f":"'Форма 4'!A45","v":"2."},1518.44,1518.44,0,0,0,0,0,{"$f":"'Форма 4'!I45","v":184.8},0,{"$f":"'Форма 4'!I46","v":0},0,0,1093.2768000000001,580.80330000000004,1093.2768000000001,0,580.80330000000004,0,0,0,0,null,0,0,0,0,0,0,0,0,null,null,0,0,0,0]
[{"$f":"'Форма 4'!A64","v":"3."},60806.98,7057.12,12055.65,1019.42,41694.21,0,0,{"$f":"'Форма 4'!I64","v":343.13400000000001},0,{"$f":"'Форма 4'!I65","v":43.752000000000002},0,0,9449.5517999999993,6109.9025099999999,8256.8304000000007,1192.7213999999999,5338.7112800000004,771.19123000000002,0,0,0,null,0,0,0,0,0,0,0,0,null,null,0,0,0,0]
[{"$f":"'Форма 4'!A83","v":"4."},60806.98,7057.12,12055.65,1019.42,41694.21,0,0,{"$f":"'Форма 4'!I83","v":571.89},0,{"$f":"'Форма 4'!I84","v":72.92},0,0,9449.5517999999993,6109.9025099999999,8256.8304000000007,1192.7213999999999,5338.7112800000004,771.19123000000002,0,0,0,null,0,0,0,0,0,0,0,0,null,null,0,0,0,0]
[{"$f":"'Форма 4'!A102","v":"5."},238.64,0,0,0,238.64,233.31,0,{"$f":"'Форма 4'!I102","v":0},0,{"$f":"'Форма 4'!I103","v":0},0,0,0,0,0,0,0,0,0,0,0,null,0,0,0,0,0,0,0,0,null,null,0,0,0,0]
[{"$f":"'Форма 4'!A120","v":"6."},633.41,0,633.41,124.36,0,0,0,{"$f":"'Форма 4'!I120","v":0},0,{"$f":"'Форма 4'!I121","v":8.8699999999999992},0,0,106.3278,52.853000000000002,0,106.3278,0,52.853000000000002,0,0,0,null,0,0,0,0,0,0,0,0,null,null,0,0,0,0]
[{"$f":"'Форма 4'!A141","v":"7."},2426.1799999999998,149.87,2276.31,232.59,0,0,0,{"$f":"'Форма 4'!I141","v":15.2},0,{"$f":"'Форма 4'!I142","v":16.59},0,0,275.37119999999999,146.29095000000001,107.9064,167.4648,57.325274999999998,88.965675000000005,0,0,0,null,0,0,0,0,0,0,0,0,null,null,0,0,0,0]
[{"$f":"'Форма 4'!A160","v":"8."},14758.76,6449.24,1934.99,302.95,6374.53,0,0,{"$f":"'Форма 4'!I160","v":598.26},0,{"$f":"'Форма 4'!I161","v":18.62},0,0,6380.8195500000002,3730.5849750000002,6094.5317999999997,286.28775000000002,3563.2051000000001,167.379875,0,0,0,null,0,0,0,0,0,0,0,0,null,null,0,0,0,0]
[{"$f":"'Форма 4'!A179","v":"9."},551,0,0,0,551,454.59,0,{"$f":"'Форма 4'!I179","v":0},0,{"$f":"'Форма 4'!I180","v":0},2450,0,0,0,0,0,0,0,0,0,0,null,0,0,0,0,0,0,0,0,null,null,0,0,0,0]
[{"$f":"'Форма 4'!A198","v":"10."},549.95000000000005,74.73,299.82,36.18,175.4,0,0,{"$f":"'Форма 4'!I198","v":6.59},0,{"$f":"'Форма 4'!I199","v":2.09},0,0,89.837100000000007,80.132474999999999,60.531300000000002,29.305800000000001,53.992424999999997,26.140049999999999,0,0,0,null,0,0,0,0,0,0,0,0,null,null,0,0,0,0]
[{"$f":"'Форма 4'!A217","v":"11."},13810,0,0,0,13810,13630.05,0,{"$f":"'Форма 4'!I217","v":0},0,{"$f":"'Форма 4'!I218","v":0},1000,0,0,0,0,0,0,0,0,0,0,null,0,0,0,0,0,0,0,0,null,null,0,0,0,0]
[{"$f":"'Форма 4'!A235","v":"12."},331.98,71.47,10.15,0.12,250.36,0,0,{"$f":"'Форма 4'!I235","v":5.31},0,{"$f":"'Форма 4'!I236","v":0.01},0,0,57.987900000000003,42.596049999999998,57.890700000000002,9.7199999999999995E-2,42.524650000000001,7.1400000000000005E-2,0,0,0,null,0,0,0,0,0,0,0,0,null,null,0,0,0,0]
[{"$f":"'Форма 4'!A255","v":"13."},439.21,43.93,6.8,0.12,388.48,0,0,{"$f":"'Форма 4'!I255","v":3.83},0,{"$f":"'Форма 4'!I256","v":0.01},0,0,35.680500000000002,26.20975,35.583300000000001,9.7199999999999995E-2,26.138349999999999,7.1400000000000005E-2,0,0,0,null,0,0,0,0,0,0,0,0,null,null,0,0,0,0]
[{"$f":"'Форма 4'!A275","v":"14."},21914.95,5581.44,11594.41,1104.69,4739.1000000000004,0,0,{"$f":"'Форма 4'!I275","v":459},0,{"$f":"'Форма 4'!I276","v":77.849999999999994},0,0,7822.7721000000001,5058.0573450000002,6530.2848000000004,1292.4873,4222.3593600000004,835.69798500000002,0,0,0,null,0,0,0,0,0,0,0,0,null,null,0,0,0,0]
[{"$f":"'Форма 4'!A294","v":"15."},54.7,0,0,0,54.7,53.15,0,{"$f":"'Форма 4'!I294","v":0},0,{"$f":"'Форма 4'!I295","v":0},8.39,0,0,0,0,0,0,0,0,0,0,null,0,0,0,0,0,0,0,0,null,null,0,0,0,0]
[{"$f":"'Форма 4'!A313","v":"16."},42.3,0,0,0,42.3,41.28,0,{"$f":"'Форма 4'!I313","v":0},0,{"$f":"'Форма 4'!I314","v":0},1.43,0,0,0,0,0,0,0,0,0,0,null,0,0,0,0,0,0,0,0,null,null,0,0,0,0]
[{"$f":"'Форма 4'!A331","v":"17."},74.400000000000006,0,0,0,74.400000000000006,72.8,0,{"$f":"'Форма 4'!I331","v":0},0,{"$f":"'Форма 4'!I332","v":0},0,0,0,0,0,0,0,0,0,0,0,null,0,0,0,0,0,0,0,0,null,null,0,0,0,0]
[{"$f":"'Форма 4'!A349","v":"18."},331.98,71.47,10.15,0.12,250.36,0,0,{"$f":"'Форма 4'!I349","v":5.31},0,{"$f":"'Форма 4'!I350","v":0.01},0,0,57.987900000000003,42.596049999999998,57.890700000000002,9.7199999999999995E-2,42.524650000000001,7.1400000000000005E-2,0,0,0,null,0,0,0,0,0,0,0,0,null,null,0,0,0,0]
[{"$f":"'Форма 4'!A369","v":"19."},303.89,252.88,0,0,51.01,0,0,{"$f":"'Форма 4'!I369","v":5.5750000000000002},0,{"$f":"'Форма 4'!I370","v":0},0,0,227.59200000000001,150.46360000000001,227.59200000000001,0,150.46360000000001,0,0,0,0,null,0,0,0,0,0,0,0,0,null,null,0,0,0,0]
[{"$f":"'Форма 4'!A390","v":"20."},1629.27,0,0,0,1629.27,1248.68,0,{"$f":"'Форма 4'!I390","v":0},0,{"$f":"'Форма 4'!I391","v":0},0,0,0,0,0,0,0,0,0,0,0,null,0,0,0,0,0,0,0,0,null,null,0,0,0,0]
[{"$f":"'Форма 4'!A409","v":"21."},1414.52,1289.3800000000001,72.25,0,52.89,0,0,{"$f":"'Форма 4'!I409","v":107.18},0,{"$f":"'Форма 4'!I410","v":0},0,0,1160.442,767.18110000000001,1160.442,0,767.18110000000001,0,0,0,0,null,0,0,0,0,0,0,0,0,null,null,0,0,0,0]
[{"$f":"'Форма 4'!A430","v":"22."},14620,0,0,0,14620,14311.61,0,{"$f":"'Форма 4'!I430","v":0},0,{"$f":"'Форма 4'!I431","v":0},303,0,0,0,0,0,0,0,0,0,0,null,0,0,0,0,0,0,0,0,null,null,0,0,0,0]

{"sheet":"Базовые цены за единицу","index":2,"n_rows":27,"n_cols":37,"rows_kept":27,"cut":false,"hidden":false,"merged":[[1,0,1,9],[2,1,2,9],[3,1,3,9],[4,0,4,9]]}
[null,"C1","C2","C3","C4","C5","C6","VOZVR","C8","C9","C10","C11","C12","NAKL","PLAN","NAKL_ZPR","NAKL_ZPM","PLAN_ZPR","PLAN_ZPM","RN11","RN12","RN13",null,"OBORUD_VSPOMOG","NAKL_PN","NAKL_VX","PLAN_PN","PLAN_VX","VTCH_PN","VTCH_VX","MR_BY_ZPR_VSPOMOG","NAKL_INC","PLAN_INC","RN14","RN15","RN16","OBORUD"]
[]
[null,"N = < 209.15 * 209-08 * 5295.20 >"]
[null,"          Замена теплотрассы с. Демарино ул. Ленина"]
[]
[{"$f":"'Форма 4'!A26","v":"1."},{"$f":"ROUND(C6+D6+F6+AF6+AG6,2)","v":3420.69},103.33,3317.36,371.83,0,0,0,{"$f":"'Форма 4'!I26","v":10.48},0,{"$f":"'Форма 4'!I27","v":22.77},0,0,406.26179999999999,201.94300000000001,88.347149999999999,317.91464999999999,43.91525,158.02775,0,0,0,null,0,0,0,0,0,0,0,0,null,null,0,0,0,0]
[{"$f":"'Форма 4'!A45","v":"2."},1822.13,1822.13,0,0,0,0,0,{"$f":"'Форма 4'!I45","v":184.8},0,{"$f":"'Форма 4'!I46","v":0},0,0,1311.9336000000001,696.96472500000004,1311.9336000000001,0,696.96472500000004,0,0,0,0,null,0,0,0,0,0,0,0,0,null,null,0,0,0,0]
[{"$f":"'Форма 4'!A64","v":"3."},11467.66,4234.2700000000004,7233.39,611.65,0,0,0,{"$f":"'Форма 4'!I64","v":343.13400000000001},0,{"$f":"'Форма 4'!I65","v":43.752000000000002},0,0,5669.7263999999996,3665.9384799999998,4954.0959000000003,715.63049999999998,3203.2252549999998,462.71322500000002,0,0,0,null,0,0,0,0,0,0,0,0,null,null,0,0,0,0]
[{"$f":"'Форма 4'!A83","v":"4."},60806.98,7057.12,12055.65,1019.42,41694.21,0,0,{"$f":"'Форма 4'!I83","v":571.89},0,{"$f":"'Форма 4'!I84","v":72.92},0,0,9449.5517999999993,6109.9025099999999,8256.8304000000007,1192.7213999999999,5338.7112800000004,771.19123000000002,0,0,0,null,0,0,0,0,0,0,0,0,null,null,0,0,0,0]
[{"$f":"'Форма 4'!A102","v":"5."},238.64,0,0,0,238.64,233.31,0,{"$f":"'Форма 4'!I102","v":0},0,{"$f":"'Форма 4'!I103","v":0},0,0,0,0,0,0,0,0,0,0,0,null,0,0,0,0,0,0,0,0,null,null,0,0,0,0]
[{"$f":"'Форма 4'!A120","v":"6."},633.41,0,633.41,124.36,0,0,0,{"$f":"'Форма 4'!I120","v":0},0,{"$f":"'Форма 4'!I121","v":8.8699999999999992},0,0,106.3278,52.853000000000002,0,106.3278,0,52.853000000000002,0,0,0,null,0,0,0,0,0,0,0,0,null,null,0,0,0,0]
[{"$f":"'Форма 4'!A141","v":"7."},2426.1799999999998,149.87,2276.31,232.59,0,0,0,{"$f":"'Форма 4'!I141","v":15.2},0,{"$f":"'Форма 4'!I142","v":16.59},0,0,275.37119999999999,146.29095000000001,107.9064,167.4648,57.325274999999998,88.965675000000005,0,0,0,null,0,0,0,0,0,0,0,0,null,null,0,0,0,0]
[{"$f":"'Форма 4'!A160","v":"8."},14758.76,6449.24,1934.99,302.95,6374.53,0,0,{"$f":"'Форма 4'!I160","v":598.26},0,{"$f":"'Форма 4'!I161","v":18.62},0,0,6380.8195500000002,3730.5849750000002,6094.5317999999997,286.28775000000002,3563.2051000000001,167.379875,0,0,0,null,0,0,0,0,0,0,0,0,null,null,0,0,0,0]
[{"$f":"'Форма 4'!A179","v":"9."},551,0,0,0,551,454.59,0,{"$f":"'Форма 4'!I179","v":0},0,{"$f":"'Форма 4'!I180","v":0},2450,0,0,0,0,0,0,0,0,0,0,null,0,0,0,0,0,0,0,0,null,null,0,0,0,0]
[{"$f":"'Форма 4'!A198","v":"10."},549.95000000000005,74.73,299.82,36.18,175.4,0,0,{"$f":"'Форма 4'!I198","v":6.59},0,{"$f":"'Форма 4'!I199","v":2.09},0,0,89.837100000000007,80.132474999999999,60.531300000000002,29.305800000000001,53.992424999999997,26.140049999999999,0,0,0,null,0,0,0,0,0,0,0,0,null,null,0,0,0,0]
[{"$f":"'Форма 4'!A217","v":"11."},13810,0,0,0,13810,13630.05,0,{"$f":"'Форма 4'!I217","v":0},0,{"$f":"'Форма 4'!I218","v":0},1000,0,0,0,0,0,0,0,0,0,0,null,0,0,0,0,0,0,0,0,null,null,0,0,0,0]
[{"$f":"'Форма 4'!A235","v":"12."},331.98,71.47,10.15,0.12,250.36,0,0,{"$f":"'Форма 4'!I235","v":5.31},0,{"$f":"'Форма 4'!I236","v":0.01},0,0,57.987900000000003,42.596049999999998,57.890700000000002,9.7199999999999995E-2,42.524650000000001,7.1400000000000005E-2,0,0,0,null,0,0,0,0,0,0,0,0,null,null,0,0,0,0]
[{"$f":"'Форма 4'!A255","v":"13."},439.21,43.93,6.8,0.12,388.48,0,0,{"$f":"'Форма 4'!I255","v":3.83},0,{"$f":"'Форма 4'!I256","v":0.01},0,0,35.680500000000002,26.20975,35.583300000000001,9.7199999999999995E-2,26.138349999999999,7.1400000000000005E-2,0,0,0,null,0,0,0,0,0,0,0,0,null,null,0,0,0,0]
[{"$f":"'Форма 4'!A275","v":"14."},21914.95,5581.44,11594.41,1104.69,4739.1000000000004,0,0,{"$f":"'Форма 4'!I275","v":459},0,{"$f":"'Форма 4'!I276","v":77.849999999999994},0,0,7822.7721000000001,5058.0573450000002,6530.2848000000004,1292.4873,4222.3593600000004,835.69798500000002,0,0,0,null,0,0,0,0,0,0,0,0,null,null,0,0,0,0]
[{"$f":"'Форма 4'!A294","v":"15."},54.7,0,0,0,54.7,53.15,0,{"$f":"'Форма 4'!I294","v":0},0,{"$f":"'Форма 4'!I295","v":0},8.39,0,0,0,0,0,0,0,0,0,0,null,0,0,0,0,0,0,0,0,null,null,0,0,0,0]
[{"$f":"'Форма 4'!A313","v":"16."},42.3,0,0,0,42.3,41.28,0,{"$f":"'Форма 4'!I313","v":0},0,{"$f":"'Форма 4'!I314","v":0},1.43,0,0,0,0,0,0,0,0,0,0,null,0,0,0,0,0,0,0,0,null,null,0,0,0,0]
[{"$f":"'Форма 4'!A331","v":"17."},74.400000000000006,0,0,0,74.400000000000006,72.8,0,{"$f":"'Форма 4'!I331","v":0},0,{"$f":"'Форма 4'!I332","v":0},0,0,0,0,0,0,0,0,0,0,0,null,0,0,0,0,0,0,0,0,null,null,0,0,0,0]
[{"$f":"'Форма 4'!A349","v":"18."},331.98,71.47,10.15,0.12,250.36,0,0,{"$f":"'Форма 4'!I349","v":5.31},0,{"$f":"'Форма 4'!I350","v":0.01},0,0,57.987900000000003,42.596049999999998,57.890700000000002,9.7199999999999995E-2,42.524650000000001,7.1400000000000005E-2,0,0,0,null,0,0,0,0,0,0,0,0,null,null,0,0,0,0]
[{"$f":"'Форма 4'!A369","v":"19."},114.23,63.22,0,0,51.01,0,0,{"$f":"'Форма 4'!I369","v":5.5750000000000002},0,{"$f":"'Форма 4'!I370","v":0},0,0,56.898000000000003,37.615900000000003,56.898000000000003,0,37.615900000000003,0,0,0,0,null,0,0,0,0,0,0,0,0,null,null,0,0,0,0]
[{"$f":"'Форма 4'!A390","v":"20."},1629.27,0,0,0,1629.27,1248.68,0,{"$f":"'Форма 4'!I390","v":0},0,{"$f":"'Форма 4'!I391","v":0},0,0,0,0,0,0,0,0,0,0,0,null,0,0,0,0,0,0,0,0,null,null,0,0,0,0]
[{"$f":"'Форма 4'!A409","v":"21."},1414.52,1289.3800000000001,72.25,0,52.89,0,0,{"$f":"'Форма 4'!I409","v":107.18},0,{"$f":"'Форма 4'!I410","v":0},0,0,1160.442,767.18110000000001,1160.442,0,767.18110000000001,0,0,0,0,null,0,0,0,0,0,0,0,0,null,null,0,0,0,0]
[{"$f":"'Форма 4'!A430","v":"22."},14620,0,0,0,14620,14311.61,0,{"$f":"'Форма 4'!I430","v":0},0,{"$f":"'Форма 4'!I431","v":0},303,0,0,0,0,0,0,0,0,0,0,null,0,0,0,0,0,0,0,0,null,null,0,0,0,0]

{"sheet":"Базовые цены с учетом расхода","index":3,"n_rows":27,"n_cols":37,"rows_kept":27,"cut":false,"hidden":false,"merged":[[1,0,1,9],[2,1,2,9],[3,1,3,9],[4,0,4,9]]}
[null,"C1","C2","C3","C4","C5","C6","VOZVR","C8","C9","C10","C11","C12","NAKL","PLAN","NAKL_ZPR","NAKL_ZPM","PLAN_ZPR","PLAN_ZPM","RN11","RN12","RN13",null,"OBORUD_VSPOMOG","NAKL_PN","NAKL_VX","PLAN_PN","PLAN_VX","VTCH_PN","VTCH_VX","MR_BY_ZPR_VSPOMOG","NAKL_INC","PLAN_INC","RN14","RN15","RN16","OBORUD"]
[]
[null,"N = < 209.15 * 209-08 * 5295.20 >"]
[null,"          Замена теплотрассы с. Демарино ул. Ленина"]
[]
[{"$f":"'Форма 4'!A26","v":"1."},{"$f":"ROUND(C6+D6+F6+AF6+AG6,0)","v":33},{"$f":"ROUND('Форма 4'!C26*'Базовые цены за единицу'!C6,0)","v":1},{"$f":"ROUND('Форма 4'!C26*'Базовые цены за единицу'!D6,0)","v":32},{"$f":"ROUND('Форма 4'!C26*'Базовые цены за единицу'!E6,0)","v":4},{"$f":"ROUND('Форма 4'!C26*'Базовые цены за единицу'!F6,0)","v":0},{"$f":"ROUND('Форма 4'!C26*'Базовые цены за единицу'!G6,0)","v":0},{"$f":"ROUND('Форма 4'!C26*'Базовые цены за единицу'!H6,0)","v":0},{"$f":"ОКРУГЛВСЕ('Форма 4'!C26*'Базовые цены за единицу'!I6,8)","v":0.10218000000000001},{"$f":"ОКРУГЛВСЕ('Форма 4'!C26*'Базовые цены за единицу'!J6,8)","v":0},{"$f":"ОКРУГЛВСЕ('Форма 4'!C26*'Базовые цены за единицу'!K6,8)","v":0.2220075},{"$f":"ROUND('Форма 4'!C26*'Базовые цены за единицу'!L6,0)","v":0},{"$f":"ROUND('Форма 4'!C26*'Базовые цены за единицу'!M6,0)","v":0},{"$f":"ROUND((C6+E6)*'Форма 4'!C37/100,0)","v":4},{"$f":"ROUND((C6+E6)*'Форма 4'!C40/100,0)","v":2},{"$f":"ROUND('Форма 4'!C26*'Базовые цены за единицу'!P6,0)","v":1},{"$f":"ROUND('Форма 4'!C26*'Базовые цены за единицу'!Q6,0)","v":3},{"$f":"ROUND('Форма 4'!C26*'Базовые цены за единицу'!R6,0)","v":0},{"$f":"ROUND('Форма 4'!C26*'Базовые цены за единицу'!S6,0)","v":2},{"$f":"ROUND('Форма 4'!C26*'Базовые цены за единицу'!T6,0)","v":0},{"$f":"ROUND('Форма 4'!C26*'Базовые цены за единицу'!U6,0)","v":0},{"$f":"ROUND('Форма 4'!C26*'Базовые цены за единицу'!V6,0)","v":0},null,{"$f":"ROUND('Форма 4'!C26*'Базовые цены за единицу'!X6,0)","v":0},{"$f":"IF(Определители!I6=\"9\",ROUND((C6+E6)*(Начисления!M6/100)*('Форма 4'!C37/100),0),0)","v":0},{"$f":"IF(Определители!I6=\"9\",ROUND((C6+E6)*(100-Начисления!M6/100)*('Форма 4'!C37/100),0),0)","v":0},{"$f":"IF(Определители!I6=\"9\",ROUND((C6+E6)*(Начисления!M6/100)*('Форма 4'!C40/100),0),0)","v":0},{"$f":"IF(Определители!I6=\"9\",ROUND((C6+E6)*(100-Начисления!M6/100)*('Форма 4'!C40/100),0),0)","v":0},{"$f":"IF(Определители!I6=\"9\",ROUND(B6*Начисления!M6/100,0),0)","v":0},{"$f":"IF(Определители!I6=\"9\",ROUND(B6*(100-Начисления!M6)/100,0),0)","v":0},{"$f":"ROUND('Форма 4'!C26*'Базовые цены за единицу'!AE6,0)","v":0},null,null,{"$f":"ROUND('Форма 4'!C26*'Базовые цены за единицу'!AH6,0)","v":0},{"$f":"ROUND('Форма 4'!C26*'Базовые цены за единицу'!AI6,0)","v":0},{"$f":"ROUND('Форма 4'!C26*'Базовые цены за единицу'!AJ6,0)","v":0},{"$f":"ROUND('Форма 4'!C26*'Базовые цены за единицу'!AK6,0)","v":0}]
[{"$f":"'Форма 4'!A45","v":"2."},18,{"$f":"ROUND('Форма 4'!C45*'Базовые цены за единицу'!C7,0)","v":18},{"$f":"ROUND('Форма 4'!C45*'Базовые цены за единицу'!D7,0)","v":0},{"$f":"ROUND('Форма 4'!C45*'Базовые цены за единицу'!E7,0)","v":0},{"$f":"ROUND('Форма 4'!C45*'Базовые цены за единицу'!F7,0)","v":0},{"$f":"ROUND('Форма 4'!C45*'Базовые цены за единицу'!G7,0)","v":0},{"$f":"ROUND('Форма 4'!C45*'Базовые цены за единицу'!H7,0)","v":0},{"$f":"ОКРУГЛВСЕ('Форма 4'!C45*'Базовые цены за единицу'!I7,8)","v":1.8480000000000001},{"$f":"ОКРУГЛВСЕ('Форма 4'!C45*'Базовые цены за единицу'!J7,8)","v":0},{"$f":"ОКРУГЛВСЕ('Форма 4'!C45*'Базовые цены за единицу'!K7,8)","v":0},{"$f":"ROUND('Форма 4'!C45*'Базовые цены за единицу'!L7,0)","v":0},{"$f":"ROUND('Форма 4'!C45*'Базовые цены за единицу'!M7,0)","v":0},{"$f":"ROUND((C7+E7)*'Форма 4'!C56/100,0)","v":13},{"$f":"ROUND((C7+E7)*'Форма 4'!C59/100,0)","v":7},{"$f":"ROUND('Форма 4'!C45*'Базовые цены за единицу'!P7,0)","v":13},{"$f":"ROUND('Форма 4'!C45*'Базовые цены за единицу'!Q7,0)","v":0},{"$f":"ROUND('Форма 4'!C45*'Базовые цены за единицу'!R7,0)","v":7},{"$f":"ROUND('Форма 4'!C45*'Базовые цены за единицу'!S7,0)","v":0},{"$f":"ROUND('Форма 4'!C45*'Базовые цены за единицу'!T7,0)","v":0},{"$f":"ROUND('Форма 4'!C45*'Базовые цены за единицу'!U7,0)","v":0},{"$f":"ROUND('Форма 4'!C45*'Базовые цены за единицу'!V7,0)","v":0},null,{"$f":"ROUND('Форма 4'!C45*'Базовые цены за единицу'!X7,0)","v":0},{"$f":"IF(Определители!I7=\"9\",ROUND((C7+E7)*(Начисления!M7/100)*('Форма 4'!C56/100),0),0)","v":0},{"$f":"IF(Определители!I7=\"9\",ROUND((C7+E7)*(100-Начисления!M7/100)*('Форма 4'!C56/100),0),0)","v":0},{"$f":"IF(Определители!I7=\"9\",ROUND((C7+E7)*(Начисления!M7/100)*('Форма 4'!C59/100),0),0)","v":0},{"$f":"IF(Определители!I7=\"9\",ROUND((C7+E7)*(100-Начисления!M7/100)*('Форма 4'!C59/100),0),0)","v":0},{"$f":"IF(Определители!I7=\"9\",ROUND(B7*Начисления!M7/100,0),0)","v":0},{"$f":"IF(Определители!I7=\"9\",ROUND(B7*(100-Начисления!M7)/100,0),0)","v":0},{"$f":"ROUND('Форма 4'!C45*'Базовые цены за единицу'!AE7,0)","v":0},null,null,{"$f":"ROUND('Форма 4'!C45*'Базовые цены за единицу'!AH7,0)","v":0},{"$f":"ROUND('Форма 4'!C45*'Базовые цены за единицу'!AI7,0)","v":0},{"$f":"ROUND('Форма 4'!C45*'Базовые цены за единицу'!AJ7,0)","v":0},{"$f":"ROUND('Форма 4'!C45*'Базовые цены за единицу'!AK7,0)","v":0}]
[{"$f":"'Форма 4'!A64","v":"3."},894,{"$f":"ROUND('Форма 4'!C64*'Базовые цены за единицу'!C8,0)","v":330},{"$f":"ROUND('Форма 4'!C64*'Базовые цены за единицу'!D8,0)","v":564},{"$f":"ROUND('Форма 4'!C64*'Базовые цены за единицу'!E8,0)","v":48},{"$f":"ROUND('Форма 4'!C64*'Базовые цены за единицу'!F8,0)","v":0},{"$f":"ROUND('Форма 4'!C64*'Базовые цены за единицу'!G8,0)","v":0},{"$f":"ROUND('Форма 4'!C64*'Базовые цены за единицу'!H8,0)","v":0},{"$f":"ОКРУГЛВСЕ('Форма 4'!C64*'Базовые цены за единицу'!I8,8)","v":26.764451999999999},{"$f":"ОКРУГЛВСЕ('Форма 4'!C64*'Базовые цены за единицу'!J8,8)","v":0},{"$f":"ОКРУГЛВСЕ('Форма 4'!C64*'Базовые цены за единицу'!K8,8)","v":3.4126560000000001},{"$f":"ROUND('Форма 4'!C64*'Базовые цены за единицу'!L8,0)","v":0},{"$f":"ROUND('Форма 4'!C64*'Базовые цены за единицу'!M8,0)","v":0},{"$f":"ROUND((C8+E8)*'Форма 4'!C75/100,0)","v":442},{"$f":"ROUND((C8+E8)*'Форма 4'!C78/100,0)","v":286},{"$f":"ROUND('Форма 4'!C64*'Базовые цены за единицу'!P8,0)","v":386},{"$f":"ROUND('Форма 4'!C64*'Базовые цены за единицу'!Q8,0)","v":56},{"$f":"ROUND('Форма 4'!C64*'Базовые цены за единицу'!R8,0)","v":250},{"$f":"ROUND('Форма 4'!C64*'Базовые цены за единицу'!S8,0)","v":36},{"$f":"ROUND('Форма 4'!C64*'Базовые цены за единицу'!T8,0)","v":0},{"$f":"ROUND('Форма 4'!C64*'Базовые цены за единицу'!U8,0)","v":0},{"$f":"ROUND('Форма 4'!C64*'Базовые цены за единицу'!V8,0)","v":0},null,{"$f":"ROUND('Форма 4'!C64*'Базовые цены за единицу'!X8,0)","v":0},{"$f":"IF(Определители!I8=\"9\",ROUND((C8+E8)*(Начисления!M8/100)*('Форма 4'!C75/100),0),0)","v":0},{"$f":"IF(Определители!I8=\"9\",ROUND((C8+E8)*(100-Начисления!M8/100)*('Форма 4'!C75/100),0),0)","v":0},{"$f":"IF(Определители!I8=\"9\",ROUND((C8+E8)*(Начисления!M8/100)*('Форма 4'!C78/100),0),0)","v":0},{"$f":"IF(Определители!I8=\"9\",ROUND((C8+E8)*(100-Начисления!M8/100)*('Форма 4'!C78/100),0),0)","v":0},{"$f":"IF(Определители!I8=\"9\",ROUND(B8*Начисления!M8/100,0),0)","v":0},{"$f":"IF(Определители!I8=\"9\",ROUND(B8*(100-Начисления!M8)/100,0),0)","v":0},{"$f":"ROUND('Форма 4'!C64*'Базовые цены за единицу'!AE8,0)","v":0},null,null,{"$f":"ROUND('Форма 4'!C64*'Базовые цены за единицу'!AH8,0)","v":0},{"$f":"ROUND('Форма 4'!C64*'Базовые цены за единицу'!AI8,0)","v":0},{"$f":"ROUND('Форма 4'!C64*'Базовые цены за единицу'!AJ8,0)","v":0},{"$f":"ROUND('Форма 4'!C64*'Базовые цены за единицу'!AK8,0)","v":0}]
[{"$f":"'Форма 4'!A83","v":"4."},4742,{"$f":"ROUND('Форма 4'!C83*'Базовые цены за единицу'!C9,0)","v":550},{"$f":"ROUND('Форма 4'!C83*'Базовые цены за единицу'!D9,0)","v":940},{"$f":"ROUND('Форма 4'!C83*'Базовые цены за единицу'!E9,0)","v":80},{"$f":"ROUND('Форма 4'!C83*'Базовые цены за единицу'!F9,0)","v":3252},{"$f":"ROUND('Форма 4'!C83*'Базовые цены за единицу'!G9,0)","v":0},{"$f":"ROUND('Форма 4'!C83*'Базовые цены за единицу'!H9,0)","v":0},{"$f":"ОКРУГЛВСЕ('Форма 4'!C83*'Базовые цены за единицу'!I9,8)","v":44.607419999999998},{"$f":"ОКРУГЛВСЕ('Форма 4'!C83*'Базовые цены за единицу'!J9,8)","v":0},{"$f":"ОКРУГЛВСЕ('Форма 4'!C83*'Базовые цены за единицу'!K9,8)","v":5.6877599999999999},{"$f":"ROUND('Форма 4'!C83*'Базовые цены за единицу'!L9,0)","v":0},{"$f":"ROUND('Форма 4'!C83*'Базовые цены за единицу'!M9,0)","v":0},{"$f":"ROUND((C9+E9)*'Форма 4'!C94/100,0)","v":737},{"$f":"ROUND((C9+E9)*'Форма 4'!C97/100,0)","v":477},{"$f":"ROUND('Форма 4'!C83*'Базовые цены за единицу'!P9,0)","v":644},{"$f":"ROUND('Форма 4'!C83*'Базовые цены за единицу'!Q9,0)","v":93},{"$f":"ROUND('Форма 4'!C83*'Базовые цены за единицу'!R9,0)","v":416},{"$f":"ROUND('Форма 4'!C83*'Базовые цены за единицу'!S9,0)","v":60},{"$f":"ROUND('Форма 4'!C83*'Базовые цены за единицу'!T9,0)","v":0},{"$f":"ROUND('Форма 4'!C83*'Базовые цены за единицу'!U9,0)","v":0},{"$f":"ROUND('Форма 4'!C83*'Базовые цены за единицу'!V9,0)","v":0},null,{"$f":"ROUND('Форма 4'!C83*'Базовые цены за единицу'!X9,0)","v":0},{"$f":"IF(Определители!I9=\"9\",ROUND((C9+E9)*(Начисления!M9/100)*('Форма 4'!C94/100),0),0)","v":0},{"$f":"IF(Определители!I9=\"9\",ROUND((C9+E9)*(100-Начисления!M9/100)*('Форма 4'!C94/100),0),0)","v":0},{"$f":"IF(Определители!I9=\"9\",ROUND((C9+E9)*(Начисления!M9/100)*('Форма 4'!C97/100),0),0)","v":0},{"$f":"IF(Определители!I9=\"9\",ROUND((C9+E9)*(100-Начисления!M9/100)*('Форма 4'!C97/100),0),0)","v":0},{"$f":"IF(Определители!I9=\"9\",ROUND(B9*Начисления!M9/100,0),0)","v":0},{"$f":"IF(Определители!I9=\"9\",ROUND(B9*(100-Начисления!M9)/100,0),0)","v":0},{"$f":"ROUND('Форма 4'!C83*'Базовые цены за единицу'!AE9,0)","v":0},null,null,{"$f":"ROUND('Форма 4'!C83*'Базовые цены за единицу'!AH9,0)","v":0},{"$f":"ROUND('Форма 4'!C83*'Базовые цены за единицу'!AI9,0)","v":0},{"$f":"ROUND('Форма 4'!C83*'Базовые цены за единицу'!AJ9,0)","v":0},{"$f":"ROUND('Форма 4'!C83*'Базовые цены за единицу'!AK9,0)","v":0}]
[{"$f":"'Форма 4'!A102","v":"5."},18614,{"$f":"ROUND('Форма 4'!C102*'Базовые цены за единицу'!C10,0)","v":0},{"$f":"ROUND('Форма 4'!C102*'Базовые цены за единицу'!D10,0)","v":0},{"$f":"ROUND('Форма 4'!C102*'Базовые цены за единицу'!E10,0)","v":0},{"$f":"ROUND('Форма 4'!C102*'Базовые цены за единицу'!F10,0)","v":18614},{"$f":"ROUND('Форма 4'!C102*'Базовые цены за единицу'!G10,0)","v":18198},{"$f":"ROUND('Форма 4'!C102*'Базовые цены за единицу'!H10,0)","v":0},{"$f":"ОКРУГЛВСЕ('Форма 4'!C102*'Базовые цены за единицу'!I10,8)","v":0},{"$f":"ОКРУГЛВСЕ('Форма 4'!C102*'Базовые цены за единицу'!J10,8)","v":0},{"$f":"ОКРУГЛВСЕ('Форма 4'!C102*'Базовые цены за единицу'!K10,8)","v":0},{"$f":"ROUND('Форма 4'!C102*'Базовые цены за единицу'!L10,0)","v":0},{"$f":"ROUND('Форма 4'!C102*'Базовые цены за единицу'!M10,0)","v":0},{"$f":"ROUND((C10+E10)*'Форма 4'!C113/100,0)","v":0},{"$f":"ROUND((C10+E10)*'Форма 4'!C116/100,0)","v":0},{"$f":"ROUND('Форма 4'!C102*'Базовые цены за единицу'!P10,0)","v":0},{"$f":"ROUND('Форма 4'!C102*'Базовые цены за единицу'!Q10,0)","v":0},{"$f":"ROUND('Форма 4'!C102*'Базовые цены за единицу'!R10,0)","v":0},{"$f":"ROUND('Форма 4'!C102*'Базовые цены за единицу'!S10,0)","v":0},{"$f":"ROUND('Форма 4'!C102*'Базовые цены за единицу'!T10,0)","v":0},{"$f":"ROUND('Форма 4'!C102*'Базовые цены за единицу'!U10,0)","v":0},{"$f":"ROUND('Форма 4'!C102*'Базовые цены за единицу'!V10,0)","v":0},null,{"$f":"ROUND('Форма 4'!C102*'Базовые цены за единицу'!X10,0)","v":0},{"$f":"IF(Определители!I10=\"9\",ROUND((C10+E10)*(Начисления!M10/100)*('Форма 4'!C113/100),0),0)","v":0},{"$f":"IF(Определители!I10=\"9\",ROUND((C10+E10)*(100-Начисления!M10/100)*('Форма 4'!C113/100),0),0)","v":0},{"$f":"IF(Определители!I10=\"9\",ROUND((C10+E10)*(Начисления!M10/100)*('Форма 4'!C116/100),0),0)","v":0},{"$f":"IF(Определители!I10=\"9\",ROUND((C10+E10)*(100-Начисления!M10/100)*('Форма 4'!C116/100),0),0)","v":0},{"$f":"IF(Определители!I10=\"9\",ROUND(B10*Начисления!M10/100,0),0)","v":0},{"$f":"IF(Определители!I10=\"9\",ROUND(B10*(100-Начисления!M10)/100,0),0)","v":0},{"$f":"ROUND('Форма 4'!C102*'Базовые цены за единицу'!AE10,0)","v":0},null,null,{"$f":"ROUND('Форма 4'!C102*'Базовые цены за единицу'!AH10,0)","v":0},{"$f":"ROUND('Форма 4'!C102*'Базовые цены за единицу'!AI10,0)","v":0},{"$f":"ROUND('Форма 4'!C102*'Базовые цены за единицу'!AJ10,0)","v":0},{"$f":"ROUND('Форма 4'!C102*'Базовые цены за единицу'!AK10,0)","v":0}]
[{"$f":"'Форма 4'!A120","v":"6."},7,{"$f":"ROUND('Форма 4'!C120*'Базовые цены за единицу'!C11,0)","v":0},{"$f":"ROUND('Форма 4'!C120*'Базовые цены за единицу'!D11,0)","v":7},{"$f":"ROUND('Форма 4'!C120*'Базовые цены за единицу'!E11,0)","v":1},{"$f":"ROUND('Форма 4'!C120*'Базовые цены за единицу'!F11,0)","v":0},{"$f":"ROUND('Форма 4'!C120*'Базовые цены за единицу'!G11,0)","v":0},{"$f":"ROUND('Форма 4'!C120*'Базовые цены за единицу'!H11,0)","v":0},{"$f":"ОКРУГЛВСЕ('Форма 4'!C120*'Базовые цены за единицу'!I11,8)","v":0},{"$f":"ОКРУГЛВСЕ('Форма 4'!C120*'Базовые цены за единицу'!J11,8)","v":0},{"$f":"ОКРУГЛВСЕ('Форма 4'!C120*'Базовые цены за единицу'!K11,8)","v":9.5352500000000007E-2},{"$f":"ROUND('Форма 4'!C120*'Базовые цены за единицу'!L11,0)","v":0},{"$f":"ROUND('Форма 4'!C120*'Базовые цены за единицу'!M11,0)","v":0},{"$f":"ROUND((C11+E11)*'Форма 4'!C131/100,0)","v":1},{"$f":"ROUND((C11+E11)*'Форма 4'!C134/100,0)","v":0},{"$f":"ROUND('Форма 4'!C120*'Базовые цены за единицу'!P11,0)","v":0},{"$f":"ROUND('Форма 4'!C120*'Базовые цены за единицу'!Q11,0)","v":1},{"$f":"ROUND('Форма 4'!C120*'Базовые цены за единицу'!R11,0)","v":0},{"$f":"ROUND('Форма 4'!C120*'Базовые цены за единицу'!S11,0)","v":1},{"$f":"ROUND('Форма 4'!C120*'Базовые цены за единицу'!T11,0)","v":0},{"$f":"ROUND('Форма 4'!C120*'Базовые цены за единицу'!U11,0)","v":0},{"$f":"ROUND('Форма 4'!C120*'Базовые цены за единицу'!V11,0)","v":0},null,{"$f":"ROUND('Форма 4'!C120*'Базовые цены за единицу'!X11,0)","v":0},{"$f":"IF(Определители!I11=\"9\",ROUND((C11+E11)*(Начисления!M11/100)*('Форма 4'!C131/100),0),0)","v":0},{"$f":"IF(Определители!I11=\"9\",ROUND((C11+E11)*(100-Начисления!M11/100)*('Форма 4'!C131/100),0),0)","v":0},{"$f":"IF(Определители!I11=\"9\",ROUND((C11+E11)*(Начисления!M11/100)*('Форма 4'!C134/100),0),0)","v":0},{"$f":"IF(Определители!I11=\"9\",ROUND((C11+E11)*(100-Начисления!M11/100)*('Форма 4'!C134/100),0),0)","v":0},{"$f":"IF(Определители!I11=\"9\",ROUND(B11*Начисления!M11/100,0),0)","v":0},{"$f":"IF(Определители!I11=\"9\",ROUND(B11*(100-Начисления!M11)/100,0),0)","v":0},{"$f":"ROUND('Форма 4'!C120*'Базовые цены за единицу'!AE11,0)","v":0},null,null,{"$f":"ROUND('Форма 4'!C120*'Базовые цены за единицу'!AH11,0)","v":0},{"$f":"ROUND('Форма 4'!C120*'Базовые цены за единицу'!AI11,0)","v":0},{"$f":"ROUND('Форма 4'!C120*'Базовые цены за единицу'!AJ11,0)","v":0},{"$f":"ROUND('Форма 4'!C120*'Базовые цены за единицу'!AK11,0)","v":0}]
[{"$f":"'Форма 4'!A141","v":"7."},558,{"$f":"ROUND('Форма 4'!C141*'Базовые цены за единицу'!C12,0)","v":34},{"$f":"ROUND('Форма 4'!C141*'Базовые цены за единицу'!D12,0)","v":524},{"$f":"ROUND('Форма 4'!C141*'Базовые цены за единицу'!E12,0)","v":53},{"$f":"ROUND('Форма 4'!C141*'Базовые цены за единицу'!F12,0)","v":0},{"$f":"ROUND('Форма 4'!C141*'Базовые цены за единицу'!G12,0)","v":0},{"$f":"ROUND('Форма 4'!C141*'Базовые цены за единицу'!H12,0)","v":0},{"$f":"ОКРУГЛВСЕ('Форма 4'!C141*'Базовые цены за единицу'!I12,8)","v":3.496},{"$f":"ОКРУГЛВСЕ('Форма 4'!C141*'Базовые цены за единицу'!J12,8)","v":0},{"$f":"ОКРУГЛВСЕ('Форма 4'!C141*'Базовые цены за единицу'!K12,8)","v":3.8157000000000001},{"$f":"ROUND('Форма 4'!C141*'Базовые цены за единицу'!L12,0)","v":0},{"$f":"ROUND('Форма 4'!C141*'Базовые цены за единицу'!M12,0)","v":0},{"$f":"ROUND((C12+E12)*'Форма 4'!C152/100,0)","v":63},{"$f":"ROUND((C12+E12)*'Форма 4'!C155/100,0)","v":33},{"$f":"ROUND('Форма 4'!C141*'Базовые цены за единицу'!P12,0)","v":25},{"$f":"ROUND('Форма 4'!C141*'Базовые цены за единицу'!Q12,0)","v":39},{"$f":"ROUND('Форма 4'!C141*'Базовые цены за единицу'!R12,0)","v":13},{"$f":"ROUND('Форма 4'!C141*'Базовые цены за единицу'!S12,0)","v":20},{"$f":"ROUND('Форма 4'!C141*'Базовые цены за единицу'!T12,0)","v":0},{"$f":"ROUND('Форма 4'!C141*'Базовые цены за единицу'!U12,0)","v":0},{"$f":"ROUND('Форма 4'!C141*'Базовые цены за единицу'!V12,0)","v":0},null,{"$f":"ROUND('Форма 4'!C141*'Базовые цены за единицу'!X12,0)","v":0},{"$f":"IF(Определители!I12=\"9\",ROUND((C12+E12)*(Начисления!M12/100)*('Форма 4'!C152/100),0),0)","v":0},{"$f":"IF(Определители!I12=\"9\",ROUND((C12+E12)*(100-Начисления!M12/100)*('Форма 4'!C152/100),0),0)","v":0},{"$f":"IF(Определители!I12=\"9\",ROUND((C12+E12)*(Начисления!M12/100)*('Форма 4'!C155/100),0),0)","v":0},{"$f":"IF(Определители!I12=\"9\",ROUND((C12+E12)*(100-Начисления!M12/100)*('Форма 4'!C155/100),0),0)","v":0},{"$f":"IF(Определители!I12=\"9\",ROUND(B12*Начисления!M12/100,0),0)","v":0},{"$f":"IF(Определители!I12=\"9\",ROUND(B12*(100-Начисления!M12)/100,0),0)","v":0},{"$f":"ROUND('Форма 4'!C141*'Базовые цены за единицу'!AE12,0)","v":0},null,null,{"$f":"ROUND('Форма 4'!C141*'Базовые цены за единицу'!AH12,0)","v":0},{"$f":"ROUND('Форма 4'!C141*'Базовые цены за единицу'!AI12,0)","v":0},{"$f":"ROUND('Форма 4'!C141*'Базовые цены за единицу'!AJ12,0)","v":0},{"$f":"ROUND('Форма 4'!C141*'Базовые цены за единицу'!AK12,0)","v":0}]
[{"$f":"'Форма 4'!A160","v":"8."},147,{"$f":"ROUND('Форма 4'!C160*'Базовые цены за единицу'!C13,0)","v":64},{"$f":"ROUND('Форма 4'!C160*'Базовые цены за единицу'!D13,0)","v":19},{"$f":"ROUND('Форма 4'!C160*'Базовые цены за единицу'!E13,0)","v":3},{"$f":"ROUND('Форма 4'!C160*'Базовые цены за единицу'!F13,0)","v":64},{"$f":"ROUND('Форма 4'!C160*'Базовые цены за единицу'!G13,0)","v":0},{"$f":"ROUND('Форма 4'!C160*'Базовые цены за единицу'!H13,0)","v":0},{"$f":"ОКРУГЛВСЕ('Форма 4'!C160*'Базовые цены за единицу'!I13,8)","v":5.9825999999999997},{"$f":"ОКРУГЛВСЕ('Форма 4'!C160*'Базовые цены за единицу'!J13,8)","v":0},{"$f":"ОКРУГЛВСЕ('Форма 4'!C160*'Базовые цены за единицу'!K13,8)","v":0.1862},{"$f":"ROUND('Форма 4'!C160*'Базовые цены за единицу'!L13,0)","v":0},{"$f":"ROUND('Форма 4'!C160*'Базовые цены за единицу'!M13,0)","v":0},{"$f":"ROUND((C13+E13)*'Форма 4'!C171/100,0)","v":63},{"$f":"ROUND((C13+E13)*'Форма 4'!C174/100,0)","v":37},{"$f":"ROUND('Форма 4'!C160*'Базовые цены за единицу'!P13,0)","v":61},{"$f":"ROUND('Форма 4'!C160*'Базовые цены за единицу'!Q13,0)","v":3},{"$f":"ROUND('Форма 4'!C160*'Базовые цены за единицу'!R13,0)","v":36},{"$f":"ROUND('Форма 4'!C160*'Базовые цены за единицу'!S13,0)","v":2},{"$f":"ROUND('Форма 4'!C160*'Базовые цены за единицу'!T13,0)","v":0},{"$f":"ROUND('Форма 4'!C160*'Базовые цены за единицу'!U13,0)","v":0},{"$f":"ROUND('Форма 4'!C160*'Базовые цены за единицу'!V13,0)","v":0},null,{"$f":"ROUND('Форма 4'!C160*'Базовые цены за единицу'!X13,0)","v":0},{"$f":"IF(Определители!I13=\"9\",ROUND((C13+E13)*(Начисления!M13/100)*('Форма 4'!C171/100),0),0)","v":0},{"$f":"IF(Определители!I13=\"9\",ROUND((C13+E13)*(100-Начисления!M13/100)*('Форма 4'!C171/100),0),0)","v":0},{"$f":"IF(Определители!I13=\"9\",ROUND((C13+E13)*(Начисления!M13/100)*('Форма 4'!C174/100),0),0)","v":0},{"$f":"IF(Определители!I13=\"9\",ROUND((C13+E13)*(100-Начисления!M13/100)*('Форма 4'!C174/100),0),0)","v":0},{"$f":"IF(Определители!I13=\"9\",ROUND(B13*Начисления!M13/100,0),0)","v":0},{"$f":"IF(Определители!I13=\"9\",ROUND(B13*(100-Начисления!M13)/100,0),0)","v":0},{"$f":"ROUND('Форма 4'!C160*'Базовые цены за единицу'!AE13,0)","v":0},null,null,{"$f":"ROUND('Форма 4'!C160*'Базовые цены за единицу'!AH13,0)","v":0},{"$f":"ROUND('Форма 4'!C160*'Базовые цены за единицу'!AI13,0)","v":0},{"$f":"ROUND('Форма 4'!C160*'Базовые цены за единицу'!AJ13,0)","v":0},{"$f":"ROUND('Форма 4'!C160*'Базовые цены за единицу'!AK13,0)","v":0}]
[{"$f":"'Форма 4'!A179","v":"9."},562,{"$f":"ROUND('Форма 4'!C179*'Базовые цены за единицу'!C14,0)","v":0},{"$f":"ROUND('Форма 4'!C179*'Базовые цены за единицу'!D14,0)","v":0},{"$f":"ROUND('Форма 4'!C179*'Базовые цены за единицу'!E14,0)","v":0},{"$f":"ROUND('Форма 4'!C179*'Базовые цены за единицу'!F14,0)","v":562},{"$f":"ROUND('Форма 4'!C179*'Базовые цены за единицу'!G14,0)","v":464},{"$f":"ROUND('Форма 4'!C179*'Базовые цены за единицу'!H14,0)","v":0},{"$f":"ОКРУГЛВСЕ('Форма 4'!C179*'Базовые цены за единицу'!I14,8)","v":0},{"$f":"ОКРУГЛВСЕ('Форма 4'!C179*'Базовые цены за единицу'!J14,8)","v":0},{"$f":"ОКРУГЛВСЕ('Форма 4'!C179*'Базовые цены за единицу'!K14,8)","v":0},{"$f":"ROUND('Форма 4'!C179*'Базовые цены за единицу'!L14,0)","v":2499},{"$f":"ROUND('Форма 4'!C179*'Базовые цены за единицу'!M14,0)","v":0},{"$f":"ROUND((C14+E14)*'Форма 4'!C191/100,0)","v":0},{"$f":"ROUND((C14+E14)*'Форма 4'!C194/100,0)","v":0},{"$f":"ROUND('Форма 4'!C179*'Базовые цены за единицу'!P14,0)","v":0},{"$f":"ROUND('Форма 4'!C179*'Базовые цены за единицу'!Q14,0)","v":0},{"$f":"ROUND('Форма 4'!C179*'Базовые цены за единицу'!R14,0)","v":0},{"$f":"ROUND('Форма 4'!C179*'Базовые цены за единицу'!S14,0)","v":0},{"$f":"ROUND('Форма 4'!C179*'Базовые цены за единицу'!T14,0)","v":0},{"$f":"ROUND('Форма 4'!C179*'Базовые цены за единицу'!U14,0)","v":0},{"$f":"ROUND('Форма 4'!C179*'Базовые цены за единицу'!V14,0)","v":0},null,{"$f":"ROUND('Форма 4'!C179*'Базовые цены за единицу'!X14,0)","v":0},{"$f":"IF(Определители!I14=\"9\",ROUND((C14+E14)*(Начисления!M14/100)*('Форма 4'!C191/100),0),0)","v":0},{"$f":"IF(Определители!I14=\"9\",ROUND((C14+E14)*(100-Начисления!M14/100)*('Форма 4'!C191/100),0),0)","v":0},{"$f":"IF(Определители!I14=\"9\",ROUND((C14+E14)*(Начисления!M14/100)*('Форма 4'!C194/100),0),0)","v":0},{"$f":"IF(Определители!I14=\"9\",ROUND((C14+E14)*(100-Начисления!M14/100)*('Форма 4'!C194/100),0),0)","v":0},{"$f":"IF(Определители!I14=\"9\",ROUND(B14*Начисления!M14/100,0),0)","v":0},{"$f":"IF(Определители!I14=\"9\",ROUND(B14*(100-Начисления!M14)/100,0),0)","v":0},{"$f":"ROUND('Форма 4'!C179*'Базовые цены за единицу'!AE14,0)","v":0},null,null,{"$f":"ROUND('Форма 4'!C179*'Базовые цены за единицу'!AH14,0)","v":0},{"$f":"ROUND('Форма 4'!C179*'Базовые цены за единицу'!AI14,0)","v":0},{"$f":"ROUND('Форма 4'!C179*'Базовые цены за единицу'!AJ14,0)","v":0},{"$f":"ROUND('Форма 4'!C179*'Базовые цены за единицу'!AK14,0)","v":0}]
[{"$f":"'Форма 4'!A198","v":"10."},347,{"$f":"ROUND('Форма 4'!C198*'Базовые цены за единицу'!C15,0)","v":47},{"$f":"ROUND('Форма 4'!C198*'Базовые цены за единицу'!D15,0)","v":189},{"$f":"ROUND('Форма 4'!C198*'Базовые цены за единицу'!E15,0)","v":23},{"$f":"ROUND('Форма 4'!C198*'Базовые цены за единицу'!F15,0)","v":111},{"$f":"ROUND('Форма 4'!C198*'Базовые цены за единицу'!G15,0)","v":0},{"$f":"ROUND('Форма 4'!C198*'Базовые цены за единицу'!H15,0)","v":0},{"$f":"ОКРУГЛВСЕ('Форма 4'!C198*'Базовые цены за единицу'!I15,8)","v":4.1516999999999999},{"$f":"ОКРУГЛВСЕ('Форма 4'!C198*'Базовые цены за единицу'!J15,8)","v":0},{"$f":"ОКРУГЛВСЕ('Форма 4'!C198*'Базовые цены за единицу'!K15,8)","v":1.3167},{"$f":"ROUND('Форма 4'!C198*'Базовые цены за единицу'!L15,0)","v":0},{"$f":"ROUND('Форма 4'!C198*'Базовые цены за единицу'!M15,0)","v":0},{"$f":"ROUND((C15+E15)*'Форма 4'!C209/100,0)","v":57},{"$f":"ROUND((C15+E15)*'Форма 4'!C212/100,0)","v":51},{"$f":"ROUND('Форма 4'!C198*'Базовые цены за единицу'!P15,0)","v":38},{"$f":"ROUND('Форма 4'!C198*'Базовые цены за единицу'!Q15,0)","v":18},{"$f":"ROUND('Форма 4'!C198*'Базовые цены за единицу'!R15,0)","v":34},{"$f":"ROUND('Форма 4'!C198*'Базовые цены за единицу'!S15,0)","v":16},{"$f":"ROUND('Форма 4'!C198*'Базовые цены за единицу'!T15,0)","v":0},{"$f":"ROUND('Форма 4'!C198*'Базовые цены за единицу'!U15,0)","v":0},{"$f":"ROUND('Форма 4'!C198*'Базовые цены за единицу'!V15,0)","v":0},null,{"$f":"ROUND('Форма 4'!C198*'Базовые цены за единицу'!X15,0)","v":0},{"$f":"IF(Определители!I15=\"9\",ROUND((C15+E15)*(Начисления!M15/100)*('Форма 4'!C209/100),0),0)","v":0},{"$f":"IF(Определители!I15=\"9\",ROUND((C15+E15)*(100-Начисления!M15/100)*('Форма 4'!C209/100),0),0)","v":0},{"$f":"IF(Определители!I15=\"9\",ROUND((C15+E15)*(Начисления!M15/100)*('Форма 4'!C212/100),0),0)","v":0},{"$f":"IF(Определители!I15=\"9\",ROUND((C15+E15)*(100-Начисления!M15/100)*('Форма 4'!C212/100),0),0)","v":0},{"$f":"IF(Определители!I15=\"9\",ROUND(B15*Начисления!M15/100,0),0)","v":0},{"$f":"IF(Определители!I15=\"9\",ROUND(B15*(100-Начисления!M15)/100,0),0)","v":0},{"$f":"ROUND('Форма 4'!C198*'Базовые цены за единицу'!AE15,0)","v":0},null,null,{"$f":"ROUND('Форма 4'!C198*'Базовые цены за единицу'!AH15,0)","v":0},{"$f":"ROUND('Форма 4'!C198*'Базовые цены за единицу'!AI15,0)","v":0},{"$f":"ROUND('Форма 4'!C198*'Базовые цены за единицу'!AJ15,0)","v":0},{"$f":"ROUND('Форма 4'!C198*'Базовые цены за единицу'!AK15,0)","v":0}]
[{"$f":"'Форма 4'!A217","v":"11."},8700,{"$f":"ROUND('Форма 4'!C217*'Базовые цены за единицу'!C16,0)","v":0},{"$f":"ROUND('Форма 4'!C217*'Базовые цены за единицу'!D16,0)","v":0},{"$f":"ROUND('Форма 4'!C217*'Базовые цены за единицу'!E16,0)","v":0},{"$f":"ROUND('Форма 4'!C217*'Базовые цены за единицу'!F16,0)","v":8700},{"$f":"ROUND('Форма 4'!C217*'Базовые цены за единицу'!G16,0)","v":8587},{"$f":"ROUND('Форма 4'!C217*'Базовые цены за единицу'!H16,0)","v":0},{"$f":"ОКРУГЛВСЕ('Форма 4'!C217*'Базовые цены за единицу'!I16,8)","v":0},{"$f":"ОКРУГЛВСЕ('Форма 4'!C217*'Базовые цены за единицу'!J16,8)","v":0},{"$f":"ОКРУГЛВСЕ('Форма 4'!C217*'Базовые цены за единицу'!K16,8)","v":0},{"$f":"ROUND('Форма 4'!C217*'Базовые цены за единицу'!L16,0)","v":630},{"$f":"ROUND('Форма 4'!C217*'Базовые цены за единицу'!M16,0)","v":0},{"$f":"ROUND((C16+E16)*'Форма 4'!C228/100,0)","v":0},{"$f":"ROUND((C16+E16)*'Форма 4'!C231/100,0)","v":0},{"$f":"ROUND('Форма 4'!C217*'Базовые цены за единицу'!P16,0)","v":0},{"$f":"ROUND('Форма 4'!C217*'Базовые цены за единицу'!Q16,0)","v":0},{"$f":"ROUND('Форма 4'!C217*'Базовые цены за единицу'!R16,0)","v":0},{"$f":"ROUND('Форма 4'!C217*'Базовые цены за единицу'!S16,0)","v":0},{"$f":"ROUND('Форма 4'!C217*'Базовые цены за единицу'!T16,0)","v":0},{"$f":"ROUND('Форма 4'!C217*'Базовые цены за единицу'!U16,0)","v":0},{"$f":"ROUND('Форма 4'!C217*'Базовые цены за единицу'!V16,0)","v":0},null,{"$f":"ROUND('Форма 4'!C217*'Базовые цены за единицу'!X16,0)","v":0},{"$f":"IF(Определители!I16=\"9\",ROUND((C16+E16)*(Начисления!M16/100)*('Форма 4'!C228/100),0),0)","v":0},{"$f":"IF(Определители!I16=\"9\",ROUND((C16+E16)*(100-Начисления!M16/100)*('Форма 4'!C228/100),0),0)","v":0},{"$f":"IF(Определители!I16=\"9\",ROUND((C16+E16)*(Начисления!M16/100)*('Форма 4'!C231/100),0),0)","v":0},{"$f":"IF(Определители!I16=\"9\",ROUND((C16+E16)*(100-Начисления!M16/100)*('Форма 4'!C231/100),0),0)","v":0},{"$f":"IF(Определители!I16=\"9\",ROUND(B16*Начисления!M16/100,0),0)","v":0},{"$f":"IF(Определители!I16=\"9\",ROUND(B16*(100-Начисления!M16)/100,0),0)","v":0},{"$f":"ROUND('Форма 4'!C217*'Базовые цены за единицу'!AE16,0)","v":0},null,null,{"$f":"ROUND('Форма 4'!C217*'Базовые цены за единицу'!AH16,0)","v":0},{"$f":"ROUND('Форма 4'!C217*'Базовые цены за единицу'!AI16,0)","v":0},{"$f":"ROUND('Форма 4'!C217*'Базовые цены за единицу'!AJ16,0)","v":0},{"$f":"ROUND('Форма 4'!C217*'Базовые цены за единицу'!AK16,0)","v":0}]
[{"$f":"'Форма 4'!A235","v":"12."},133,{"$f":"ROUND('Форма 4'!C235*'Базовые цены за единицу'!C17,0)","v":29},{"$f":"ROUND('Форма 4'!C235*'Базовые цены за единицу'!D17,0)","v":4},{"$f":"ROUND('Форма 4'!C235*'Базовые цены за единицу'!E17,0)","v":0},{"$f":"ROUND('Форма 4'!C235*'Базовые цены за единицу'!F17,0)","v":100},{"$f":"ROUND('Форма 4'!C235*'Базовые цены за единицу'!G17,0)","v":0},{"$f":"ROUND('Форма 4'!C235*'Базовые цены за единицу'!H17,0)","v":0},{"$f":"ОКРУГЛВСЕ('Форма 4'!C235*'Базовые цены за единицу'!I17,8)","v":2.1240000000000001},{"$f":"ОКРУГЛВСЕ('Форма 4'!C235*'Базовые цены за единицу'!J17,8)","v":0},{"$f":"ОКРУГЛВСЕ('Форма 4'!C235*'Базовые цены за единицу'!K17,8)","v":4.0000000000000001E-3},{"$f":"ROUND('Форма 4'!C235*'Базовые цены за единицу'!L17,0)","v":0},{"$f":"ROUND('Форма 4'!C235*'Базовые цены за единицу'!M17,0)","v":0},{"$f":"ROUND((C17+E17)*'Форма 4'!C247/100,0)","v":23},{"$f":"ROUND((C17+E17)*'Форма 4'!C250/100,0)","v":17},{"$f":"ROUND('Форма 4'!C235*'Базовые цены за единицу'!P17,0)","v":23},{"$f":"ROUND('Форма 4'!C235*'Базовые цены за единицу'!Q17,0)","v":0},{"$f":"ROUND('Форма 4'!C235*'Базовые цены за единицу'!R17,0)","v":17},{"$f":"ROUND('Форма 4'!C235*'Базовые цены за единицу'!S17,0)","v":0},{"$f":"ROUND('Форма 4'!C235*'Базовые цены за единицу'!T17,0)","v":0},{"$f":"ROUND('Форма 4'!C235*'Базовые цены за единицу'!U17,0)","v":0},{"$f":"ROUND('Форма 4'!C235*'Базовые цены за единицу'!V17,0)","v":0},null,{"$f":"ROUND('Форма 4'!C235*'Базовые цены за единицу'!X17,0)","v":0},{"$f":"IF(Определители!I17=\"9\",ROUND((C17+E17)*(Начисления!M17/100)*('Форма 4'!C247/100),0),0)","v":0},{"$f":"IF(Определители!I17=\"9\",ROUND((C17+E17)*(100-Начисления!M17/100)*('Форма 4'!C247/100),0),0)","v":0},{"$f":"IF(Определители!I17=\"9\",ROUND((C17+E17)*(Начисления!M17/100)*('Форма 4'!C250/100),0),0)","v":0},{"$f":"IF(Определители!I17=\"9\",ROUND((C17+E17)*(100-Начисления!M17/100)*('Форма 4'!C250/100),0),0)","v":0},{"$f":"IF(Определители!I17=\"9\",ROUND(B17*Начисления!M17/100,0),0)","v":0},{"$f":"IF(Определители!I17=\"9\",ROUND(B17*(100-Начисления!M17)/100,0),0)","v":0},{"$f":"ROUND('Форма 4'!C235*'Базовые цены за единицу'!AE17,0)","v":0},null,null,{"$f":"ROUND('Форма 4'!C235*'Базовые цены за единицу'!AH17,0)","v":0},{"$f":"ROUND('Форма 4'!C235*'Базовые цены за единицу'!AI17,0)","v":0},{"$f":"ROUND('Форма 4'!C235*'Базовые цены за единицу'!AJ17,0)","v":0},{"$f":"ROUND('Форма 4'!C235*'Базовые цены за единицу'!AK17,0)","v":0}]
[{"$f":"'Форма 4'!A255","v":"13."},176,{"$f":"ROUND('Форма 4'!C255*'Базовые цены за единицу'!C18,0)","v":18},{"$f":"ROUND('Форма 4'!C255*'Базовые цены за единицу'!D18,0)","v":3},{"$f":"ROUND('Форма 4'!C255*'Базовые цены за единицу'!E18,0)","v":0},{"$f":"ROUND('Форма 4'!C255*'Базовые цены за единицу'!F18,0)","v":155},{"$f":"ROUND('Форма 4'!C255*'Базовые цены за единицу'!G18,0)","v":0},{"$f":"ROUND('Форма 4'!C255*'Базовые цены за единицу'!H18,0)","v":0},{"$f":"ОКРУГЛВСЕ('Форма 4'!C255*'Базовые цены за единицу'!I18,8)","v":1.532},{"$f":"ОКРУГЛВСЕ('Форма 4'!C255*'Базовые цены за единицу'!J18,8)","v":0},{"$f":"ОКРУГЛВСЕ('Форма 4'!C255*'Базовые цены за единицу'!K18,8)","v":4.0000000000000001E-3},{"$f":"ROUND('Форма 4'!C255*'Базовые цены за единицу'!L18,0)","v":0},{"$f":"ROUND('Форма 4'!C255*'Базовые цены за единицу'!M18,0)","v":0},{"$f":"ROUND((C18+E18)*'Форма 4'!C267/100,0)","v":15},{"$f":"ROUND((C18+E18)*'Форма 4'!C270/100,0)","v":11},{"$f":"ROUND('Форма 4'!C255*'Базовые цены за единицу'!P18,0)","v":14},{"$f":"ROUND('Форма 4'!C255*'Базовые цены за единицу'!Q18,0)","v":0},{"$f":"ROUND('Форма 4'!C255*'Базовые цены за единицу'!R18,0)","v":10},{"$f":"ROUND('Форма 4'!C255*'Базовые цены за единицу'!S18,0)","v":0},{"$f":"ROUND('Форма 4'!C255*'Базовые цены за единицу'!T18,0)","v":0},{"$f":"ROUND('Форма 4'!C255*'Базовые цены за единицу'!U18,0)","v":0},{"$f":"ROUND('Форма 4'!C255*'Базовые цены за единицу'!V18,0)","v":0},null,{"$f":"ROUND('Форма 4'!C255*'Базовые цены за единицу'!X18,0)","v":0},{"$f":"IF(Определители!I18=\"9\",ROUND((C18+E18)*(Начисления!M18/100)*('Форма 4'!C267/100),0),0)","v":0},{"$f":"IF(Определители!I18=\"9\",ROUND((C18+E18)*(100-Начисления!M18/100)*('Форма 4'!C267/100),0),0)","v":0},{"$f":"IF(Определители!I18=\"9\",ROUND((C18+E18)*(Начисления!M18/100)*('Форма 4'!C270/100),0),0)","v":0},{"$f":"IF(Определители!I18=\"9\",ROUND((C18+E18)*(100-Начисления!M18/100)*('Форма 4'!C270/100),0),0)","v":0},{"$f":"IF(Определители!I18=\"9\",ROUND(B18*Начисления!M18/100,0),0)","v":0},{"$f":"IF(Определители!I18=\"9\",ROUND(B18*(100-Начисления!M18)/100,0),0)","v":0},{"$f":"ROUND('Форма 4'!C255*'Базовые цены за единицу'!AE18,0)","v":0},null,null,{"$f":"ROUND('Форма 4'!C255*'Базовые цены за единицу'!AH18,0)","v":0},{"$f":"ROUND('Форма 4'!C255*'Базовые цены за единицу'!AI18,0)","v":0},{"$f":"ROUND('Форма 4'!C255*'Базовые цены за единицу'!AJ18,0)","v":0},{"$f":"ROUND('Форма 4'!C255*'Базовые цены за единицу'!AK18,0)","v":0}]
[{"$f":"'Форма 4'!A275","v":"14."},5479,{"$f":"ROUND('Форма 4'!C275*'Базовые цены за единицу'!C19,0)","v":1395},{"$f":"ROUND('Форма 4'!C275*'Базовые цены за единицу'!D19,0)","v":2899},{"$f":"ROUND('Форма 4'!C275*'Базовые цены за единицу'!E19,0)","v":276},{"$f":"ROUND('Форма 4'!C275*'Базовые цены за единицу'!F19,0)","v":1185},{"$f":"ROUND('Форма 4'!C275*'Базовые цены за единицу'!G19,0)","v":0},{"$f":"ROUND('Форма 4'!C275*'Базовые цены за единицу'!H19,0)","v":0},{"$f":"ОКРУГЛВСЕ('Форма 4'!C275*'Базовые цены за единицу'!I19,8)","v":114.75},{"$f":"ОКРУГЛВСЕ('Форма 4'!C275*'Базовые цены за единицу'!J19,8)","v":0},{"$f":"ОКРУГЛВСЕ('Форма 4'!C275*'Базовые цены за единицу'!K19,8)","v":19.462499999999999},{"$f":"ROUND('Форма 4'!C275*'Базовые цены за единицу'!L19,0)","v":0},{"$f":"ROUND('Форма 4'!C275*'Базовые цены за единицу'!M19,0)","v":0},{"$f":"ROUND((C19+E19)*'Форма 4'!C286/100,0)","v":1955},{"$f":"ROUND((C19+E19)*'Форма 4'!C289/100,0)","v":1264},{"$f":"ROUND('Форма 4'!C275*'Базовые цены за единицу'!P19,0)","v":1633},{"$f":"ROUND('Форма 4'!C275*'Базовые цены за единицу'!Q19,0)","v":323},{"$f":"ROUND('Форма 4'!C275*'Базовые цены за единицу'!R19,0)","v":1056},{"$f":"ROUND('Форма 4'!C275*'Базовые цены за единицу'!S19,0)","v":209},{"$f":"ROUND('Форма 4'!C275*'Базовые цены за единицу'!T19,0)","v":0},{"$f":"ROUND('Форма 4'!C275*'Базовые цены за единицу'!U19,0)","v":0},{"$f":"ROUND('Форма 4'!C275*'Базовые цены за единицу'!V19,0)","v":0},null,{"$f":"ROUND('Форма 4'!C275*'Базовые цены за единицу'!X19,0)","v":0},{"$f":"IF(Определители!I19=\"9\",ROUND((C19+E19)*(Начисления!M19/100)*('Форма 4'!C286/100),0),0)","v":0},{"$f":"IF(Определители!I19=\"9\",ROUND((C19+E19)*(100-Начисления!M19/100)*('Форма 4'!C286/100),0),0)","v":0},{"$f":"IF(Определители!I19=\"9\",ROUND((C19+E19)*(Начисления!M19/100)*('Форма 4'!C289/100),0),0)","v":0},{"$f":"IF(Определители!I19=\"9\",ROUND((C19+E19)*(100-Начисления!M19/100)*('Форма 4'!C289/100),0),0)","v":0},{"$f":"IF(Определители!I19=\"9\",ROUND(B19*Начисления!M19/100,0),0)","v":0},{"$f":"IF(Определители!I19=\"9\",ROUND(B19*(100-Начисления!M19)/100,0),0)","v":0},{"$f":"ROUND('Форма 4'!C275*'Базовые цены за единицу'!AE19,0)","v":0},null,null,{"$f":"ROUND('Форма 4'!C275*'Базовые цены за единицу'!AH19,0)","v":0},{"$f":"ROUND('Форма 4'!C275*'Базовые цены за единицу'!AI19,0)","v":0},{"$f":"ROUND('Форма 4'!C275*'Базовые цены за единицу'!AJ19,0)","v":0},{"$f":"ROUND('Форма 4'!C275*'Базовые цены за единицу'!AK19,0)","v":0}]
[{"$f":"'Форма 4'!A294","v":"15."},13812,{"$f":"ROUND('Форма 4'!C294*'Базовые цены за единицу'!C20,0)","v":0},{"$f":"ROUND('Форма 4'!C294*'Базовые цены за единицу'!D20,0)","v":0},{"$f":"ROUND('Форма 4'!C294*'Базовые цены за единицу'!E20,0)","v":0},{"$f":"ROUND('Форма 4'!C294*'Базовые цены за единицу'!F20,0)","v":13812},{"$f":"ROUND('Форма 4'!C294*'Базовые цены за единицу'!G20,0)","v":13420},{"$f":"ROUND('Форма 4'!C294*'Базовые цены за единицу'!H20,0)","v":0},{"$f":"ОКРУГЛВСЕ('Форма 4'!C294*'Базовые цены за единицу'!I20,8)","v":0},{"$f":"ОКРУГЛВСЕ('Форма 4'!C294*'Базовые цены за единицу'!J20,8)","v":0},{"$f":"ОКРУГЛВСЕ('Форма 4'!C294*'Базовые цены за единицу'!K20,8)","v":0},{"$f":"ROUND('Форма 4'!C294*'Базовые цены за единицу'!L20,0)","v":2118},{"$f":"ROUND('Форма 4'!C294*'Базовые цены за единицу'!M20,0)","v":0},{"$f":"ROUND((C20+E20)*'Форма 4'!C306/100,0)","v":0},{"$f":"ROUND((C20+E20)*'Форма 4'!C309/100,0)","v":0},{"$f":"ROUND('Форма 4'!C294*'Базовые цены за единицу'!P20,0)","v":0},{"$f":"ROUND('Форма 4'!C294*'Базовые цены за единицу'!Q20,0)","v":0},{"$f":"ROUND('Форма 4'!C294*'Базовые цены за единицу'!R20,0)","v":0},{"$f":"ROUND('Форма 4'!C294*'Базовые цены за единицу'!S20,0)","v":0},{"$f":"ROUND('Форма 4'!C294*'Базовые цены за единицу'!T20,0)","v":0},{"$f":"ROUND('Форма 4'!C294*'Базовые цены за единицу'!U20,0)","v":0},{"$f":"ROUND('Форма 4'!C294*'Базовые цены за единицу'!V20,0)","v":0},null,{"$f":"ROUND('Форма 4'!C294*'Базовые цены за единицу'!X20,0)","v":0},{"$f":"IF(Определители!I20=\"9\",ROUND((C20+E20)*(Начисления!M20/100)*('Форма 4'!C306/100),0),0)","v":0},{"$f":"IF(Определители!I20=\"9\",ROUND((C20+E20)*(100-Начисления!M20/100)*('Форма 4'!C306/100),0),0)","v":0},{"$f":"IF(Определители!I20=\"9\",ROUND((C20+E20)*(Начисления!M20/100)*('Форма 4'!C309/100),0),0)","v":0},{"$f":"IF(Определители!I20=\"9\",ROUND((C20+E20)*(100-Начисления!M20/100)*('Форма 4'!C309/100),0),0)","v":0},{"$f":"IF(Определители!I20=\"9\",ROUND(B20*Начисления!M20/100,0),0)","v":0},{"$f":"IF(Определители!I20=\"9\",ROUND(B20*(100-Начисления!M20)/100,0),0)","v":0},{"$f":"ROUND('Форма 4'!C294*'Базовые цены за единицу'!AE20,0)","v":0},null,null,{"$f":"ROUND('Форма 4'!C294*'Базовые цены за единицу'!AH20,0)","v":0},{"$f":"ROUND('Форма 4'!C294*'Базовые цены за единицу'!AI20,0)","v":0},{"$f":"ROUND('Форма 4'!C294*'Базовые цены за единицу'!AJ20,0)","v":0},{"$f":"ROUND('Форма 4'!C294*'Базовые цены за единицу'!AK20,0)","v":0}]
[{"$f":"'Форма 4'!A313","v":"16."},761,{"$f":"ROUND('Форма 4'!C313*'Базовые цены за единицу'!C21,0)","v":0},{"$f":"ROUND('Форма 4'!C313*'Базовые цены за единицу'!D21,0)","v":0},{"$f":"ROUND('Форма 4'!C313*'Базовые цены за единицу'!E21,0)","v":0},{"$f":"ROUND('Форма 4'!C313*'Базовые цены за единицу'!F21,0)","v":761},{"$f":"ROUND('Форма 4'!C313*'Базовые цены за единицу'!G21,0)","v":743},{"$f":"ROUND('Форма 4'!C313*'Базовые цены за единицу'!H21,0)","v":0},{"$f":"ОКРУГЛВСЕ('Форма 4'!C313*'Базовые цены за единицу'!I21,8)","v":0},{"$f":"ОКРУГЛВСЕ('Форма 4'!C313*'Базовые цены за единицу'!J21,8)","v":0},{"$f":"ОКРУГЛВСЕ('Форма 4'!C313*'Базовые цены за единицу'!K21,8)","v":0},{"$f":"ROUND('Форма 4'!C313*'Базовые цены за единицу'!L21,0)","v":26},{"$f":"ROUND('Форма 4'!C313*'Базовые цены за единицу'!M21,0)","v":0},{"$f":"ROUND((C21+E21)*'Форма 4'!C324/100,0)","v":0},{"$f":"ROUND((C21+E21)*'Форма 4'!C327/100,0)","v":0},{"$f":"ROUND('Форма 4'!C313*'Базовые цены за единицу'!P21,0)","v":0},{"$f":"ROUND('Форма 4'!C313*'Базовые цены за единицу'!Q21,0)","v":0},{"$f":"ROUND('Форма 4'!C313*'Базовые цены за единицу'!R21,0)","v":0},{"$f":"ROUND('Форма 4'!C313*'Базовые цены за единицу'!S21,0)","v":0},{"$f":"ROUND('Форма 4'!C313*'Базовые цены за единицу'!T21,0)","v":0},{"$f":"ROUND('Форма 4'!C313*'Базовые цены за единицу'!U21,0)","v":0},{"$f":"ROUND('Форма 4'!C313*'Базовые цены за единицу'!V21,0)","v":0},null,{"$f":"ROUND('Форма 4'!C313*'Базовые цены за единицу'!X21,0)","v":0},{"$f":"IF(Определители!I21=\"9\",ROUND((C21+E21)*(Начисления!M21/100)*('Форма 4'!C324/100),0),0)","v":0},{"$f":"IF(Определители!I21=\"9\",ROUND((C21+E21)*(100-Начисления!M21/100)*('Форма 4'!C324/100),0),0)","v":0},{"$f":"IF(Определители!I21=\"9\",ROUND((C21+E21)*(Начисления!M21/100)*('Форма 4'!C327/100),0),0)","v":0},{"$f":"IF(Определители!I21=\"9\",ROUND((C21+E21)*(100-Начисления!M21/100)*('Форма 4'!C327/100),0),0)","v":0},{"$f":"IF(Определители!I21=\"9\",ROUND(B21*Начисления!M21/100,0),0)","v":0},{"$f":"IF(Определители!I21=\"9\",ROUND(B21*(100-Начисления!M21)/100,0),0)","v":0},{"$f":"ROUND('Форма 4'!C313*'Базовые цены за единицу'!AE21,0)","v":0},null,null,{"$f":"ROUND('Форма 4'!C313*'Базовые цены за единицу'!AH21,0)","v":0},{"$f":"ROUND('Форма 4'!C313*'Базовые цены за единицу'!AI21,0)","v":0},{"$f":"ROUND('Форма 4'!C313*'Базовые цены за единицу'!AJ21,0)","v":0},{"$f":"ROUND('Форма 4'!C313*'Базовые цены за единицу'!AK21,0)","v":0}]
[{"$f":"'Форма 4'!A331","v":"17."},149,{"$f":"ROUND('Форма 4'!C331*'Базовые цены за единицу'!C22,0)","v":0},{"$f":"ROUND('Форма 4'!C331*'Базовые цены за единицу'!D22,0)","v":0},{"$f":"ROUND('Форма 4'!C331*'Базовые цены за единицу'!E22,0)","v":0},{"$f":"ROUND('Форма 4'!C331*'Базовые цены за единицу'!F22,0)","v":149},{"$f":"ROUND('Форма 4'!C331*'Базовые цены за единицу'!G22,0)","v":146},{"$f":"ROUND('Форма 4'!C331*'Базовые цены за единицу'!H22,0)","v":0},{"$f":"ОКРУГЛВСЕ('Форма 4'!C331*'Базовые цены за единицу'!I22,8)","v":0},{"$f":"ОКРУГЛВСЕ('Форма 4'!C331*'Базовые цены за единицу'!J22,8)","v":0},{"$f":"ОКРУГЛВСЕ('Форма 4'!C331*'Базовые цены за единицу'!K22,8)","v":0},{"$f":"ROUND('Форма 4'!C331*'Базовые цены за единицу'!L22,0)","v":0},{"$f":"ROUND('Форма 4'!C331*'Базовые цены за единицу'!M22,0)","v":0},{"$f":"ROUND((C22+E22)*'Форма 4'!C342/100,0)","v":0},{"$f":"ROUND((C22+E22)*'Форма 4'!C345/100,0)","v":0},{"$f":"ROUND('Форма 4'!C331*'Базовые цены за единицу'!P22,0)","v":0},{"$f":"ROUND('Форма 4'!C331*'Базовые цены за единицу'!Q22,0)","v":0},{"$f":"ROUND('Форма 4'!C331*'Базовые цены за единицу'!R22,0)","v":0},{"$f":"ROUND('Форма 4'!C331*'Базовые цены за единицу'!S22,0)","v":0},{"$f":"ROUND('Форма 4'!C331*'Базовые цены за единицу'!T22,0)","v":0},{"$f":"ROUND('Форма 4'!C331*'Базовые цены за единицу'!U22,0)","v":0},{"$f":"ROUND('Форма 4'!C331*'Базовые цены за единицу'!V22,0)","v":0},null,{"$f":"ROUND('Форма 4'!C331*'Базовые цены за единицу'!X22,0)","v":0},{"$f":"IF(Определители!I22=\"9\",ROUND((C22+E22)*(Начисления!M22/100)*('Форма 4'!C342/100),0),0)","v":0},{"$f":"IF(Определители!I22=\"9\",ROUND((C22+E22)*(100-Начисления!M22/100)*('Форма 4'!C342/100),0),0)","v":0},{"$f":"IF(Определители!I22=\"9\",ROUND((C22+E22)*(Начисления!M22/100)*('Форма 4'!C345/100),0),0)","v":0},{"$f":"IF(Определители!I22=\"9\",ROUND((C22+E22)*(100-Начисления!M22/100)*('Форма 4'!C345/100),0),0)","v":0},{"$f":"IF(Определители!I22=\"9\",ROUND(B22*Начисления!M22/100,0),0)","v":0},{"$f":"IF(Определители!I22=\"9\",ROUND(B22*(100-Начисления!M22)/100,0),0)","v":0},{"$f":"ROUND('Форма 4'!C331*'Базовые цены за единицу'!AE22,0)","v":0},null,null,{"$f":"ROUND('Форма 4'!C331*'Базовые цены за единицу'!AH22,0)","v":0},{"$f":"ROUND('Форма 4'!C331*'Базовые цены за единицу'!AI22,0)","v":0},{"$f":"ROUND('Форма 4'!C331*'Базовые цены за единицу'!AJ22,0)","v":0},{"$f":"ROUND('Форма 4'!C331*'Базовые цены за единицу'!AK22,0)","v":0}]
[{"$f":"'Форма 4'!A349","v":"18."},232,{"$f":"ROUND('Форма 4'!C349*'Базовые цены за единицу'!C23,0)","v":50},{"$f":"ROUND('Форма 4'!C349*'Базовые цены за единицу'!D23,0)","v":7},{"$f":"ROUND('Форма 4'!C349*'Базовые цены за единицу'!E23,0)","v":0},{"$f":"ROUND('Форма 4'!C349*'Базовые цены за единицу'!F23,0)","v":175},{"$f":"ROUND('Форма 4'!C349*'Базовые цены за единицу'!G23,0)","v":0},{"$f":"ROUND('Форма 4'!C349*'Базовые цены за единицу'!H23,0)","v":0},{"$f":"ОКРУГЛВСЕ('Форма 4'!C349*'Базовые цены за единицу'!I23,8)","v":3.7098314999999999},{"$f":"ОКРУГЛВСЕ('Форма 4'!C349*'Базовые цены за единицу'!J23,8)","v":0},{"$f":"ОКРУГЛВСЕ('Форма 4'!C349*'Базовые цены за единицу'!K23,8)","v":6.9864999999999997E-3},{"$f":"ROUND('Форма 4'!C349*'Базовые цены за единицу'!L23,0)","v":0},{"$f":"ROUND('Форма 4'!C349*'Базовые цены за единицу'!M23,0)","v":0},{"$f":"ROUND((C23+E23)*'Форма 4'!C361/100,0)","v":41},{"$f":"ROUND((C23+E23)*'Форма 4'!C364/100,0)","v":30},{"$f":"ROUND('Форма 4'!C349*'Базовые цены за единицу'!P23,0)","v":40},{"$f":"ROUND('Форма 4'!C349*'Базовые цены за единицу'!Q23,0)","v":0},{"$f":"ROUND('Форма 4'!C349*'Базовые цены за единицу'!R23,0)","v":30},{"$f":"ROUND('Форма 4'!C349*'Базовые цены за единицу'!S23,0)","v":0},{"$f":"ROUND('Форма 4'!C349*'Базовые цены за единицу'!T23,0)","v":0},{"$f":"ROUND('Форма 4'!C349*'Базовые цены за единицу'!U23,0)","v":0},{"$f":"ROUND('Форма 4'!C349*'Базовые цены за единицу'!V23,0)","v":0},null,{"$f":"ROUND('Форма 4'!C349*'Базовые цены за единицу'!X23,0)","v":0},{"$f":"IF(Определители!I23=\"9\",ROUND((C23+E23)*(Начисления!M23/100)*('Форма 4'!C361/100),0),0)","v":0},{"$f":"IF(Определители!I23=\"9\",ROUND((C23+E23)*(100-Начисления!M23/100)*('Форма 4'!C361/100),0),0)","v":0},{"$f":"IF(Определители!I23=\"9\",ROUND((C23+E23)*(Начисления!M23/100)*('Форма 4'!C364/100),0),0)","v":0},{"$f":"IF(Определители!I23=\"9\",ROUND((C23+E23)*(100-Начисления!M23/100)*('Форма 4'!C364/100),0),0)","v":0},{"$f":"IF(Определители!I23=\"9\",ROUND(B23*Начисления!M23/100,0),0)","v":0},{"$f":"IF(Определители!I23=\"9\",ROUND(B23*(100-Начисления!M23)/100,0),0)","v":0},{"$f":"ROUND('Форма 4'!C349*'Базовые цены за единицу'!AE23,0)","v":0},null,null,{"$f":"ROUND('Форма 4'!C349*'Базовые цены за единицу'!AH23,0)","v":0},{"$f":"ROUND('Форма 4'!C349*'Базовые цены за единицу'!AI23,0)","v":0},{"$f":"ROUND('Форма 4'!C349*'Базовые цены за единицу'!AJ23,0)","v":0},{"$f":"ROUND('Форма 4'!C349*'Базовые цены за единицу'!AK23,0)","v":0}]
[{"$f":"'Форма 4'!A369","v":"19."},623,{"$f":"ROUND('Форма 4'!C369*'Базовые цены за единицу'!C24,0)","v":345},{"$f":"ROUND('Форма 4'!C369*'Базовые цены за единицу'!D24,0)","v":0},{"$f":"ROUND('Форма 4'!C369*'Базовые цены за единицу'!E24,0)","v":0},{"$f":"ROUND('Форма 4'!C369*'Базовые цены за единицу'!F24,0)","v":278},{"$f":"ROUND('Форма 4'!C369*'Базовые цены за единицу'!G24,0)","v":0},{"$f":"ROUND('Форма 4'!C369*'Базовые цены за единицу'!H24,0)","v":0},{"$f":"ОКРУГЛВСЕ('Форма 4'!C369*'Базовые цены за единицу'!I24,8)","v":30.415806},{"$f":"ОКРУГЛВСЕ('Форма 4'!C369*'Базовые цены за единицу'!J24,8)","v":0},{"$f":"ОКРУГЛВСЕ('Форма 4'!C369*'Базовые цены за единицу'!K24,8)","v":0},{"$f":"ROUND('Форма 4'!C369*'Базовые цены за единицу'!L24,0)","v":0},{"$f":"ROUND('Форма 4'!C369*'Базовые цены за единицу'!M24,0)","v":0},{"$f":"ROUND((C24+E24)*'Форма 4'!C382/100,0)","v":311},{"$f":"ROUND((C24+E24)*'Форма 4'!C385/100,0)","v":205},{"$f":"ROUND('Форма 4'!C369*'Базовые цены за единицу'!P24,0)","v":310},{"$f":"ROUND('Форма 4'!C369*'Базовые цены за единицу'!Q24,0)","v":0},{"$f":"ROUND('Форма 4'!C369*'Базовые цены за единицу'!R24,0)","v":205},{"$f":"ROUND('Форма 4'!C369*'Базовые цены за единицу'!S24,0)","v":0},{"$f":"ROUND('Форма 4'!C369*'Базовые цены за единицу'!T24,0)","v":0},{"$f":"ROUND('Форма 4'!C369*'Базовые цены за единицу'!U24,0)","v":0},{"$f":"ROUND('Форма 4'!C369*'Базовые цены за единицу'!V24,0)","v":0},null,{"$f":"ROUND('Форма 4'!C369*'Базовые цены за единицу'!X24,0)","v":0},{"$f":"IF(Определители!I24=\"9\",ROUND((C24+E24)*(Начисления!M24/100)*('Форма 4'!C382/100),0),0)","v":0},{"$f":"IF(Определители!I24=\"9\",ROUND((C24+E24)*(100-Начисления!M24/100)*('Форма 4'!C382/100),0),0)","v":0},{"$f":"IF(Определители!I24=\"9\",ROUND((C24+E24)*(Начисления!M24/100)*('Форма 4'!C385/100),0),0)","v":0},{"$f":"IF(Определители!I24=\"9\",ROUND((C24+E24)*(100-Начисления!M24/100)*('Форма 4'!C385/100),0),0)","v":0},{"$f":"IF(Определители!I24=\"9\",ROUND(B24*Начисления!M24/100,0),0)","v":0},{"$f":"IF(Определители!I24=\"9\",ROUND(B24*(100-Начисления!M24)/100,0),0)","v":0},{"$f":"ROUND('Форма 4'!C369*'Базовые цены за единицу'!AE24,0)","v":0},null,null,{"$f":"ROUND('Форма 4'!C369*'Базовые цены за единицу'!AH24,0)","v":0},{"$f":"ROUND('Форма 4'!C369*'Базовые цены за единицу'!AI24,0)","v":0},{"$f":"ROUND('Форма 4'!C369*'Базовые цены за единицу'!AJ24,0)","v":0},{"$f":"ROUND('Форма 4'!C369*'Базовые цены за единицу'!AK24,0)","v":0}]
[{"$f":"'Форма 4'!A390","v":"20."},9341,{"$f":"ROUND('Форма 4'!C390*'Базовые цены за единицу'!C25,0)","v":0},{"$f":"ROUND('Форма 4'!C390*'Базовые цены за единицу'!D25,0)","v":0},{"$f":"ROUND('Форма 4'!C390*'Базовые цены за единицу'!E25,0)","v":0},{"$f":"ROUND('Форма 4'!C390*'Базовые цены за единицу'!F25,0)","v":9341},{"$f":"ROUND('Форма 4'!C390*'Базовые цены за единицу'!G25,0)","v":7159},{"$f":"ROUND('Форма 4'!C390*'Базовые цены за единицу'!H25,0)","v":0},{"$f":"ОКРУГЛВСЕ('Форма 4'!C390*'Базовые цены за единицу'!I25,8)","v":0},{"$f":"ОКРУГЛВСЕ('Форма 4'!C390*'Базовые цены за единицу'!J25,8)","v":0},{"$f":"ОКРУГЛВСЕ('Форма 4'!C390*'Базовые цены за единицу'!K25,8)","v":0},{"$f":"ROUND('Форма 4'!C390*'Базовые цены за единицу'!L25,0)","v":0},{"$f":"ROUND('Форма 4'!C390*'Базовые цены за единицу'!M25,0)","v":0},{"$f":"ROUND((C25+E25)*'Форма 4'!C402/100,0)","v":0},{"$f":"ROUND((C25+E25)*'Форма 4'!C405/100,0)","v":0},{"$f":"ROUND('Форма 4'!C390*'Базовые цены за единицу'!P25,0)","v":0},{"$f":"ROUND('Форма 4'!C390*'Базовые цены за единицу'!Q25,0)","v":0},{"$f":"ROUND('Форма 4'!C390*'Базовые цены за единицу'!R25,0)","v":0},{"$f":"ROUND('Форма 4'!C390*'Базовые цены за единицу'!S25,0)","v":0},{"$f":"ROUND('Форма 4'!C390*'Базовые цены за единицу'!T25,0)","v":0},{"$f":"ROUND('Форма 4'!C390*'Базовые цены за единицу'!U25,0)","v":0},{"$f":"ROUND('Форма 4'!C390*'Базовые цены за единицу'!V25,0)","v":0},null,{"$f":"ROUND('Форма 4'!C390*'Базовые цены за единицу'!X25,0)","v":0},{"$f":"IF(Определители!I25=\"9\",ROUND((C25+E25)*(Начисления!M25/100)*('Форма 4'!C402/100),0),0)","v":0},{"$f":"IF(Определители!I25=\"9\",ROUND((C25+E25)*(100-Начисления!M25/100)*('Форма 4'!C402/100),0),0)","v":0},{"$f":"IF(Определители!I25=\"9\",ROUND((C25+E25)*(Начисления!M25/100)*('Форма 4'!C405/100),0),0)","v":0},{"$f":"IF(Определители!I25=\"9\",ROUND((C25+E25)*(100-Начисления!M25/100)*('Форма 4'!C405/100),0),0)","v":0},{"$f":"IF(Определители!I25=\"9\",ROUND(B25*Начисления!M25/100,0),0)","v":0},{"$f":"IF(Определители!I25=\"9\",ROUND(B25*(100-Начисления!M25)/100,0),0)","v":0},{"$f":"ROUND('Форма 4'!C390*'Базовые цены за единицу'!AE25,0)","v":0},null,null,{"$f":"ROUND('Форма 4'!C390*'Базовые цены за единицу'!AH25,0)","v":0},{"$f":"ROUND('Форма 4'!C390*'Базовые цены за единицу'!AI25,0)","v":0},{"$f":"ROUND('Форма 4'!C390*'Базовые цены за единицу'!AJ25,0)","v":0},{"$f":"ROUND('Форма 4'!C390*'Базовые цены за единицу'!AK25,0)","v":0}]
[{"$f":"'Форма 4'!A409","v":"21."},2309,{"$f":"ROUND('Форма 4'!C409*'Базовые цены за единицу'!C26,0)","v":2105},{"$f":"ROUND('Форма 4'!C409*'Базовые цены за единицу'!D26,0)","v":118},{"$f":"ROUND('Форма 4'!C409*'Базовые цены за единицу'!E26,0)","v":0},{"$f":"ROUND('Форма 4'!C409*'Базовые цены за единицу'!F26,0)","v":86},{"$f":"ROUND('Форма 4'!C409*'Базовые цены за единицу'!G26,0)","v":0},{"$f":"ROUND('Форма 4'!C409*'Базовые цены за единицу'!H26,0)","v":0},{"$f":"ОКРУГЛВСЕ('Форма 4'!C409*'Базовые цены за единицу'!I26,8)","v":175.0035},{"$f":"ОКРУГЛВСЕ('Форма 4'!C409*'Базовые цены за единицу'!J26,8)","v":0},{"$f":"ОКРУГЛВСЕ('Форма 4'!C409*'Базовые цены за единицу'!K26,8)","v":0},{"$f":"ROUND('Форма 4'!C409*'Базовые цены за единицу'!L26,0)","v":0},{"$f":"ROUND('Форма 4'!C409*'Базовые цены за единицу'!M26,0)","v":0},{"$f":"ROUND((C26+E26)*'Форма 4'!C422/100,0)","v":1895},{"$f":"ROUND((C26+E26)*'Форма 4'!C425/100,0)","v":1252},{"$f":"ROUND('Форма 4'!C409*'Базовые цены за единицу'!P26,0)","v":1895},{"$f":"ROUND('Форма 4'!C409*'Базовые цены за единицу'!Q26,0)","v":0},{"$f":"ROUND('Форма 4'!C409*'Базовые цены за единицу'!R26,0)","v":1253},{"$f":"ROUND('Форма 4'!C409*'Базовые цены за единицу'!S26,0)","v":0},{"$f":"ROUND('Форма 4'!C409*'Базовые цены за единицу'!T26,0)","v":0},{"$f":"ROUND('Форма 4'!C409*'Базовые цены за единицу'!U26,0)","v":0},{"$f":"ROUND('Форма 4'!C409*'Базовые цены за единицу'!V26,0)","v":0},null,{"$f":"ROUND('Форма 4'!C409*'Базовые цены за единицу'!X26,0)","v":0},{"$f":"IF(Определители!I26=\"9\",ROUND((C26+E26)*(Начисления!M26/100)*('Форма 4'!C422/100),0),0)","v":0},{"$f":"IF(Определители!I26=\"9\",ROUND((C26+E26)*(100-Начисления!M26/100)*('Форма 4'!C422/100),0),0)","v":0},{"$f":"IF(Определители!I26=\"9\",ROUND((C26+E26)*(Начисления!M26/100)*('Форма 4'!C425/100),0),0)","v":0},{"$f":"IF(Определители!I26=\"9\",ROUND((C26+E26)*(100-Начисления!M26/100)*('Форма 4'!C425/100),0),0)","v":0},{"$f":"IF(Определители!I26=\"9\",ROUND(B26*Начисления!M26/100,0),0)","v":0},{"$f":"IF(Определители!I26=\"9\",ROUND(B26*(100-Начисления!M26)/100,0),0)","v":0},{"$f":"ROUND('Форма 4'!C409*'Базовые цены за единицу'!AE26,0)","v":0},null,null,{"$f":"ROUND('Форма 4'!C409*'Базовые цены за единицу'!AH26,0)","v":0},{"$f":"ROUND('Форма 4'!C409*'Базовые цены за единицу'!AI26,0)","v":0},{"$f":"ROUND('Форма 4'!C409*'Базовые цены за единицу'!AJ26,0)","v":0},{"$f":"ROUND('Форма 4'!C409*'Базовые цены за единицу'!AK26,0)","v":0}]
[{"$f":"'Форма 4'!A430","v":"22."},2459,{"$f":"ROUND('Форма 4'!C430*'Базовые цены за единицу'!C27,0)","v":0},{"$f":"ROUND('Форма 4'!C430*'Базовые цены за единицу'!D27,0)","v":0},{"$f":"ROUND('Форма 4'!C430*'Базовые цены за единицу'!E27,0)","v":0},{"$f":"ROUND('Форма 4'!C430*'Базовые цены за единицу'!F27,0)","v":2459},{"$f":"ROUND('Форма 4'!C430*'Базовые цены за единицу'!G27,0)","v":2407},{"$f":"ROUND('Форма 4'!C430*'Базовые цены за единицу'!H27,0)","v":0},{"$f":"ОКРУГЛВСЕ('Форма 4'!C430*'Базовые цены за единицу'!I27,8)","v":0},{"$f":"ОКРУГЛВСЕ('Форма 4'!C430*'Базовые цены за единицу'!J27,8)","v":0},{"$f":"ОКРУГЛВСЕ('Форма 4'!C430*'Базовые цены за единицу'!K27,8)","v":0},{"$f":"ROUND('Форма 4'!C430*'Базовые цены за единицу'!L27,0)","v":51},{"$f":"ROUND('Форма 4'!C430*'Базовые цены за единицу'!M27,0)","v":0},{"$f":"ROUND((C27+E27)*'Форма 4'!C442/100,0)","v":0},{"$f":"ROUND((C27+E27)*'Форма 4'!C445/100,0)","v":0},{"$f":"ROUND('Форма 4'!C430*'Базовые цены за единицу'!P27,0)","v":0},{"$f":"ROUND('Форма 4'!C430*'Базовые цены за единицу'!Q27,0)","v":0},{"$f":"ROUND('Форма 4'!C430*'Базовые цены за единицу'!R27,0)","v":0},{"$f":"ROUND('Форма 4'!C430*'Базовые цены за единицу'!S27,0)","v":0},{"$f":"ROUND('Форма 4'!C430*'Базовые цены за единицу'!T27,0)","v":0},{"$f":"ROUND('Форма 4'!C430*'Базовые цены за единицу'!U27,0)","v":0},{"$f":"ROUND('Форма 4'!C430*'Базовые цены за единицу'!V27,0)","v":0},null,{"$f":"ROUND('Форма 4'!C430*'Базовые цены за единицу'!X27,0)","v":0},{"$f":"IF(Определители!I27=\"9\",ROUND((C27+E27)*(Начисления!M27/100)*('Форма 4'!C442/100),0),0)","v":0},{"$f":"IF(Определители!I27=\"9\",ROUND((C27+E27)*(100-Начисления!M27/100)*('Форма 4'!C442/100),0),0)","v":0},{"$f":"IF(Определители!I27=\"9\",ROUND((C27+E27)*(Начисления!M27/100)*('Форма 4'!C445/100),0),0)","v":0},{"$f":"IF(Определители!I27=\"9\",ROUND((C27+E27)*(100-Начисления!M27/100)*('Форма 4'!C445/100),0),0)","v":0},{"$f":"IF(Определители!I27=\"9\",ROUND(B27*Начисления!M27/100,0),0)","v":0},{"$f":"IF(Определители!I27=\"9\",ROUND(B27*(100-Начисления!M27)/100,0),0)","v":0},{"$f":"ROUND('Форма 4'!C430*'Базовые цены за единицу'!AE27,0)","v":0},null,null,{"$f":"ROUND('Форма 4'!C430*'Базовые цены за единицу'!AH27,0)","v":0},{"$f":"ROUND('Форма 4'!C430*'Базовые цены за единицу'!AI27,0)","v":0},{"$f":"ROUND('Форма 4'!C430*'Базовые цены за единицу'!AJ27,0)","v":0},{"$f":"ROUND('Форма 4'!C430*'Базовые цены за единицу'!AK27,0)","v":0}]

{"sheet":"Начисления","index":4,"n_rows":27,"n_cols":50,"rows_kept":27,"cut":false,"hidden":false,"merged":[[1,0,1,9],[2,1,2,9],[3,1,3,9],[4,0,4,9]]}
[null,"Н1","Н2","Н3","Н4","Н5","Н6","Н7","Н8","Н9","Н10","Н11","Н12","Н13","Н14","Н15","Н16","Н17","Н18","Н19","Н20","Н21","Н22","Н23","Н24","Н25","Н26","Н27","Н28","Н29","Н30","Н31","Н32","Н33","Н34","Н35","Н36","Н37","Н38","Н39","Н40","Н41","Н42","Н43","Н44","Н45","Н46","Н47","Н48","Н49"]
[]
[null,"N = < 209.15 * 209-08 * 5295.20 >"]
[null,"          Замена теплотрассы с. Демарино ул. Ленина"]
[]
[{"$f":"'Форма 4'!A26","v":"1."},1,1,1,1,1,1,1,1,1,0,0,100,0,0,1,1,0,0,1,0,0,0,0,0,0,0,0,0,0,0,0,1.7,1.6,1.29,9.1999999999999998E-2,0.18,1,1,0.2,1.5,1,1,1,1,1,100,1,1,1]
[{"$f":"'Форма 4'!A45","v":"2."},1,1,1,1,1.2,1,1,1,1,0,0,100,0,0,1,1,0,0,1,0,0,0,0,0,0,0,0,0,0,0,0,1.7,1.6,1.29,9.1999999999999998E-2,0.18,1,1,0.2,1.5,1,1,1,1,1,100,1,1,1]
[{"$f":"'Форма 4'!A64","v":"3."},1,1,0.6,0.6,0.6,1,1,1,1,0,0,100,0,0,1,1,0,0,1,0,0,0,0,0,0,0,0,0,0,0,0,1.7,1.6,1.29,9.1999999999999998E-2,0.18,1,1,0.2,1.5,1,1,1,1,1,100,1,0,1]
[{"$f":"'Форма 4'!A83","v":"4."},1,1,1,1,1,1,1,1,1,0,0,100,0,0,1,1,0,0,1,0,0,0,0,0,0,0,0,0,0,0,0,1.7,1.6,1.29,9.1999999999999998E-2,0.18,1,1,0.2,1.5,1,1,1,1,1,100,1,1,1]
[{"$f":"'Форма 4'!A102","v":"5."},1,1,1,1,1,1,1,1,1,0,0,100,0,0,1,1,0,0,1,0,0,0,0,0,0,0,0,0,0,0,0,1.7,1.6,1.29,9.1999999999999998E-2,0.18,1,1,0.2,1.5,1,1,1,1,1,100,1,1,1]
[{"$f":"'Форма 4'!A120","v":"6."},1,1,1,1,1,1,1,1,1,0,0,100,0,0,1,1,0,0,1,0,0,0,0,0,0,0,0,0,0,0,0,1.7,1.6,1.29,9.1999999999999998E-2,0.18,1,1,0.2,1.5,1,1,1,1,1,100,1,1,1]
[{"$f":"'Форма 4'!A141","v":"7."},1,1,1,1,1,1,1,1,1,0,0,100,0,0,1,1,0,0,1,0,0,0,0,0,0,0,0,0,0,0,0,1.7,1.6,1.29,9.1999999999999998E-2,0.18,1,1,0.2,1.5,1,1,1,1,1,100,1,1,1]
[{"$f":"'Форма 4'!A160","v":"8."},1,1,1,1,1,1,1,1,1,0,0,100,0,0,1,1,0,0,1,0,0,0,0,0,0,0,0,0,0,0,0,1.7,1.6,1.29,9.1999999999999998E-2,0.18,1,1,0.2,1.5,1,1,1,1,1,100,1,1,1]
[{"$f":"'Форма 4'!A179","v":"9."},1,1,1,1,1,1,1,1,1,0,0,100,0,0,1,1,0,0,1,0,0,0,0,0,0,0,0,0,0,0,0,1.7,1.6,1.29,9.1999999999999998E-2,0.18,1,1,0.2,1.5,1,1,1,1,1,100,1,1,1]
[{"$f":"'Форма 4'!A198","v":"10."},1,1,1,1,1,1,1,1,1,0,0,100,0,0,1,1,0,0,1,0,0,0,0,0,0,0,0,0,0,0,0,1.7,1.6,1.29,9.1999999999999998E-2,0.18,1,1,0.2,1.5,1,1,1,1,1,100,1,1,1]
[{"$f":"'Форма 4'!A217","v":"11."},1,1,1,1,1,1,1,1,1,0,0,100,0,0,1,1,0,0,1,0,0,0,0,0,0,0,0,0,0,0,0,1.7,1.6,1.29,9.1999999999999998E-2,0.18,1,1,0.2,1.5,1,1,1,1,1,100,1,1,1]
[{"$f":"'Форма 4'!A235","v":"12."},1,1,1,1,1,1,1,1,1,0,0,100,0,0,1,1,0,0,1,0,0,0,0,0,0,0,0,0,0,0,0,1.7,1.6,1.29,9.1999999999999998E-2,0.18,1,1,0.2,1.5,1,1,1,1,1,100,1,1,1]
[{"$f":"'Форма 4'!A255","v":"13."},1,1,1,1,1,1,1,1,1,0,0,100,0,0,1,1,0,0,1,0,0,0,0,0,0,0,0,0,0,0,0,1.7,1.6,1.29,9.1999999999999998E-2,0.18,1,1,0.2,1.5,1,1,1,1,1,100,1,1,1]
[{"$f":"'Форма 4'!A275","v":"14."},1,1,1,1,1,1,1,1,1,0,0,100,0,0,1,1,0,0,1,0,0,0,0,0,0,0,0,0,0,0,0,1.7,1.6,1.29,9.1999999999999998E-2,0.18,1,1,0.2,1.5,1,1,1,1,1,100,1,1,1]
[{"$f":"'Форма 4'!A294","v":"15."},1,1,1,1,1,1,1,1,1,0,0,100,0,0,1,1,0,0,1,0,0,0,0,0,0,0,0,0,0,0,0,1.7,1.6,1.29,9.1999999999999998E-2,0.18,1,1,0.2,1.5,1,1,1,1,1,100,1,1,1]
[{"$f":"'Форма 4'!A313","v":"16."},1,1,1,1,1,1,1,1,1,0,0,100,0,0,1,1,0,0,1,0,0,0,0,0,0,0,0,0,0,0,0,1.7,1.6,1.29,9.1999999999999998E-2,0.18,1,1,0.2,1.5,1,1,1,1,1,100,1,1,1]
[{"$f":"'Форма 4'!A331","v":"17."},1,1,1,1,1,1,1,1,1,0,0,100,0,0,1,1,0,0,1,0,0,0,0,0,0,0,0,0,0,0,0,1.7,1.6,1.29,9.1999999999999998E-2,0.18,1,1,0.2,1.5,1,1,1,1,1,100,1,1,1]
[{"$f":"'Форма 4'!A349","v":"18."},1,1,1,1,1,1,1,1,1,0,0,100,0,0,1,1,0,0,1,0,0,0,0,0,0,0,0,0,0,0,0,1.7,1.6,1.29,9.1999999999999998E-2,0.18,1,1,0.2,1.5,1,1,1,1,1,100,1,1,1]
[{"$f":"'Форма 4'!A369","v":"19."},1,1,1,1,0.25,1,1,1,1,0,0,100,0,0,1,1,0,0,1,0,0,0,0,0,0,0,0,0,0,0,0,1.7,1.6,1.29,9.1999999999999998E-2,0.18,1,1,0.2,1.5,1,1,1,1,1,100,1,1,1]
[{"$f":"'Форма 4'!A390","v":"20."},1,1,1,1,1,1,1,1,1,0,0,100,0,0,1,1,0,0,1,0,0,0,0,0,0,0,0,0,0,0,0,1.7,1.6,1.29,9.1999999999999998E-2,0.18,1,1,0.2,1.5,1,1,1,1,1,100,1,1,1]
[{"$f":"'Форма 4'!A409","v":"21."},1,1,1,1,1,1,1,1,1,0,0,100,0,0,1,1,0,0,1,0,0,0,0,0,0,0,0,0,0,0,0,1.7,1.6,1.29,9.1999999999999998E-2,0.18,1,1,0.2,1.5,1,1,1,1,1,100,1,1,1]
[{"$f":"'Форма 4'!A430","v":"22."},1,1,1,1,1,1,1,1,1,0,0,100,0,0,1,1,0,0,1,0,0,0,0,0,0,0,0,0,0,0,0,1.7,1.6,1.29,9.1999999999999998E-2,0.18,1,1,0.2,1.5,1,1,1,1,1,100,1,1,1]

{"sheet":"Определители","index":5,"n_rows":27,"n_cols":10,"rows_kept":27,"cut":false,"hidden":false,"merged":[[1,0,1,9],[2,1,2,9],[3,1,3,9],[4,0,4,9]]}
[null,"О0","О1","О2","О3","О4","О5","О6","О7","О8"]
[]
[null,"N = < 209.15 * 209-08 * 5295.20 >"]
[null,"          Замена теплотрассы с. Демарино ул. Ленина"]
[]
[{"$f":"'Форма 4'!A26","v":"1."},"1","1"," "," ","0"," "," ","2"," "]
[{"$f":"'Форма 4'!A45","v":"2."},"1","1"," "," ","0"," "," ","2"," "]
[{"$f":"'Форма 4'!A64","v":"3."},"1","1"," "," ","0"," "," ","2"," "]
[{"$f":"'Форма 4'!A83","v":"4."},"1","1"," "," ","0"," "," ","2"," "]
[{"$f":"'Форма 4'!A102","v":"5."},"1","1"," "," ","2","1"," ","4"," "]
[{"$f":"'Форма 4'!A120","v":"6."},"1","1"," "," ","0"," "," ","2"," "]
[{"$f":"'Форма 4'!A141","v":"7."},"1","1"," "," ","0"," "," ","2"," "]
[{"$f":"'Форма 4'!A160","v":"8."},"1","1"," "," ","0"," "," ","2"," "]
[{"$f":"'Форма 4'!A179","v":"9."},"1","1"," "," ","0","1"," ","2","1"]
[{"$f":"'Форма 4'!A198","v":"10."},"1","1"," "," ","1"," "," ","3"," "]
[{"$f":"'Форма 4'!A217","v":"11."},"1","1"," "," ","1","1"," ","3"," "]
[{"$f":"'Форма 4'!A235","v":"12."},"1","1"," "," ","0"," "," ","2"," "]
[{"$f":"'Форма 4'!A255","v":"13."},"1","1"," "," ","0"," "," ","2"," "]
[{"$f":"'Форма 4'!A275","v":"14."},"1","1"," "," ","0"," "," ","2"," "]
[{"$f":"'Форма 4'!A294","v":"15."},"1","1"," "," ","2","1"," ","4"," "]
[{"$f":"'Форма 4'!A313","v":"16."},"1"," "," "," ","0","1"," ","1","1"]
[{"$f":"'Форма 4'!A331","v":"17."},"1"," "," "," ","0","1"," ","1","1"]
[{"$f":"'Форма 4'!A349","v":"18."},"1","1"," "," ","0"," "," ","2"," "]
[{"$f":"'Форма 4'!A369","v":"19."},"1","1"," "," ","0"," "," ","2"," "]
[{"$f":"'Форма 4'!A390","v":"20."},"1","1"," "," ","0","1"," ","2"," "]
[{"$f":"'Форма 4'!A409","v":"21."},"1","1"," "," ","0"," "," ","2"," "]
[{"$f":"'Форма 4'!A430","v":"22."},"1","1"," "," ","0","1"," ","2"," "]

{"sheet":"Базовые концовки","index":6,"n_rows":99,"n_cols":14,"rows_kept":99,"cut":false,"hidden":false,"merged":[[1,0,1,9],[2,1,2,9],[3,1,3,9],[4,0,4,9]]}
[]
[]
[null,"N = < 209.15 * 209-08 * 5295.20 >"]
[null,"          Замена теплотрассы с. Демарино ул. Ленина"]
[]
[null,"Наименование","Вид","Значение","ЕИ","Z1","Z2","Z3","Z4","Z5","Z6","Z7","Z8"]
[1,".    ИТОГО  ПО  СМЕТЕ","А",0,null,{"$f":"ROUND(SUM('Базовые цены с учетом расхода'!B6:B27),0)","v":70096},{"$f":"ROUND(SUM('Базовые цены с учетом расхода'!C6:C27),0)","v":4986},{"$f":"ROUND(SUM('Базовые цены с учетом расхода'!D6:D27),0)","v":5306},{"$f":"ROUND(SUM('Базовые цены с учетом расхода'!E6:E27),0)","v":488},{"$f":"ROUND(SUM('Базовые цены с учетом расхода'!I6:I27),8)","v":414.48748949999998},{"$f":"ROUND(SUM('Базовые цены с учетом расхода'!K6:K27),8)","v":34.213862499999998},{"$f":"ROUND(SUM('Базовые цены с учетом расхода'!F6:F27),0)","v":59804},null,"1"]
[2,"СТОИМОСТЬ ОБОРУДОВАНИЯ -","Б",0,null,{"$f":"ROUND(SUMIF(Определители!I6:I27,\"= \",'Базовые цены с учетом расхода'!B6:B27),0)","v":0},{"$f":"ROUND(SUMIF(Определители!I6:I27,\"= \",'Базовые цены с учетом расхода'!C6:C27),0)","v":0},{"$f":"ROUND(SUMIF(Определители!I6:I27,\"= \",'Базовые цены с учетом расхода'!D6:D27),0)","v":0},{"$f":"ROUND(SUMIF(Определители!I6:I27,\"= \",'Базовые цены с учетом расхода'!E6:E27),0)","v":0},{"$f":"ROUND(SUMIF(Определители!I6:I27,\"= \",'Базовые цены с учетом расхода'!I6:I27),8)","v":0},{"$f":"ROUND(SUMIF(Определители!I6:I27,\"= \",'Базовые цены с учетом расхода'!K6:K27),8)","v":0},{"$f":"ROUND(SUMIF(Определители!I6:I27,\"= \",'Базовые цены с учетом расхода'!F6:F27),0)","v":0},null,"2"]
[3,".   ЗАПАСНЫЕ ЧАСТИ -","Б",0,null,{"$f":"ROUND(СУММПРОИЗВЕСЛИ(0.01,Определители!I6:I27,\" \",'Базовые цены с учетом расхода'!B6:B27,Начисления!X6:X27,0),0)","v":0},null,null,null,null,null,null,null,"3"]
[4,".   ТАРА И УПАКОВКА -","Б",0,null,{"$f":"ROUND(СУММПРОИЗВЕСЛИ(0.01,Определители!I6:I27,\" \",'Базовые цены с учетом расхода'!B6:B27,Начисления!Y6:Y27,0),0)","v":0},null,null,null,null,null,null,null,"4"]
[5,".   ТРАНСПОРТНЫЕ РАСХОДЫ -","Б",0,null,{"$f":"ROUND(ТРАНСПРАСХОД(Определители!B6:B27,Определители!H6:H27,Определители!I6:I27,'Базовые цены с учетом расхода'!B6:B27,Начисления!Z6:Z27,Начисления!AA6:AA27),0)","v":0},null,null,null,null,null,null,null,"5"]
[6,".   КОМПЛЕКТАЦИЯ -","Б",0,null,{"$f":"ROUND(СУММПРОИЗВЕСЛИ(0.01,Определители!I6:I27,\" \",'Базовые цены с учетом расхода'!B6:B27,Начисления!AC6:AC27,0),0)","v":0},null,null,null,null,null,null,null,"6"]
[7,".   НАЦЕНКА СНАБА -","Б",0,null,{"$f":"ROUND(СУММПРОИЗВЕСЛИ(0.01,Определители!I6:I27,\" \",'Базовые цены с учетом расхода'!B6:B27,Начисления!AF6:AF27,0),0)","v":0},null,null,null,null,null,null,null,"7"]
[8,".   ЗАГОТОВИТЕЛЬНО-СКЛАДСКИЕ РАСХОДЫ -","Б",0,null,{"$f":"ROUND(ЗАГОТСКЛАДРАСХОД(Определители!B6:B27,Определители!H6:H27,Определители!I6:I27,'Базовые цены с учетом расхода'!B6:B27,Начисления!X6:X27,Начисления!Y6:Y27,Начисления!Z6:Z27,Начисления!AA6:AA27,Начисления!AB6:AB27,Начисления!AC6:AC27,Начисления!AF6:AF27),0)","v":0},null,null,null,null,null,null,null,"8"]
[9,". ШЕФМОНТАЖ ПО ОБОРУДОВАНИЮ -","Б",0,null,{"$f":"ROUND(СУММПРОИЗВЕСЛИ(1,Определители!I6:I27,\" \",'Базовые цены с учетом расхода'!M6:M27,Начисления!I6:I27,0),0)","v":0},null,null,null,null,null,null,null,"9"]
[10,". ШЕФМОНТАЖ -","!",0,null,{"$f":"ROUND((F15+F26+F46),0)","v":0},null,null,null,null,null,null,null,"10"]
[11,"ВСЕГО, СТОИМОСТЬ ОБОРУДОВАНИЯ -","!",0,null,{"$f":"ROUND((F8+F9+F10+F11+F12+F13+F14+F16),0)","v":0},null,null,null,null,null,null,null,"11"]
[12,"СТОИМОСТЬ МОНТАЖНЫХ РАБОТ -","Б",0,null,{"$f":"ROUND(SUMIF(Определители!I6:I27,\"=1\",'Базовые цены с учетом расхода'!B6:B27),0)","v":910},{"$f":"ROUND(SUMIF(Определители!I6:I27,\"=1\",'Базовые цены с учетом расхода'!C6:C27),0)","v":0},{"$f":"ROUND(SUMIF(Определители!I6:I27,\"=1\",'Базовые цены с учетом расхода'!D6:D27),0)","v":0},{"$f":"ROUND(SUMIF(Определители!I6:I27,\"=1\",'Базовые цены с учетом расхода'!E6:E27),0)","v":0},{"$f":"ROUND(SUMIF(Определители!I6:I27,\"=1\",'Базовые цены с учетом расхода'!I6:I27),8)","v":0},{"$f":"ROUND(SUMIF(Определители!I6:I27,\"=1\",'Базовые цены с учетом расхода'!K6:K27),8)","v":0},{"$f":"ROUND(SUMIF(Определители!I6:I27,\"=1\",'Базовые цены с учетом расхода'!F6:F27),0)","v":910},null,"12"]
[13,".     В ТОМ ЧИСЛЕ:","Б",0,null,null,null,null,null,null,null,null,null,"13"]
[14,". ОТКЛОНЕНИЕ ПО ЗАРАБОТНОЙ ПЛАТЕ -","Б",0,null,null,{"$f":"ROUND(SUMIF(Определители!I6:I27,\"=1\",'Базовые цены с учетом расхода'!T6:T27),0)","v":0},null,null,null,null,null,null,"14"]
[15,". КОСВЕННЫЕ РАСХОДЫ -","Б",0,null,{"$f":"ROUND(SUMIF(Определители!I6:I27,\"=1\",'Базовые цены с учетом расхода'!U6:U27),0)","v":0},null,null,null,null,null,null,null,"15"]
[16,". МАТЕРИАЛЬНЫЕ РЕСУРСЫ НЕ УЧТЕННЫЕ В РАСЦЕНКАХ -","Б",0,null,{"$f":"ROUND(СУММЕСЛИ2(Определители!I6:I27,\"1\",Определители!G6:G27,\"1\",'Базовые цены с учетом расхода'!B6:B27),0)","v":910},null,null,null,null,null,null,null,"16"]
[17,".   СТОИМОСТЬ ВОЗВРАЩАЕМЫХ МАТЕРИАЛОВ -","Б",0,null,{"$f":"ROUND(SUMIF(Определители!I6:I27,\"=1\",'Базовые цены с учетом расхода'!H6:H27),0)","v":0},null,null,null,null,null,null,null,"17"]
[18,".   НАКЛАДНЫЕ РАСХОДЫ -","Б",0,null,{"$f":"ROUND(SUMIF(Определители!I6:I27,\"=1\",'Базовые цены с учетом расхода'!N6:N27),0)","v":0},null,null,null,null,null,null,null,"18"]
[19,".   СМЕТНАЯ ПРИБЫЛЬ -","Б",0,null,{"$f":"ROUND(SUMIF(Определители!I6:I27,\"=1\",'Базовые цены с учетом расхода'!O6:O27),0)","v":0},null,null,null,null,null,null,null,"19"]
[20,". ШЕФМОНТАЖ -","Б",0,null,{"$f":"ROUND(СУММПРОИЗВЕСЛИ(1,Определители!I6:I27,\" \",'Базовые цены с учетом расхода'!M6:M27,Начисления!I6:I27,0),0)","v":0},null,null,null,null,null,null,null,"20"]
[21,"ВСЕГО, СТОИМОСТЬ МОНТАЖНЫХ РАБОТ -","!",0,null,{"$f":"ROUND((F18+F24+F25),0)","v":910},null,null,null,null,null,null,null,"21"]
[22,"СТОИМОСТЬ ОБЩЕСТРОИТЕЛЬНЫХ РАБОТ -","Б",0,null,{"$f":"ROUND(SUMIF(Определители!I6:I27,\"=2\",'Базовые цены с учетом расхода'!B6:B27),0)","v":27713},{"$f":"ROUND(SUMIF(Определители!I6:I27,\"=2\",'Базовые цены с учетом расхода'!C6:C27),0)","v":4939},{"$f":"ROUND(SUMIF(Определители!I6:I27,\"=2\",'Базовые цены с учетом расхода'!D6:D27),0)","v":5117},{"$f":"ROUND(SUMIF(Определители!I6:I27,\"=2\",'Базовые цены с учетом расхода'!E6:E27),0)","v":465},{"$f":"ROUND(SUMIF(Определители!I6:I27,\"=2\",'Базовые цены с учетом расхода'!I6:I27),8)","v":0},{"$f":"ROUND(SUMIF(Определители!I6:I27,\"=2\",'Базовые цены с учетом расхода'!K6:K27),8)","v":32.8971625},{"$f":"ROUND(SUMIF(Определители!I6:I27,\"=2\",'Базовые цены с учетом расхода'!F6:F27),0)","v":17657},null,"22"]
[23,".     В ТОМ ЧИСЛЕ:","Б",0,null,null,null,null,null,null,null,null,null,"23"]
[24,".       МАТЕРИАЛОВ -","Б",0,null,{"$f":"ROUND(СУММЕСЛИ2(Определители!I6:I27,\"2\",Определители!G6:G27,\"1\",'Базовые цены с учетом расхода'!B6:B27),0)","v":12362},null,null,null,null,null,null,null,"24"]
[25,".   СТОИМОСТЬ ВОЗВРАЩАЕМЫХ МАТЕРИАЛОВ -","Б",0,null,{"$f":"ROUND(SUMIF(Определители!I6:I27,\"=2\",'Базовые цены с учетом расхода'!H6:H27),0)","v":0},null,null,null,null,null,null,null,"25"]
[26,".   НАКЛАДНЫЕ РАСХОДЫ -","Б",0,null,{"$f":"ROUND(SUMIF(Определители!I6:I27,\"=2\",'Базовые цены с учетом расхода'!N6:N27),0)","v":5563},null,null,null,null,null,null,null,"26"]
[27,".   СМЕТНАЯ ПРИБЫЛЬ -","Б",0,null,{"$f":"ROUND(SUMIF(Определители!I6:I27,\"=2\",'Базовые цены с учетом расхода'!O6:O27),0)","v":3621},null,null,null,null,null,null,null,"27"]
[28,"ВСЕГО, СТОИМОСТЬ ОБЩЕСТРОИТЕЛЬНЫХ РАБОТ -","!",0,null,{"$f":"ROUND((F28+F32+F33),0)","v":36897},null,null,null,null,null,null,null,"28"]
[29,"СТОИМОСТЬ МЕТАЛЛОМОНТАЖНЫХ РАБОТ -","Б",0,null,{"$f":"ROUND(SUMIF(Определители!I6:I27,\"=3\",'Базовые цены с учетом расхода'!B6:B27),0)","v":9047},{"$f":"ROUND(SUMIF(Определители!I6:I27,\"=3\",'Базовые цены с учетом расхода'!C6:C27),0)","v":47},{"$f":"ROUND(SUMIF(Определители!I6:I27,\"=3\",'Базовые цены с учетом расхода'!D6:D27),0)","v":189},{"$f":"ROUND(SUMIF(Определители!I6:I27,\"=3\",'Базовые цены с учетом расхода'!E6:E27),0)","v":23},{"$f":"ROUND(SUMIF(Определители!I6:I27,\"=3\",'Базовые цены с учетом расхода'!I6:I27),8)","v":0},{"$f":"ROUND(SUMIF(Определители!I6:I27,\"=3\",'Базовые цены с учетом расхода'!K6:K27),8)","v":1.3167},{"$f":"ROUND(SUMIF(Определители!I6:I27,\"=3\",'Базовые цены с учетом расхода'!F6:F27),0)","v":8811},null,"29"]
[30,".   СТОИМОСТЬ ВОЗВРАЩАЕМЫХ МАТЕРИАЛОВ -","Б",0,null,{"$f":"ROUND(SUMIF(Определители!I6:I27,\"=3\",'Базовые цены с учетом расхода'!H6:H27),0)","v":0},null,null,null,null,null,null,null,"30"]
[31,".   НАКЛАДНЫЕ РАСХОДЫ -","Б",0,null,{"$f":"ROUND(SUMIF(Определители!I6:I27,\"=3\",'Базовые цены с учетом расхода'!N6:N27),0)","v":57},null,null,null,null,null,null,null,"31"]
[32,".   СМЕТНАЯ ПРИБЫЛЬ -","Б",0,null,{"$f":"ROUND(SUMIF(Определители!I6:I27,\"=3\",'Базовые цены с учетом расхода'!O6:O27),0)","v":51},null,null,null,null,null,null,null,"32"]
[33,"ВСЕГО, СТОИМОСТЬ МЕТАЛЛОМОНТАЖНЫХ РАБОТ -","!",0,null,{"$f":"ROUND((F35+F37+F38),0)","v":9155},null,null,null,null,null,null,null,"33"]
[34,"СТОИМОСТЬ САНТЕХНИЧЕСКИХ РАБОТ -","Б",0,null,{"$f":"ROUND(SUMIF(Определители!I6:I27,\"=4\",'Базовые цены с учетом расхода'!B6:B27),0)","v":32426},{"$f":"ROUND(SUMIF(Определители!I6:I27,\"=4\",'Базовые цены с учетом расхода'!C6:C27),0)","v":0},{"$f":"ROUND(SUMIF(Определители!I6:I27,\"=4\",'Базовые цены с учетом расхода'!D6:D27),0)","v":0},{"$f":"ROUND(SUMIF(Определители!I6:I27,\"=4\",'Базовые цены с учетом расхода'!E6:E27),0)","v":0},{"$f":"ROUND(SUMIF(Определители!I6:I27,\"=4\",'Базовые цены с учетом расхода'!I6:I27),8)","v":0},{"$f":"ROUND(SUMIF(Определители!I6:I27,\"=4\",'Базовые цены с учетом расхода'!K6:K27),8)","v":0},{"$f":"ROUND(SUMIF(Определители!I6:I27,\"=4\",'Базовые цены с учетом расхода'!F6:F27),0)","v":32426},null,"34"]
[35,".     В ТОМ ЧИСЛЕ:","Б",0,null,null,null,null,null,null,null,null,null,"35"]
[36,". СДАЧА И ИСПЫТАНИЕ -","Б",0,null,{"$f":"ROUND(SUMIF(Определители!I6:I27,\"=4\",'Базовые цены с учетом расхода'!AJ6:AJ27),0)","v":0},{"$f":"ROUND(SUMIF(Определители!I6:I27,\"=4\",'Базовые цены с учетом расхода'!AI6:AI27),0)","v":0},{"$f":"ROUND(SUMIF(Определители!I6:I27,\"=4\",'Базовые цены с учетом расхода'!AH6:AH27),0)","v":0},{"$f":"ROUND(SUMIF(Определители!I6:I27,\"=4\",'Базовые цены с учетом расхода'!V6:V27),0)","v":0},null,null,null,null,"36"]
[37,".   СТОИМОСТЬ ВОЗВРАЩАЕМЫХ МАТЕРИАЛОВ -","Б",0,null,{"$f":"ROUND(SUMIF(Определители!I6:I27,\"=4\",'Базовые цены с учетом расхода'!H6:H27),0)","v":0},null,null,null,null,null,null,null,"37"]
[38,".   НАКЛАДНЫЕ РАСХОДЫ -","Б",0,null,{"$f":"ROUND(SUMIF(Определители!I6:I27,\"=4\",'Базовые цены с учетом расхода'!N6:N27),0)","v":0},null,null,null,null,null,null,null,"38"]
[39,".   СМЕТНАЯ ПРИБЫЛЬ -","Б",0,null,{"$f":"ROUND(SUMIF(Определители!I6:I27,\"=4\",'Базовые цены с учетом расхода'!O6:O27),0)","v":0},null,null,null,null,null,null,null,"39"]
[40,". ШЕФМОНТАЖ -","Б",0,null,{"$f":"ROUND(СУММПРОИЗВЕСЛИ(1,Определители!I6:I27,\" \",'Базовые цены с учетом расхода'!M6:M27,Начисления!I6:I27,0),0)","v":0},null,null,null,null,null,null,null,"40"]
[41,"ВСЕГО, СТОИМОСТЬ САНТЕХНИЧЕСКИХ РАБОТ -","!",0,null,{"$f":"ROUND((F40+F44+F45),0)","v":32426},null,null,null,null,null,null,null,"41"]
[42,"СТОИМОСТЬ БУРО-ВЗРЫВНЫХ РАБОТ -","Б",0,null,{"$f":"ROUND(SUMIF(Определители!I6:I27,\"=5\",'Базовые цены с учетом расхода'!B6:B27),0)","v":0},{"$f":"ROUND(SUMIF(Определители!I6:I27,\"=5\",'Базовые цены с учетом расхода'!C6:C27),0)","v":0},{"$f":"ROUND(SUMIF(Определители!I6:I27,\"=5\",'Базовые цены с учетом расхода'!D6:D27),0)","v":0},{"$f":"ROUND(SUMIF(Определители!I6:I27,\"=5\",'Базовые цены с учетом расхода'!E6:E27),0)","v":0},{"$f":"ROUND(SUMIF(Определители!I6:I27,\"=5\",'Базовые цены с учетом расхода'!I6:I27),8)","v":0},{"$f":"ROUND(SUMIF(Определители!I6:I27,\"=5\",'Базовые цены с учетом расхода'!K6:K27),8)","v":0},{"$f":"ROUND(SUMIF(Определители!I6:I27,\"=5\",'Базовые цены с учетом расхода'!F6:F27),0)","v":0},null,"42"]
[43,".   СТОИМОСТЬ ВОЗВРАЩАЕМЫХ МАТЕРИАЛОВ -","Б",0,null,{"$f":"ROUND(SUMIF(Определители!I6:I27,\"=5\",'Базовые цены с учетом расхода'!H6:H27),0)","v":0},null,null,null,null,null,null,null,"43"]
[44,".   НАКЛАДНЫЕ РАСХОДЫ -","Б",0,null,{"$f":"ROUND(SUMIF(Определители!I6:I27,\"=5\",'Базовые цены с учетом расхода'!N6:N27),0)","v":0},null,null,null,null,null,null,null,"44"]
[45,".   СМЕТНАЯ ПРИБЫЛЬ -","Б",0,null,{"$f":"ROUND(SUMIF(Определители!I6:I27,\"=5\",'Базовые цены с учетом расхода'!O6:O27),0)","v":0},null,null,null,null,null,null,null,"45"]
[46,"ВСЕГО, СТОИМОСТЬ БУРО-ВЗРЫВНЫХ РАБОТ -","!",0,null,{"$f":"ROUND((F48+F50+F51),0)","v":0},null,null,null,null,null,null,null,"46"]
[47,"СТОИМОСТЬ ГОРНОПРОХОДЧЕСКИХ РАБОТ -","Б",0,null,{"$f":"ROUND(SUMIF(Определители!I6:I27,\"=6\",'Базовые цены с учетом расхода'!B6:B27),0)","v":0},{"$f":"ROUND(SUMIF(Определители!I6:I27,\"=6\",'Базовые цены с учетом расхода'!C6:C27),0)","v":0},{"$f":"ROUND(SUMIF(Определители!I6:I27,\"=6\",'Базовые цены с учетом расхода'!D6:D27),0)","v":0},{"$f":"ROUND(SUMIF(Определители!I6:I27,\"=6\",'Базовые цены с учетом расхода'!E6:E27),0)","v":0},{"$f":"ROUND(SUMIF(Определители!I6:I27,\"=6\",'Базовые цены с учетом расхода'!I6:I27),8)","v":0},{"$f":"ROUND(SUMIF(Определители!I6:I27,\"=6\",'Базовые цены с учетом расхода'!K6:K27),8)","v":0},{"$f":"ROUND(SUMIF(Определители!I6:I27,\"=6\",'Базовые цены с учетом расхода'!F6:F27),0)","v":0},null,"47"]
[48,".   СТОИМОСТЬ ВОЗВРАЩАЕМЫХ МАТЕРИАЛОВ -","Б",0,null,{"$f":"ROUND(SUMIF(Определители!I6:I27,\"=6\",'Базовые цены с учетом расхода'!H6:H27),0)","v":0},null,null,null,null,null,null,null,"48"]
[49,".   НАКЛАДНЫЕ РАСХОДЫ -","Б",0,null,{"$f":"ROUND(SUMIF(Определители!I6:I27,\"=6\",'Базовые цены с учетом расхода'!N6:N27),0)","v":0},null,null,null,null,null,null,null,"49"]
[50,".   СМЕТНАЯ ПРИБЫЛЬ -","Б",0,null,{"$f":"ROUND(SUMIF(Определители!I6:I27,\"=6\",'Базовые цены с учетом расхода'!O6:O27),0)","v":0},null,null,null,null,null,null,null,"50"]
[51,"ВСЕГО, СТОИМОСТЬ ГОРНОПРОХОДЧЕСКИХ РАБОТ -","!",0,null,{"$f":"ROUND((F53+F55+F56),0)","v":0},null,null,null,null,null,null,null,"51"]
[52,"СТОИМОСТЬ РЕСТАВРАЦИОННЫХ РАБОТ -","Б",0,null,{"$f":"ROUND(SUMIF(Определители!I6:I27,\"=7\",'Базовые цены с учетом расхода'!B6:B27),0)","v":0},{"$f":"ROUND(SUMIF(Определители!I6:I27,\"=7\",'Базовые цены с учетом расхода'!C6:C27),0)","v":0},{"$f":"ROUND(SUMIF(Определители!I6:I27,\"=7\",'Базовые цены с учетом расхода'!D6:D27),0)","v":0},{"$f":"ROUND(SUMIF(Определители!I6:I27,\"=7\",'Базовые цены с учетом расхода'!E6:E27),0)","v":0},{"$f":"ROUND(SUMIF(Определители!I6:I27,\"=7\",'Базовые цены с учетом расхода'!I6:I27),8)","v":0},{"$f":"ROUND(SUMIF(Определители!I6:I27,\"=7\",'Базовые цены с учетом расхода'!K6:K27),8)","v":0},{"$f":"ROUND(SUMIF(Определители!I6:I27,\"=7\",'Базовые цены с учетом расхода'!F6:F27),0)","v":0},null,"52"]
[53,".     В ТОМ ЧИСЛЕ:","Б",0,null,null,null,null,null,null,null,null,null,"53"]
[54,".       МАТЕРИАЛОВ -","Б",0,null,{"$f":"ROUND(СУММЕСЛИ2(Определители!I6:I27,\"2\",Определители!G6:G27,\"1\",'Базовые цены с учетом расхода'!B6:B27),0)","v":12362},null,null,null,null,null,null,null,"54"]
[55,".   СТОИМОСТЬ ВОЗВРАЩАЕМЫХ МАТЕРИАЛОВ -","Б",0,null,{"$f":"ROUND(SUMIF(Определители!I6:I27,\"=7\",'Базовые цены с учетом расхода'!H6:H27),0)","v":0},null,null,null,null,null,null,null,"55"]
[56,".   НАКЛАДНЫЕ РАСХОДЫ -","Б",0,null,{"$f":"ROUND(SUMIF(Определители!I6:I27,\"=7\",'Базовые цены с учетом расхода'!N6:N27),0)","v":0},null,null,null,null,null,null,null,"56"]
[57,".   СМЕТНАЯ ПРИБЫЛЬ -","Б",0,null,{"$f":"ROUND(SUMIF(Определители!I6:I27,\"=7\",'Базовые цены с учетом расхода'!O6:O27),0)","v":0},null,null,null,null,null,null,null,"57"]
[58,"ВСЕГО, СТОИМОСТЬ РЕСТАВРАЦИОННЫХ РАБОТ -","!",0,null,{"$f":"ROUND((F58+F62+F63),0)","v":0},null,null,null,null,null,null,null,"58"]
[59,"СТОИМОСТЬ ПЕРЕВОЗКИ ГРУЗОВ -","Б",0,null,{"$f":"ROUND(SUMIF(Определители!I6:I27,\"=;\",'Базовые цены с учетом расхода'!B6:B27),0)","v":0},{"$f":"ROUND(SUMIF(Определители!I6:I27,\"=;\",'Базовые цены с учетом расхода'!C6:C27),0)","v":0},{"$f":"ROUND(SUMIF(Определители!I6:I27,\"=;\",'Базовые цены с учетом расхода'!D6:D27),0)","v":0},{"$f":"ROUND(SUMIF(Определители!I6:I27,\"=;\",'Базовые цены с учетом расхода'!E6:E27),0)","v":0},{"$f":"ROUND(SUMIF(Определители!I6:I27,\"=;\",'Базовые цены с учетом расхода'!I6:I27),8)","v":0},{"$f":"ROUND(SUMIF(Определители!I6:I27,\"=;\",'Базовые цены с учетом расхода'!K6:K27),8)","v":0},{"$f":"ROUND(SUMIF(Определители!I6:I27,\"=;\",'Базовые цены с учетом расхода'!F6:F27),0)","v":0},null,"59"]
[60,".   В Т.Ч. НАКЛАДНЫЕ РАСХОДЫ -","Б",0,null,{"$f":"ROUND(SUMIF(Определители!I6:I27,\"=;\",'Базовые цены с учетом расхода'!AF6:AF27),0)","v":0},null,null,null,null,null,null,null,"60"]
[61,".   В Т.Ч. СМЕТНАЯ ПРИБЫЛЬ -","Б",0,null,{"$f":"ROUND(SUMIF(Определители!I6:I27,\"=;\",'Базовые цены с учетом расхода'!AG6:AG27),0)","v":0},null,null,null,null,null,null,null,"61"]
[62,".   НАКЛАДНЫЕ РАСХОДЫ -","Б",0,null,{"$f":"ROUND(SUMIF(Определители!I6:I27,\"=;\",'Базовые цены с учетом расхода'!N6:N27),0)","v":0},null,null,null,null,null,null,null,"62"]
[63,".   СМЕТНАЯ ПРИБЫЛЬ -","Б",0,null,{"$f":"ROUND(SUMIF(Определители!I6:I27,\"=;\",'Базовые цены с учетом расхода'!O6:O27),0)","v":0},null,null,null,null,null,null,null,"63"]
[64,"ВСЕГО, СТОИМОСТЬ ПЕРЕВОЗКИ ГРУЗОВ -","!",0,null,{"$f":"ROUND((F65+F68+F69),0)","v":0},null,null,null,null,null,null,null,"64"]
[65,"СТОИМОСТЬ ПУСКОНАЛАДОЧНЫХ РАБОТ -","Б",0,null,{"$f":"ROUND(SUMIF(Определители!I6:I27,\"=9\",'Базовые цены с учетом расхода'!B6:B27),0)","v":0},{"$f":"ROUND(SUMIF(Определители!I6:I27,\"=9\",'Базовые цены с учетом расхода'!C6:C27),0)","v":0},{"$f":"ROUND(SUMIF(Определители!I6:I27,\"=9\",'Базовые цены с учетом расхода'!D6:D27),0)","v":0},{"$f":"ROUND(SUMIF(Определители!I6:I27,\"=9\",'Базовые цены с учетом расхода'!E6:E27),0)","v":0},{"$f":"ROUND(SUMIF(Определители!I6:I27,\"=9\",'Базовые цены с учетом расхода'!I6:I27),8)","v":0},{"$f":"ROUND(SUMIF(Определители!I6:I27,\"=9\",'Базовые цены с учетом расхода'!K6:K27),8)","v":0},{"$f":"ROUND(SUMIF(Определители!I6:I27,\"=9\",'Базовые цены с учетом расхода'!F6:F27),0)","v":0},null,"65"]
[66,".   НАКЛАДНЫЕ РАСХОДЫ -","Б",0,null,{"$f":"ROUND(SUMIF(Определители!I6:I27,\"=9\",'Базовые цены с учетом расхода'!N6:N27),0)","v":0},null,null,null,null,null,null,null,"66"]
[67,".   СМЕТНАЯ ПРИБЫЛЬ -","Б",0,null,{"$f":"ROUND(SUMIF(Определители!I6:I27,\"=9\",'Базовые цены с учетом расхода'!O6:O27),0)","v":0},null,null,null,null,null,null,null,"67"]
[68,"ВСЕГО, СТОИМОСТЬ ПУСКОНАЛАДОЧНЫХ РАБОТ -","!",0,null,{"$f":"ROUND((F71+F72+F73),0)","v":0},null,null,null,null,null,null,null,"68"]
[69,"СТОИМОСТЬ ПРОЧИХ РАБОТ (с НР и СП) -","Б",0,null,{"$f":"ROUND(SUMIF(Определители!I6:I27,\"=:\",'Базовые цены с учетом расхода'!B6:B27),0)","v":0},{"$f":"ROUND(SUMIF(Определители!I6:I27,\"=:\",'Базовые цены с учетом расхода'!C6:C27),0)","v":0},{"$f":"ROUND(SUMIF(Определители!I6:I27,\"=:\",'Базовые цены с учетом расхода'!D6:D27),0)","v":0},{"$f":"ROUND(SUMIF(Определители!I6:I27,\"=:\",'Базовые цены с учетом расхода'!E6:E27),0)","v":0},{"$f":"ROUND(SUMIF(Определители!I6:I27,\"=:\",'Базовые цены с учетом расхода'!I6:I27),8)","v":0},{"$f":"ROUND(SUMIF(Определители!I6:I27,\"=:\",'Базовые цены с учетом расхода'!K6:K27),8)","v":0},{"$f":"ROUND(SUMIF(Определители!I6:I27,\"=:\",'Базовые цены с учетом расхода'!F6:F27),0)","v":0},null,"69"]
[70,".   СТОИМОСТЬ ВОЗВРАЩАЕМЫХ МАТЕРИАЛОВ -","Б",0,null,{"$f":"ROUND(SUMIF(Определители!I6:I27,\"=:\",'Базовые цены с учетом расхода'!H6:H27),0)","v":0},null,null,null,null,null,null,null,"70"]
[71,".   НАКЛАДНЫЕ РАСХОДЫ -","Б",0,null,{"$f":"ROUND(SUMIF(Определители!I6:I27,\"=:\",'Базовые цены с учетом расхода'!N6:N27),0)","v":0},null,null,null,null,null,null,null,"71"]
[72,".   СМЕТНАЯ ПРИБЫЛЬ -","Б",0,null,{"$f":"ROUND(SUMIF(Определители!I6:I27,\"=:\",'Базовые цены с учетом расхода'!O6:O27),0)","v":0},null,null,null,null,null,null,null,"72"]
[73,"ВСЕГО, СТОИМОСТЬ ПРОЧИХ РАБОТ (с НР и СП) -","!",0,null,{"$f":"ROUND((F75+F77+F78),0)","v":0},null,null,null,null,null,null,null,"73"]
[74,"ВСЕГО, СТОИМОСТЬ ПРОЧИХ РАБОТ (без НР и СП) -","Б",0,null,{"$f":"ROUND(SUMIF(Определители!I6:I27,\"=8\",'Базовые цены с учетом расхода'!B6:B27),0)","v":0},{"$f":"ROUND(SUMIF(Определители!I6:I27,\"=8\",'Базовые цены с учетом расхода'!C6:C27),0)","v":0},{"$f":"ROUND(SUMIF(Определители!I6:I27,\"=8\",'Базовые цены с учетом расхода'!D6:D27),0)","v":0},{"$f":"ROUND(SUMIF(Определители!I6:I27,\"=8\",'Базовые цены с учетом расхода'!E6:E27),0)","v":0},{"$f":"ROUND(SUMIF(Определители!I6:I27,\"=8\",'Базовые цены с учетом расхода'!I6:I27),8)","v":0},{"$f":"ROUND(SUMIF(Определители!I6:I27,\"=8\",'Базовые цены с учетом расхода'!K6:K27),8)","v":0},{"$f":"ROUND(SUMIF(Определители!I6:I27,\"=8\",'Базовые цены с учетом расхода'!F6:F27),0)","v":0},null,"74"]
[75,".   СТОИМОСТЬ ВОЗВРАЩАЕМЫХ МАТЕРИАЛОВ -","Б",0,null,{"$f":"ROUND(SUMIF(Определители!I6:I27,\"=8\",'Базовые цены с учетом расхода'!H6:H27),0)","v":0},null,null,null,null,null,null,null,"75"]
[76,". ВСЕГО  ПО  СМЕТЕ","!",0,null,{"$f":"ROUND((F17+F27+F34+F39+F47+F52+F57+F64+F74+F79+F80+F70),0)","v":79388},{"$f":"ROUND((G17+G27+G34+G39+G47+G52+G57+G64+G74+G79+G80+G70),0)","v":0},{"$f":"ROUND((H17+H27+H34+H39+H47+H52+H57+H64+H74+H79+H80+H70),0)","v":0},{"$f":"ROUND((I17+I27+I34+I39+I47+I52+I57+I64+I74+I79+I80+I70),0)","v":0},{"$f":"ROUND((J17+J27+J34+J39+J47+J52+J57+J64+J74+J79+J80+J70),8)","v":0},{"$f":"ROUND((K17+K27+K34+K39+K47+K52+K57+K64+K74+K79+K80+K70),8)","v":0},{"$f":"ROUND((L17+L27+L34+L39+L47+L52+L57+L64+L74+L79+L80+L70),0)","v":0},null,"76"]
[77,"ВСЕГО СТОИМОСТЬ ВОЗВРАЩАЕМЫХ МАТЕРИАЛОВ -","!",0,null,{"$f":"ROUND((F23+F31+F36+F43+F49+F54+F61+F76+F81),0)","v":0},null,null,null,null,null,null,null,"77"]
[78,"ВСЕГО НАКЛАДНЫЕ РАСХОДЫ","!",0,null,{"$f":"ROUND((F24+F32+F37+F44+F50+F55+F62+F72+F77+F68),0)","v":5620},null,null,null,null,null,null,null,"78"]
[79,"ВСЕГО СМЕТНАЯ ПРИБЫЛЬ","!",0,null,{"$f":"ROUND((F25+F33+F38+F45+F51+F56+F63+F73+F78+F69),0)","v":3672},null,null,null,null,null,null,null,"79"]
[80,"в т.ч. Вспомогательные материалы от стоимости материалов","h",0,null,{"$f":"ROUND(SUM('Базовые цены с учетом расхода'!X6:X27),0)","v":0},null,null,null,null,null,{"$f":"ROUND(SUM('Базовые цены с учетом расхода'!X6:X27),0)","v":0},null,"80"]
[81,"в т.ч. Вспомогательные материалы от ОЗП","h",0,null,{"$f":"ROUND(SUM(G87:N87),0)","v":0},null,null,null,null,null,{"$f":"ROUND(SUM('Базовые цены с учетом расхода'!AE6:AE27),0)","v":0},null,"81"]
[82,"Оплата основных рабочих","h",0,null,{"$f":"ROUND(SUM('Базовые цены с учетом расхода'!C6:C27),0)","v":4986},null,null,null,null,null,null,null,"82"]
[83,"Оплата механизаторов","h",0,null,{"$f":"ROUND(SUM('Базовые цены с учетом расхода'!E6:E27),0)","v":488},null,null,null,null,null,null,null,"83"]
[84,"Сметная заработная плата","s",0,null,{"$f":"ROUND((F88+F89),0)","v":5474},null,null,null,null,null,null,null,"84"]
[85,"Трудозатраты осн. рабочих","h",0,null,null,null,null,null,{"$f":"ROUND(SUM('Базовые цены с учетом расхода'!I6:I27),8)","v":414.48748949999998},null,null,null,"85"]
[86,"Трудозатраты механизаторов","h",0,null,null,null,null,null,{"$f":"ROUND(SUM('Базовые цены с учетом расхода'!K6:K27),8)","v":34.213862499999998},null,null,null,"86"]
[87,"Нормативная трудоемкость","s",0,null,null,null,null,null,{"$f":"ROUND((J91+J92),8)","v":448.70135199999999},null,null,null,"87"]
[88,"Промежуточная строка","k",100,null,{"$f":"ROUND((F84)*D94,0)","v":562000},null,null,null,null,null,null,null,"88"]
[89,"% НР","d",0,null,{"$f":"ROUND((F94/F90),0)","v":103},null,null,null,null,null,null,null,"89"]
[90,"Промежуточная строка","k",100,null,{"$f":"ROUND((F85)*D96,0)","v":367200},null,null,null,null,null,null,null,"90"]
[91,"% СП","d",0,null,{"$f":"ROUND((F96/F90),0)","v":67},null,null,null,null,null,null,null,"91"]
[92,"НДС 20%","%",20,null,{"$f":"ROUND((F82)*D98/100,0)","v":15878},null,null,null,null,null,null,null,"92"]
[93,"Итого с НДС","s",0,null,{"$f":"ROUND((F82+F98),0)","v":95266},null,null,null,null,null,null,null,"93"]